Workbook

Sheet Notes
B23: Converter
C25: Hex | D25: R | E25: B | F25: G
B26: Hex to RBG -> | C26: #363C42 | D26: =HEX2DEC(MID(C26,2,2)) -> 54 | E26: =HEX2DEC(MID(C26,4,2)) -> 60 | F26: =HEX2DEC(MID(C26,6,2)) -> 66
C28: R | D28: B | E28: G | F28: Hex
B29: RBG to Hex -> | C29: 69 | D29: 57 | E29: 55 | F29: ="#" & DEC2HEX(C29) & DEC2HEX(D29) & DEC2HEX(E29) -> #453937
B31: see https://pteromys.melonisland.net/munsell/
B32: for an online Musell converter

Sheet Methuen
A1: Find nearest colour | B1: Hex | C1: Std notation | D1: R calc | E1: G calc | F1: B calc | H1: Kornerup, A. & Wanscher, J.H. (1978) Methuen handbook of colour (3rd ed.). Eyre Methuen, London
A2: Paste hex code -> | B2: beba9a | C2: ="#" & SUBSTITUTE(B2,"#","") -> #beba9a | D2: =HEX2DEC(MID(C2,2,2)) -> 190 | E2: =HEX2DEC(MID(C2,4,2)) -> 186 | F2: =HEX2DEC(MID(C2,6,2)) -> 154 | H2: color plates scanned using NIX photometer, June 2025
A5: Colour | B5: counter | C5: Hex code | D5: Methuen code | E5: Munsell code | F5: Specific name | G5: General name | H5: R | I5: G | J5: B | K5: Calc Distance
B6: 69 | C6: #c0bd9c | D6: #2C2 | E6: 9.2Y 7.5/2.2 | F6: Oyster Grey | G6: Yellowish Grey | H6: 192 | I6: 189 | J6: 156 | K6: =SQRT((H6-$D$2)^2+(I6-$E$2)^2+(J6-$F$2)^2) -> 4.123105626
B7: 116 | C7: #c1bd9b | D7: #3C2 | E7: 8.6Y 7.5/2.3 | F7: Smoke Grey | G7: Yellowish Grey | H7: 193 | I7: 189 | J7: 155 | K7: =SQRT((H7-$D$2)^2+(I7-$E$2)^2+(J7-$F$2)^2) -> 4.358898944
B8: 1384 | C8: #bbbca1 | D8: #30C3 | E8: 1.7GY 7.5/1.8 | F8: Water Green | G8: greyish green | H8: 187 | I8: 188 | J8: 161 | K8: =SQRT((H8-$D$2)^2+(I8-$E$2)^2+(J8-$F$2)^2) -> 7.874007874
B9: 163 | C9: #c2bba1 | D9: #4C2 | E9: 5.5Y 7.5/1.8 | F9: Golden Grey/Golden Blonde/Greyish Beige | G9: Greyish Beige | H9: 194 | I9: 187 | J9: 161 | K9: =SQRT((H9-$D$2)^2+(I9-$E$2)^2+(J9-$F$2)^2) -> 8.124038405
B10: 21 | C10: #bebd92 | D10: #1C3 | E10: 0.56GY 7.5/2.9 | G10: Greyish Green | H10: 190 | I10: 189 | J10: 146 | K10: =SQRT((H10-$D$2)^2+(I10-$E$2)^2+(J10-$F$2)^2) -> 8.544003745
B11: 1337 | C11: #b5bb9b | D11: #29C3 | E11: 4.5GY 7.4/2.2 | G11: greyish green | H11: 181 | I11: 187 | J11: 155 | K11: =SQRT((H11-$D$2)^2+(I11-$E$2)^2+(J11-$F$2)^2) -> 9.110433579
B12: 1383 | C12: #babc92 | D12: #30C4 | E12: 1.8GY 7.4/2.9 | G12: greyish green | H12: 186 | I12: 188 | J12: 146 | K12: =SQRT((H12-$D$2)^2+(I12-$E$2)^2+(J12-$F$2)^2) -> 9.16515139
B13: 22 | C13: #c0bea2 | D13: #1C2 | E13: 9.6Y 7.6/1.8 | G13: Greenish Grey | H13: 192 | I13: 190 | J13: 162 | K13: =SQRT((H13-$D$2)^2+(I13-$E$2)^2+(J13-$F$2)^2) -> 9.16515139
B14: 210 | C14: #c4b9a2 | D14: #5C2 | E14: 2.5Y 7.5/1.8 | F14: Birch Grey | G14: Orange Grey | H14: 196 | I14: 185 | J14: 162 | K14: =SQRT((H14-$D$2)^2+(I14-$E$2)^2+(J14-$F$2)^2) -> 10.04987562
B15: 162 | C15: #c4b892 | D15: #4C3 | E15: 4.6Y 7.4/2.8 | F15: Beige/Flaxen/Light Blonde | G15: Light Blind | H15: 196 | I15: 184 | J15: 146 | K15: =SQRT((H15-$D$2)^2+(I15-$E$2)^2+(J15-$F$2)^2) -> 10.19803903
B16: 257 | C16: #c5b49f | D16: #6C2 | E16: 9.6YR 7.3/2 | G16: brownish grey | H16: 197 | I16: 180 | J16: 159 | K16: =SQRT((H16-$D$2)^2+(I16-$E$2)^2+(J16-$F$2)^2) -> 10.48808848
B17: 304 | C17: #c3b2a1 | D17: #7C2 | E17: 8.4YR 7.3/1.8 | G17: brownish grey | H17: 195 | I17: 178 | J17: 161 | K17: =SQRT((H17-$D$2)^2+(I17-$E$2)^2+(J17-$F$2)^2) -> 11.74734012
B18: 1290 | C18: #b2b99f | D18: #28C3 | E18: 5.4GY 7.3/1.8 | F18: Nile (Green) | G18: greyish green | H18: 178 | I18: 185 | J18: 159 | K18: =SQRT((H18-$D$2)^2+(I18-$E$2)^2+(J18-$F$2)^2) -> 13.03840481
B19: 1338 | C19: #b9bba6 | D19: #29C2 | E19: 2.8GY 7.4/1.4 | G19: greenish grey | H19: 185 | I19: 187 | J19: 166 | K19: =SQRT((H19-$D$2)^2+(I19-$E$2)^2+(J19-$F$2)^2) -> 13.03840481
B20: 1291 | C20: #b7baa7 | D20: #28C2 | E20: 4GY 7.4/1.3 | G20: greenish grey | H20: 183 | I20: 186 | J20: 167 | K20: =SQRT((H20-$D$2)^2+(I20-$E$2)^2+(J20-$F$2)^2) -> 14.76482306
B21: 351 | C21: #c7b0a1 | D21: #8C2 | E21: 5.2YR 7.3/2.2 | G21: brownish grey | H21: 199 | I21: 176 | J21: 161 | K21: =SQRT((H21-$D$2)^2+(I21-$E$2)^2+(J21-$F$2)^2) -> 15.16575089
B22: 209 | C22: #c9b292 | D22: #5C3 | E22: 0.23Y 7.3/3 | G22: Brownish Orange | H22: 201 | I22: 178 | J22: 146 | K22: =SQRT((H22-$D$2)^2+(I22-$E$2)^2+(J22-$F$2)^2) -> 15.77973384
B23: 68 | C23: #c1bc8a | D23: #2C3 | E23: 9Y 7.5/3.5 | G23: Greyish Yellow | H23: 193 | I23: 188 | J23: 138 | K23: =SQRT((H23-$D$2)^2+(I23-$E$2)^2+(J23-$F$2)^2) -> 16.40121947
B24: 398 | C24: #bbaca2 | D24: #9C2 | E24: 5.7YR 7/1.4 | G24: brownish grey | H24: 187 | I24: 172 | J24: 162 | K24: =SQRT((H24-$D$2)^2+(I24-$E$2)^2+(J24-$F$2)^2) -> 16.40121947
B25: 1385 | C25: #bdbdab | D25: #30C2 | E25: 1.1GY 7.5/1.2 | F25: Mineral Grey | G25: greenish grey | H25: 189 | I25: 189 | J25: 171 | K25: =SQRT((H25-$D$2)^2+(I25-$E$2)^2+(J25-$F$2)^2) -> 17.29161647
B26: 445 | C26: #bbaca4 | D26: #10C2 | E26: 4YR 7.1/1.3 | G26: brownish grey | H26: 187 | I26: 172 | J26: 164 | K26: =SQRT((H26-$D$2)^2+(I26-$E$2)^2+(J26-$F$2)^2) -> 17.4642492
B27: 115 | C27: #c2ba88 | D27: #3C3 | E27: 7.6Y 7.4/3.5 | F27: Ash Blonde | G27: Greyish Yellow | H27: 194 | I27: 186 | J27: 136 | K27: =SQRT((H27-$D$2)^2+(I27-$E$2)^2+(J27-$F$2)^2) -> 18.43908891
B28: 728 | C28: #b7b7ab | D28: #16C1 | E28: 0.99GY 7.3/0.78 | G28: grey | H28: 183 | I28: 183 | J28: 171 | K28: =SQRT((H28-$D$2)^2+(I28-$E$2)^2+(J28-$F$2)^2) -> 18.62793601
B29: 1245 | C29: #b8b8ac | D29: #27C1 | E29: 1GY 7.4/0.78 | G29: grey | H29: 184 | I29: 184 | J29: 172 | K29: =SQRT((H29-$D$2)^2+(I29-$E$2)^2+(J29-$F$2)^2) -> 19.07878403
B30: 492 | C30: #bbaaa4 | D30: #11C2 | E30: 1.3YR 7/1.5 | G30: reddish grey | H30: 187 | I30: 170 | J30: 164 | K30: =SQRT((H30-$D$2)^2+(I30-$E$2)^2+(J30-$F$2)^2) -> 19.10497317
B31: 1198 | C31: #b6b6ab | D31: #26C1 | E31: 0.98GY 7.3/0.72 | G31: grey | H31: 182 | I31: 182 | J31: 171 | K31: =SQRT((H31-$D$2)^2+(I31-$E$2)^2+(J31-$F$2)^2) -> 19.20937271
B32: 1244 | C32: #aeb6a4 | D32: #27C2 | E32: 6.7GY 7.2/1.3 | G32: greenish grey | H32: 174 | I32: 182 | J32: 164 | K32: =SQRT((H32-$D$2)^2+(I32-$E$2)^2+(J32-$F$2)^2) -> 19.28730152
B33: 587 | C33: #b7b7ac | D33: #13C1 | E33: 1GY 7.3/0.72 | G33: grey | H33: 183 | I33: 183 | J33: 172 | K33: =SQRT((H33-$D$2)^2+(I33-$E$2)^2+(J33-$F$2)^2) -> 19.54482029
B34: 1151 | C34: #b9b9ad | D34: #25C1 | E34: 1GY 7.4/0.78 | G34: grey | H34: 185 | I34: 185 | J34: 173 | K34: =SQRT((H34-$D$2)^2+(I34-$E$2)^2+(J34-$F$2)^2) -> 19.67231557
B35: 1292 | C35: #b9b9ad | D35: #28C1 | E35: 1GY 7.4/0.78 | G35: grey | H35: 185 | I35: 185 | J35: 173 | K35: =SQRT((H35-$D$2)^2+(I35-$E$2)^2+(J35-$F$2)^2) -> 19.67231557
B36: 586 | C36: #b9ada8 | D36: #13C2 | E36: 2.5YR 7.1/1.1 | G36: purplish grey | H36: 185 | I36: 173 | J36: 168 | K36: =SQRT((H36-$D$2)^2+(I36-$E$2)^2+(J36-$F$2)^2) -> 19.74841766
B37: 399 | C37: #b8b8ad | D37: #9C1 | E37: 1GY 7.4/0.71 | G37: grey | H37: 184 | I37: 184 | J37: 173 | K37: =SQRT((H37-$D$2)^2+(I37-$E$2)^2+(J37-$F$2)^2) -> 20.02498439
B38: 446 | C38: #b8b8ad | D38: #10C1 | E38: 1GY 7.4/0.71 | G38: grey | H38: 184 | I38: 184 | J38: 173 | K38: =SQRT((H38-$D$2)^2+(I38-$E$2)^2+(J38-$F$2)^2) -> 20.02498439
B39: 539 | C39: #bbada9 | D39: #12C2 | E39: 0.22YR 7.1/1.3 | G39: reddish grey | H39: 187 | I39: 173 | J39: 169 | K39: =SQRT((H39-$D$2)^2+(I39-$E$2)^2+(J39-$F$2)^2) -> 20.0748599
B40: 1328 | C40: #c1ce95 | D40: #29B4 | E40: 5.2GY 8/4 | G40: greyish green | H40: 193 | I40: 206 | J40: 149 | K40: =SQRT((H40-$D$2)^2+(I40-$E$2)^2+(J40-$F$2)^2) -> 20.83266666
B41: 1281 | C41: #becea0 | D41: #28B4 | E41: 6.2GY 8/3.3 | G41: greyish green | H41: 190 | I41: 206 | J41: 160 | K41: =SQRT((H41-$D$2)^2+(I41-$E$2)^2+(J41-$F$2)^2) -> 20.88061302
B42: 493 | C42: #bab9af | D42: #11C1 | E42: 9.1Y 7.4/0.65 | G42: grey | H42: 186 | I42: 185 | J42: 175 | K42: =SQRT((H42-$D$2)^2+(I42-$E$2)^2+(J42-$F$2)^2) -> 21.40093456
B43: 681 | C43: #bcbcb0 | D43: #15C1 | E43: 1.1GY 7.5/0.77 | G43: grey | H43: 188 | I43: 188 | J43: 176 | K43: =SQRT((H43-$D$2)^2+(I43-$E$2)^2+(J43-$F$2)^2) -> 22.18107301
B44: 540 | C44: #bbbbb0 | D44: #12C1 | E44: 1GY 7.5/0.7 | G44: grey | H44: 187 | I44: 187 | J44: 176 | K44: =SQRT((H44-$D$2)^2+(I44-$E$2)^2+(J44-$F$2)^2) -> 22.22611077
B45: 1010 | C45: #bdbdb0 | D45: #22C1 | E45: 1.1GY 7.6/0.83 | G45: grey | H45: 189 | I45: 189 | J45: 176 | K45: =SQRT((H45-$D$2)^2+(I45-$E$2)^2+(J45-$F$2)^2) -> 22.22611077
B46: 1289 | C46: #aab790 | D46: #28C4 | E46: 5.9GY 7.2/2.9 | F46: Pistachio Green | G46: greyish green | H46: 170 | I46: 183 | J46: 144 | K46: =SQRT((H46-$D$2)^2+(I46-$E$2)^2+(J46-$F$2)^2) -> 22.56102835
B47: 256 | C47: #caab8e | D47: #6C3 | E47: 7.8YR 7.1/3.3 | G47: brownish orange | H47: 202 | I47: 171 | J47: 142 | K47: =SQRT((H47-$D$2)^2+(I47-$E$2)^2+(J47-$F$2)^2) -> 22.64950331
B48: 633 | C48: #bfafae | D48: #14C2 | E48: 4.6R 7.2/1.6 | G48: purplish grey | H48: 191 | I48: 175 | J48: 174 | K48: =SQRT((H48-$D$2)^2+(I48-$E$2)^2+(J48-$F$2)^2) -> 22.84731932
B49: 1386 | C49: #bdbcb1 | D49: #30C1 | E49: 9.3Y 7.5/0.71 | G49: grey | H49: 189 | I49: 188 | J49: 177 | K49: =SQRT((H49-$D$2)^2+(I49-$E$2)^2+(J49-$F$2)^2) -> 23.10844002
B50: 23 | C50: #bebdb1 | D50: #1C1 | E50: 9.4Y 7.6/0.77 | G50: Pale Grey | H50: 190 | I50: 189 | J50: 177 | K50: =SQRT((H50-$D$2)^2+(I50-$E$2)^2+(J50-$F$2)^2) -> 23.19482701
B51: 1339 | C51: #bdbdb1 | D51: #29C1 | E51: 1.1GY 7.6/0.76 | G51: grey | H51: 189 | I51: 189 | J51: 177 | K51: =SQRT((H51-$D$2)^2+(I51-$E$2)^2+(J51-$F$2)^2) -> 23.21637353
B52: 305 | C52: #bebeb1 | D52: #7C1 | E52: 1.1GY 7.6/0.82 | G52: grey | H52: 190 | I52: 190 | J52: 177 | K52: =SQRT((H52-$D$2)^2+(I52-$E$2)^2+(J52-$F$2)^2) -> 23.34523506
B53: 916 | C53: #bebeb1 | D53: #20C1 | E53: 1.1GY 7.6/0.82 | G53: grey | H53: 190 | I53: 190 | J53: 177 | K53: =SQRT((H53-$D$2)^2+(I53-$E$2)^2+(J53-$F$2)^2) -> 23.34523506
B54: 1104 | C54: #bebeb1 | D54: #24C1 | E54: 1.1GY 7.6/0.82 | G54: grey | H54: 190 | I54: 190 | J54: 177 | K54: =SQRT((H54-$D$2)^2+(I54-$E$2)^2+(J54-$F$2)^2) -> 23.34523506
B55: 1336 | C55: #afb988 | D55: #29C4 | E55: 4.5GY 7.2/3.5 | G55: greyish green | H55: 175 | I55: 185 | J55: 136 | K55: =SQRT((H55-$D$2)^2+(I55-$E$2)^2+(J55-$F$2)^2) -> 23.4520788
B56: 680 | C56: #b8b0af | D56: #15C2 | E56: 6.4R 7.2/0.75 | G56: lilac grey | H56: 184 | I56: 176 | J56: 175 | K56: =SQRT((H56-$D$2)^2+(I56-$E$2)^2+(J56-$F$2)^2) -> 24.0208243
B57: 821 | C57: #b6b4b0 | D57: #18C2 | E57: 2.8Y 7.3/0.31 | G57: violet grey | H57: 182 | I57: 180 | J57: 176 | K57: =SQRT((H57-$D$2)^2+(I57-$E$2)^2+(J57-$F$2)^2) -> 24.16609195
B58: 774 | C58: #b9b4b1 | D58: #17C2 | E58: 5.2YR 7.3/0.44 | G58: violet grey | H58: 185 | I58: 180 | J58: 177 | K58: =SQRT((H58-$D$2)^2+(I58-$E$2)^2+(J58-$F$2)^2) -> 24.2899156
B59: 775 | C59: #bebeb2 | D59: #17C1 | E59: 1.1GY 7.6/0.76 | G59: grey | H59: 190 | I59: 190 | J59: 178 | K59: =SQRT((H59-$D$2)^2+(I59-$E$2)^2+(J59-$F$2)^2) -> 24.33105012
B60: 1057 | C60: #bebeb2 | D60: #23C1 | E60: 1.1GY 7.6/0.76 | F60: Fog | G60: grey | H60: 190 | I60: 190 | J60: 178 | K60: =SQRT((H60-$D$2)^2+(I60-$E$2)^2+(J60-$F$2)^2) -> 24.33105012
B61: 164 | C61: #bfbeb2 | D61: #4C1 | E61: 9.4Y 7.6/0.77 | F61: Aluminium | G61: Grey | H61: 191 | I61: 190 | J61: 178 | K61: =SQRT((H61-$D$2)^2+(I61-$E$2)^2+(J61-$F$2)^2) -> 24.35159132
B62: 70 | C62: #bfbfb2 | D62: #2C1 | E62: 1.1GY 7.6/0.82 | G62: Olive Yellow | H62: 191 | I62: 191 | J62: 178 | K62: =SQRT((H62-$D$2)^2+(I62-$E$2)^2+(J62-$F$2)^2) -> 24.53568829
B63: 822 | C63: #bfbfb2 | D63: #18C1 | E63: 1.1GY 7.6/0.82 | G63: grey | H63: 191 | I63: 191 | J63: 178 | K63: =SQRT((H63-$D$2)^2+(I63-$E$2)^2+(J63-$F$2)^2) -> 24.53568829
B64: 117 | C64: #c0bfb2 | D64: #3C1 | E64: 9.6Y 7.6/0.83 | F64: Pearl Grey | G64: Grey | H64: 192 | I64: 191 | J64: 178 | K64: =SQRT((H64-$D$2)^2+(I64-$E$2)^2+(J64-$F$2)^2) -> 24.59674775
B65: 211 | C65: #c0bfb2 | D65: #5C1 | E65: 9.6Y 7.6/0.83 | G65: Grey | H65: 192 | I65: 191 | J65: 178 | K65: =SQRT((H65-$D$2)^2+(I65-$E$2)^2+(J65-$F$2)^2) -> 24.59674775
B66: 1150 | C66: #abb6aa | D66: #25C2 | E66: 0.21G 7.2/1.1 | G66: greenish grey | H66: 171 | I66: 182 | J66: 170 | K66: =SQRT((H66-$D$2)^2+(I66-$E$2)^2+(J66-$F$2)^2) -> 25.15949125
B67: 303 | C67: #c8a590 | D67: #7C3 | E67: 4.3YR 6.9/3.3 | G67: dull red | H67: 200 | I67: 165 | J67: 144 | K67: =SQRT((H67-$D$2)^2+(I67-$E$2)^2+(J67-$F$2)^2) -> 25.3179778
B68: 634 | C68: #bfbfb3 | D68: #14C1 | E68: 1.1GY 7.6/0.76 | G68: grey | H68: 191 | I68: 191 | J68: 179 | K68: =SQRT((H68-$D$2)^2+(I68-$E$2)^2+(J68-$F$2)^2) -> 25.51470164
B69: 963 | C69: #bfbfb3 | D69: #21C1 | E69: 1.1GY 7.6/0.76 | G69: grey | H69: 191 | I69: 191 | J69: 179 | K69: =SQRT((H69-$D$2)^2+(I69-$E$2)^2+(J69-$F$2)^2) -> 25.51470164
B70: 258 | C70: #c0bfb3 | D70: #6C1 | E70: 9.4Y 7.6/0.76 | G70: grey | H70: 192 | I70: 191 | J70: 179 | K70: =SQRT((H70-$D$2)^2+(I70-$E$2)^2+(J70-$F$2)^2) -> 25.57342371
B71: 352 | C71: #c0bfb3 | D71: #8C1 | E71: 9.4Y 7.6/0.76 | G71: grey | H71: 192 | I71: 191 | J71: 179 | K71: =SQRT((H71-$D$2)^2+(I71-$E$2)^2+(J71-$F$2)^2) -> 25.57342371
B72: 1382 | C72: #b9bd81 | D72: #30C5 | E72: 2GY 7.4/4.2 | F72: Bile Yellow | G72: greyish green | H72: 185 | I72: 189 | J72: 129 | K72: =SQRT((H72-$D$2)^2+(I72-$E$2)^2+(J72-$F$2)^2) -> 25.67099531
B73: 625 | C73: #c5b4b2 | D73: #14B2 | E73: 6.1R 7.4/1.7 | G73: purplish grey | H73: 197 | I73: 180 | J73: 178 | K73: =SQRT((H73-$D$2)^2+(I73-$E$2)^2+(J73-$F$2)^2) -> 25.70992026
B74: 1056 | C74: #b3b9b2 | D74: #23C2 | E74: 9.8GY 7.4/0.59 | G74: bluish grey | H74: 179 | I74: 185 | J74: 178 | K74: =SQRT((H74-$D$2)^2+(I74-$E$2)^2+(J74-$F$2)^2) -> 26.41968963
B75: 915 | C75: #b5b8b3 | D75: #20C2 | E75: 7.8GY 7.4/0.38 | G75: bluish grey | H75: 181 | I75: 184 | J75: 179 | K75: =SQRT((H75-$D$2)^2+(I75-$E$2)^2+(J75-$F$2)^2) -> 26.64582519
B76: 727 | C76: #b1a9aa | D76: #16C2 | E76: 8.9RP 6.9/0.87 | G76: violet grey | H76: 177 | I76: 169 | J76: 170 | K76: =SQRT((H76-$D$2)^2+(I76-$E$2)^2+(J76-$F$2)^2) -> 26.72077843
B77: 962 | C77: #b2b7b2 | D77: #21C2 | E77: 0.76G 7.3/0.45 | G77: bluish grey | H77: 178 | I77: 183 | J77: 178 | K77: =SQRT((H77-$D$2)^2+(I77-$E$2)^2+(J77-$F$2)^2) -> 27
B78: 397 | C78: #bd9f96 | D78: #9C3 | E78: 0.15YR 6.7/2.7 | G78: dull red | H78: 189 | I78: 159 | J78: 150 | K78: =SQRT((H78-$D$2)^2+(I78-$E$2)^2+(J78-$F$2)^2) -> 27.31300057
B79: 672 | C79: #c1b7b5 | D79: #15B2 | E79: 8.1R 7.4/0.99 | F79: Greyish Lilac | G79: lilac grey | H79: 193 | I79: 183 | J79: 181 | K79: =SQRT((H79-$D$2)^2+(I79-$E$2)^2+(J79-$F$2)^2) -> 27.33130074
B80: 585 | C80: #bda1a6 | D80: #13C3 | E80: 7.9RP 6.8/3 | G80: greyish magenta | H80: 189 | I80: 161 | J80: 166 | K80: =SQRT((H80-$D$2)^2+(I80-$E$2)^2+(J80-$F$2)^2) -> 27.74887385
B81: 1103 | C81: #aab6ad | D81: #24C2 | E81: 2.6G 7.2/0.96 | G81: turquoise grey | H81: 170 | I81: 182 | J81: 173 | K81: =SQRT((H81-$D$2)^2+(I81-$E$2)^2+(J81-$F$2)^2) -> 27.87471973
B82: 444 | C82: #be9e9a | D82: #10C3 | E82: 6.4R 6.7/2.9 | G82: dull red | H82: 190 | I82: 158 | J82: 154 | K82: =SQRT((H82-$D$2)^2+(I82-$E$2)^2+(J82-$F$2)^2) -> 28
B83: 868 | C83: #b1b3b2 | D83: #19C2 | E83: 6.9G 7.2/0.14 | G83: bluish grey | H83: 177 | I83: 179 | J83: 178 | K83: =SQRT((H83-$D$2)^2+(I83-$E$2)^2+(J83-$F$2)^2) -> 28.17800561
B84: 869 | C84: #c2c1b5 | D84: #19C1 | E84: 9.5Y 7.7/0.76 | G84: grey | H84: 194 | I84: 193 | J84: 181 | K84: =SQRT((H84-$D$2)^2+(I84-$E$2)^2+(J84-$F$2)^2) -> 28.17800561
B85: 1009 | C85: #aeb6b1 | D85: #22C2 | E85: 4.3G 7.3/0.6 | G85: bluish grey | H85: 174 | I85: 182 | J85: 177 | K85: =SQRT((H85-$D$2)^2+(I85-$E$2)^2+(J85-$F$2)^2) -> 28.3019434
B86: 1197 | C86: #a4b1a1 | D86: #26C2 | E86: 9.4GY 7/1.4 | G86: greenish grey | H86: 164 | I86: 177 | J86: 161 | K86: =SQRT((H86-$D$2)^2+(I86-$E$2)^2+(J86-$F$2)^2) -> 28.39013913
B87: 1243 | C87: #a2b49b | D87: #27C3 | E87: 8.8GY 7/2.1 | G87: greyish green | H87: 162 | I87: 180 | J87: 155 | K87: =SQRT((H87-$D$2)^2+(I87-$E$2)^2+(J87-$F$2)^2) -> 28.65309756
B88: 538 | C88: #bb9ea0 | D88: #12C3 | E88: 0.74R 6.7/2.9 | G88: greyish ruby | H88: 187 | I88: 158 | J88: 160 | K88: =SQRT((H88-$D$2)^2+(I88-$E$2)^2+(J88-$F$2)^2) -> 28.7923601
B89: 1235 | C89: #b6ccaf | D89: #27B3 | E89: 9.3GY 7.9/2.4 | G89: greyish green | H89: 182 | I89: 204 | J89: 175 | K89: =SQRT((H89-$D$2)^2+(I89-$E$2)^2+(J89-$F$2)^2) -> 28.7923601
B90: 673 | C90: #c4c3b6 | D90: #15B1 | E90: 9.6Y 7.8/0.81 | G90: grey | H90: 196 | I90: 195 | J90: 182 | K90: =SQRT((H90-$D$2)^2+(I90-$E$2)^2+(J90-$F$2)^2) -> 30.01666204
B91: 491 | C91: #bd9c9b | D91: #11C3 | E91: 3.8R 6.6/3.1 | G91: dull red | H91: 189 | I91: 156 | J91: 155 | K91: =SQRT((H91-$D$2)^2+(I91-$E$2)^2+(J91-$F$2)^2) -> 30.03331484
B92: 632 | C92: #c0a0aa | D92: #14C3 | E92: 5RP 6.8/3.6 | G92: reddish lilac | H92: 192 | I92: 160 | J92: 170 | K92: =SQRT((H92-$D$2)^2+(I92-$E$2)^2+(J92-$F$2)^2) -> 30.59411708
B93: 389 | C93: #d8b2a8 | D93: #9B3 | E93: 9.1R 7.5/3.4 | G93: dull red | H93: 216 | I93: 178 | J93: 168 | K93: =SQRT((H93-$D$2)^2+(I93-$E$2)^2+(J93-$F$2)^2) -> 30.59411708
B94: 624 | C94: #c5a3ad | D94: #14B3 | E94: 5.3RP 6.9/3.8 | G94: reddish lilac | H94: 197 | I94: 163 | J94: 173 | K94: =SQRT((H94-$D$2)^2+(I94-$E$2)^2+(J94-$F$2)^2) -> 30.64310689
B95: 830 | C95: #a6a79d | D95: #18D1 | E95: 2.4GY 6.7/0.69 | G95: grey | H95: 166 | I95: 167 | J95: 157 | K95: =SQRT((H95-$D$2)^2+(I95-$E$2)^2+(J95-$F$2)^2) -> 30.757113
B96: 1375 | C96: #d0d2a2 | D96: #30B4 | E96: 1.8GY 8.2/3.1 | G96: greyish green | H96: 208 | I96: 210 | J96: 162 | K96: =SQRT((H96-$D$2)^2+(I96-$E$2)^2+(J96-$F$2)^2) -> 31.04834939
B97: 350 | C97: #cba08f | D97: #8C3 | E97: 1.4YR 6.8/3.9 | G97: dull red | H97: 203 | I97: 160 | J97: 143 | K97: =SQRT((H97-$D$2)^2+(I97-$E$2)^2+(J97-$F$2)^2) -> 31.08054054
B98: 626 | C98: #c5c3b7 | D98: #14B1 | E98: 7.6Y 7.8/0.77 | F98: Purplish/Violet Red | G98: grey | H98: 197 | I98: 195 | J98: 183 | K98: =SQRT((H98-$D$2)^2+(I98-$E$2)^2+(J98-$F$2)^2) -> 31.1608729
B99: 1374 | C99: #ccd18a | D99: #30B5 | E99: 2.2GY 8.1/4.8 | G99: greyish green | H99: 204 | I99: 209 | J99: 138 | K99: =SQRT((H99-$D$2)^2+(I99-$E$2)^2+(J99-$F$2)^2) -> 31.32091953
B100: 1188 | C100: #a7c7ac | D100: #26B3 | E100: 1.8G 7.7/2.8 | G100: greyish green | H100: 167 | I100: 199 | J100: 172 | K100: =SQRT((H100-$D$2)^2+(I100-$E$2)^2+(J100-$F$2)^2) -> 31.96873473
B101: 577 | C101: #ceaeb3 | D101: #13B3 | E101: 8.3RP 7.3/3.4 | G101: greyish magenta | H101: 206 | I101: 174 | J101: 179 | K101: =SQRT((H101-$D$2)^2+(I101-$E$2)^2+(J101-$F$2)^2) -> 32.01562119
B102: 1234 | C102: #a1c79e | D102: #27B4 | E102: 0.41G 7.6/3.9 | G102: greyish green | H102: 161 | I102: 199 | J102: 158 | K102: =SQRT((H102-$D$2)^2+(I102-$E$2)^2+(J102-$F$2)^2) -> 32.03123476
B103: 671 | C103: #bca7b4 | D103: #15B3 | E103: 0.82RP 7/3 | G103: greyish violet | H103: 188 | I103: 167 | J103: 180 | K103: =SQRT((H103-$D$2)^2+(I103-$E$2)^2+(J103-$F$2)^2) -> 32.26453161
B104: 13 | C104: #d4d1a0 | D104: #1B3 | E104: 9.9Y 8.2/3.2 | G104: Greyish Yellow | H104: 212 | I104: 209 | J104: 160 | K104: =SQRT((H104-$D$2)^2+(I104-$E$2)^2+(J104-$F$2)^2) -> 32.38826948
B105: 1329 | C105: #cbd1ad | D105: #29B3 | E105: 4.5GY 8.2/2.3 | G105: greyish green | H105: 203 | I105: 209 | J105: 173 | K105: =SQRT((H105-$D$2)^2+(I105-$E$2)^2+(J105-$F$2)^2) -> 32.54228019
B106: 1327 | C106: #b7cb7f | D106: #29B5 | E106: 5.4GY 7.8/5.6 | G106: greyish green | H106: 183 | I106: 203 | J106: 127 | K106: =SQRT((H106-$D$2)^2+(I106-$E$2)^2+(J106-$F$2)^2) -> 32.66496594
B107: 483 | C107: #d6adac | D107: #11B3 | E107: 3.3R 7.4/3.8 | G107: dull red | H107: 214 | I107: 173 | J107: 172 | K107: =SQRT((H107-$D$2)^2+(I107-$E$2)^2+(J107-$F$2)^2) -> 32.69556545
B108: 679 | C108: #b4a2ae | D108: #15C3 | E108: 0.32RP 6.8/2.7 | F108: Dull Lilac | G108: dull lilac | H108: 180 | I108: 162 | J108: 174 | K108: =SQRT((H108-$D$2)^2+(I108-$E$2)^2+(J108-$F$2)^2) -> 32.80243893
B109: 60 | C109: #d7d098 | D109: #2B3 | E109: 8.2Y 8.2/3.8 | F109: Wax White | G109: Greyish Yellow | H109: 215 | I109: 208 | J109: 152 | K109: =SQRT((H109-$D$2)^2+(I109-$E$2)^2+(J109-$F$2)^2) -> 33.36165464
B110: 719 | C110: #c3b8bb | D110: #16B2 | E110: 5.3RP 7.5/1.5 | G110: lilac grey | H110: 195 | I110: 184 | J110: 187 | K110: =SQRT((H110-$D$2)^2+(I110-$E$2)^2+(J110-$F$2)^2) -> 33.43650699
B111: 773 | C111: #afa5b0 | D111: #17C3 | E111: 6.8P 6.8/2.1 | G111: greyish violet | H111: 175 | I111: 165 | J111: 176 | K111: =SQRT((H111-$D$2)^2+(I111-$E$2)^2+(J111-$F$2)^2) -> 33.91164992
B112: 436 | C112: #dab1ab | D112: #10B3 | E112: 6.5R 7.5/3.7 | G112: dull red | H112: 218 | I112: 177 | J112: 171 | K112: =SQRT((H112-$D$2)^2+(I112-$E$2)^2+(J112-$F$2)^2) -> 33.9705755
B113: 360 | C113: #a3a59b | D113: #8D1 | E113: 4.2GY 6.6/0.7 | G113: grey | H113: 163 | I113: 165 | J113: 155 | K113: =SQRT((H113-$D$2)^2+(I113-$E$2)^2+(J113-$F$2)^2) -> 34.21987726
B114: 154 | C114: #dcca9e | D114: #4B3 | E114: 3.1Y 8.1/3.4 | F114: Ivory/Natural/Platinum Blonde/Sand | G114: Greyish Yellow | H114: 220 | I114: 202 | J114: 158 | K114: =SQRT((H114-$D$2)^2+(I114-$E$2)^2+(J114-$F$2)^2) -> 34.23448554
B115: 201 | C115: #dfc39f | D115: #5B3 | E115: 9.4YR 8/3.5 | G115: Greyish Orange | H115: 223 | I115: 195 | J115: 159 | K115: =SQRT((H115-$D$2)^2+(I115-$E$2)^2+(J115-$F$2)^2) -> 34.56877203
B116: 820 | C116: #aaa6ae | D116: #18C3 | E116: 4.5P 6.8/1.3 | G116: gtreyish violet | H116: 170 | I116: 166 | J116: 174 | K116: =SQRT((H116-$D$2)^2+(I116-$E$2)^2+(J116-$F$2)^2) -> 34.64101615
B117: 783 | C117: #a3a49a | D117: #17D1 | E117: 2.4GY 6.6/0.69 | G117: grey | H117: 163 | I117: 164 | J117: 154 | K117: =SQRT((H117-$D$2)^2+(I117-$E$2)^2+(J117-$F$2)^2) -> 34.82814953
B118: 877 | C118: #a3a49a | D118: #19D1 | E118: 2.4GY 6.6/0.69 | G118: grey | H118: 163 | I118: 164 | J118: 154 | K118: =SQRT((H118-$D$2)^2+(I118-$E$2)^2+(J118-$F$2)^2) -> 34.82814953
B119: 1279 | C119: #a9c882 | D119: #28B6 | E119: 6.8GY 7.6/5.6 | G119: greyish green | H119: 169 | I119: 200 | J119: 130 | K119: =SQRT((H119-$D$2)^2+(I119-$E$2)^2+(J119-$F$2)^2) -> 34.82814953
B120: 1280 | C120: #a9c882 | D120: #28B5 | E120: 6.8GY 7.6/5.6 | G120: greyish green | H120: 169 | I120: 200 | J120: 130 | K120: =SQRT((H120-$D$2)^2+(I120-$E$2)^2+(J120-$F$2)^2) -> 34.82814953
B121: 689 | C121: #a3a49b | D121: #15D1 | E121: 2.5GY 6.6/0.62 | G121: grey | H121: 163 | I121: 164 | J121: 155 | K121: =SQRT((H121-$D$2)^2+(I121-$E$2)^2+(J121-$F$2)^2) -> 34.84250278
B122: 107 | C122: #dace94 | D122: #3B3 | E122: 6Y 8.2/4.1 | F122: Dull Yellow | G122: Dull Yellow | H122: 218 | I122: 206 | J122: 148 | K122: =SQRT((H122-$D$2)^2+(I122-$E$2)^2+(J122-$F$2)^2) -> 34.92849839
B123: 20 | C123: #bfbc77 | D123: #1C4 | E123: 0.16GY 7.4/4.8 | G123: Greyish Green | H123: 191 | I123: 188 | J123: 119 | K123: =SQRT((H123-$D$2)^2+(I123-$E$2)^2+(J123-$F$2)^2) -> 35.07135583
B124: 530 | C124: #d5adb2 | D124: #12B3 | E124: 9.2RP 7.4/4 | F124: Greyish Rose | G124: greyish rose | H124: 213 | I124: 173 | J124: 178 | K124: =SQRT((H124-$D$2)^2+(I124-$E$2)^2+(J124-$F$2)^2) -> 35.6931366
B125: 1055 | C125: #a5b4b3 | D125: #23C3 | E125: 7.7BG 7.1/1 | F125: Fog Blue | G125: bluish grey | H125: 165 | I125: 180 | J125: 179 | K125: =SQRT((H125-$D$2)^2+(I125-$E$2)^2+(J125-$F$2)^2) -> 35.86084215
B126: 718 | C126: #baa6b8 | D126: #16B3 | E126: 8P 6.9/3.4 | G126: lilac | H126: 186 | I126: 166 | J126: 184 | K126: =SQRT((H126-$D$2)^2+(I126-$E$2)^2+(J126-$F$2)^2) -> 36.27671429
B127: 1189 | C127: #bfcdb9 | D127: #26B2 | E127: 8.8GY 8/1.5 | G127: greenish grey | H127: 191 | I127: 205 | J127: 185 | K127: =SQRT((H127-$D$2)^2+(I127-$E$2)^2+(J127-$F$2)^2) -> 36.37306696
B128: 342 | C128: #e1b09e | D128: #8B3 | E128: 0.72YR 7.5/4.3 | G128: dull red | H128: 225 | I128: 176 | J128: 158 | K128: =SQRT((H128-$D$2)^2+(I128-$E$2)^2+(J128-$F$2)^2) -> 36.61966685
B129: 1282 | C129: #cad2b3 | D129: #28B3 | E129: 5.6GY 8.2/2 | G129: greyish green | H129: 202 | I129: 210 | J129: 179 | K129: =SQRT((H129-$D$2)^2+(I129-$E$2)^2+(J129-$F$2)^2) -> 36.67424164
B130: 1283 | C130: #cad2b3 | D130: #28B2 | E130: 5.6GY 8.2/2 | G130: greenish grey | H130: 202 | I130: 210 | J130: 179 | K130: =SQRT((H130-$D$2)^2+(I130-$E$2)^2+(J130-$F$2)^2) -> 36.67424164
B131: 1284 | C131: #cad2b3 | D131: #28B1 | E131: 5.6GY 8.2/2 | G131: grey | H131: 202 | I131: 210 | J131: 179 | K131: =SQRT((H131-$D$2)^2+(I131-$E$2)^2+(J131-$F$2)^2) -> 36.67424164
B132: 914 | C132: #a7aeb4 | D132: #20C3 | E132: 1.9PB 7/1.3 | G132: bluish grey | H132: 167 | I132: 174 | J132: 180 | K132: =SQRT((H132-$D$2)^2+(I132-$E$2)^2+(J132-$F$2)^2) -> 36.72873534
B133: 578 | C133: #d0bfba | D133: #13B2 | E133: 10R 7.8/1.8 | G133: purplish grey | H133: 208 | I133: 191 | J133: 186 | K133: =SQRT((H133-$D$2)^2+(I133-$E$2)^2+(J133-$F$2)^2) -> 37.05401463
B134: 1159 | C134: #a1a398 | D134: #25D1 | E134: 3.8GY 6.6/0.77 | G134: grey | H134: 161 | I134: 163 | J134: 152 | K134: =SQRT((H134-$D$2)^2+(I134-$E$2)^2+(J134-$F$2)^2) -> 37.06750599
B135: 1112 | C135: #a1a397 | D135: #24D1 | E135: 3.6GY 6.6/0.84 | G135: grey | H135: 161 | I135: 163 | J135: 151 | K135: =SQRT((H135-$D$2)^2+(I135-$E$2)^2+(J135-$F$2)^2) -> 37.13488926
B136: 108 | C136: #d7d0ab | D136: #3B2 | E136: 6.7Y 8.3/2.4 | G136: Yellowish Grey | H136: 215 | I136: 208 | J136: 171 | K136: =SQRT((H136-$D$2)^2+(I136-$E$2)^2+(J136-$F$2)^2) -> 37.38983819
B137: 219 | C137: #a1a298 | D137: #5D1 | E137: 2.3GY 6.5/0.69 | G137: Grey | H137: 161 | I137: 162 | J137: 152 | K137: =SQRT((H137-$D$2)^2+(I137-$E$2)^2+(J137-$F$2)^2) -> 37.69615365
B138: 295 | C138: #e3b8a1 | D138: #7B3 | E138: 3.1YR 7.7/3.9 | G138: greyish red | H138: 227 | I138: 184 | J138: 161 | K138: =SQRT((H138-$D$2)^2+(I138-$E$2)^2+(J138-$F$2)^2) -> 37.70941527
B139: 961 | C139: #a4b1b4 | D139: #21C3 | E139: 4.5B 7/1.2 | F139: Smoke Blue | G139: bluish grey | H139: 164 | I139: 177 | J139: 180 | K139: =SQRT((H139-$D$2)^2+(I139-$E$2)^2+(J139-$F$2)^2) -> 37.85498646
B140: 161 | C140: #c6b176 | D140: #4C4 | E140: 4Y 7.2/4.6 | F140: Bamboo/Blonde | G140: Blond | H140: 198 | I140: 177 | J140: 118 | K140: =SQRT((H140-$D$2)^2+(I140-$E$2)^2+(J140-$F$2)^2) -> 37.96050579
B141: 1141 | C141: #afc8ba | D141: #25B3 | E141: 5.2G 7.8/1.8 | G141: greyish green | H141: 175 | I141: 200 | J141: 186 | K141: =SQRT((H141-$D$2)^2+(I141-$E$2)^2+(J141-$F$2)^2) -> 38.01315562
B142: 1272 | C142: #b4dc8c | D142: #28A6 | E142: 7.4GY 8.3/6.3 | G142: green | H142: 180 | I142: 220 | J142: 140 | K142: =SQRT((H142-$D$2)^2+(I142-$E$2)^2+(J142-$F$2)^2) -> 38.10511777
B143: 1288 | C143: #a1b482 | D143: #28C5 | E143: 6.2GY 7/3.9 | F143: Patina Green | G143: greyish green | H143: 161 | I143: 180 | J143: 130 | K143: =SQRT((H143-$D$2)^2+(I143-$E$2)^2+(J143-$F$2)^2) -> 38.11823711
B144: 1273 | C144: #c0e09d | D144: #28A5 | E144: 7.2GY 8.5/5 | G144: light green | H144: 192 | I144: 224 | J144: 157 | K144: =SQRT((H144-$D$2)^2+(I144-$E$2)^2+(J144-$F$2)^2) -> 38.17066937
B145: 61 | C145: #d6d1ad | D145: #2B2 | E145: 7.9Y 8.3/2.3 | F145: Silver White | G145: Yellowish Grey | H145: 214 | I145: 209 | J145: 173 | K145: =SQRT((H145-$D$2)^2+(I145-$E$2)^2+(J145-$F$2)^2) -> 38.28837944
B146: 390 | C146: #d6c2b7 | D146: #9B2 | E146: 3.7YR 7.9/2 | G146: reddish grey | H146: 214 | I146: 194 | J146: 183 | K146: =SQRT((H146-$D$2)^2+(I146-$E$2)^2+(J146-$F$2)^2) -> 38.48376281
B147: 924 | C147: #a0a197 | D147: #20D1 | E147: 2.3GY 6.5/0.69 | F147: Steel (Grey) | G147: grey | H147: 160 | I147: 161 | J147: 151 | K147: =SQRT((H147-$D$2)^2+(I147-$E$2)^2+(J147-$F$2)^2) -> 39.16631206
B148: 1065 | C148: #a0a197 | D148: #23D1 | E148: 2.3GY 6.5/0.69 | G148: grey | H148: 160 | I148: 161 | J148: 151 | K148: =SQRT((H148-$D$2)^2+(I148-$E$2)^2+(J148-$F$2)^2) -> 39.16631206
B149: 812 | C149: #bcb7c1 | D149: #18B3 | E149: 4.7P 7.4/1.8 | F149: Lavender | G149: greyish violet | H149: 188 | I149: 183 | J149: 193 | K149: =SQRT((H149-$D$2)^2+(I149-$E$2)^2+(J149-$F$2)^2) -> 39.16631206
B150: 248 | C150: #e5bd9d | D150: #6B3 | E150: 6YR 7.9/4.1 | F150: Flesh | G150: greyish orange | H150: 229 | I150: 189 | J150: 157 | K150: =SQRT((H150-$D$2)^2+(I150-$E$2)^2+(J150-$F$2)^2) -> 39.23009049
B151: 67 | C151: #c3bb73 | D151: #2C4 | E151: 8.6Y 7.4/5.1 | G151: Greyish Yellow | H151: 195 | I151: 187 | J151: 115 | K151: =SQRT((H151-$D$2)^2+(I151-$E$2)^2+(J151-$F$2)^2) -> 39.33192088
B152: 765 | C152: #c1b5c1 | D152: #17B3 | E152: 7.2P 7.4/2.5 | G152: greyish violet | H152: 193 | I152: 181 | J152: 193 | K152: =SQRT((H152-$D$2)^2+(I152-$E$2)^2+(J152-$F$2)^2) -> 39.43348831
B153: 1149 | C153: #99b0a4 | D153: #25C3 | E153: 5.8G 6.9/1.7 | G153: greyish green | H153: 153 | I153: 176 | J153: 164 | K153: =SQRT((H153-$D$2)^2+(I153-$E$2)^2+(J153-$F$2)^2) -> 39.61060464
B154: 484 | C154: #d6c0b9 | D154: #11B2 | E154: 0.32YR 7.9/2.2 | G154: reddish grey | H154: 214 | I154: 192 | J154: 185 | K154: =SQRT((H154-$D$2)^2+(I154-$E$2)^2+(J154-$F$2)^2) -> 39.66106403
B155: 407 | C155: #9fa199 | D155: #9D1 | E155: 4.8GY 6.5/0.57 | G155: grey | H155: 159 | I155: 161 | J155: 153 | K155: =SQRT((H155-$D$2)^2+(I155-$E$2)^2+(J155-$F$2)^2) -> 39.83716857
B156: 12 | C156: #d5d082 | D156: #1B4 | E156: 9.7Y 8.2/5.3 | G156: Greyish Yellow | H156: 213 | I156: 208 | J156: 130 | K156: =SQRT((H156-$D$2)^2+(I156-$E$2)^2+(J156-$F$2)^2) -> 39.86226286
B157: 14 | C157: #d4d1b2 | D157: #1B2 | E157: 9Y 8.3/1.9 | F157: Ash/Cendre | G157: Greenish Gray | H157: 212 | I157: 209 | J157: 178 | K157: =SQRT((H157-$D$2)^2+(I157-$E$2)^2+(J157-$F$2)^2) -> 39.86226286
B158: 642 | C158: #9fa198 | D158: #14D1 | E158: 4.4GY 6.5/0.63 | G158: grey | H158: 159 | I158: 161 | J158: 152 | K158: =SQRT((H158-$D$2)^2+(I158-$E$2)^2+(J158-$F$2)^2) -> 39.87480407
B159: 1008 | C159: #9fb0b2 | D159: #22C3 | E159: 2.3B 7/1.4 | F159: Eye Blue | G159: bluish grey | H159: 159 | I159: 176 | J159: 178 | K159: =SQRT((H159-$D$2)^2+(I159-$E$2)^2+(J159-$F$2)^2) -> 40.45985665
B160: 1394 | C160: #9fa097 | D160: #30D1 | E160: 2.5GY 6.5/0.63 | G160: grey | H160: 159 | I160: 160 | J160: 151 | K160: =SQRT((H160-$D$2)^2+(I160-$E$2)^2+(J160-$F$2)^2) -> 40.57092555
B161: 1347 | C161: #9fa096 | D161: #29D1 | E161: 2.3GY 6.5/0.7 | G161: grey | H161: 159 | I161: 160 | J161: 150 | K161: =SQRT((H161-$D$2)^2+(I161-$E$2)^2+(J161-$F$2)^2) -> 40.6571027
B162: 343 | C162: #dec2b2 | D162: #8B2 | E162: 3.8YR 8/2.7 | G162: reddish grey | H162: 222 | I162: 194 | J162: 178 | K162: =SQRT((H162-$D$2)^2+(I162-$E$2)^2+(J162-$F$2)^2) -> 40.79215611
B163: 726 | C163: #aa9aaa | D163: #16C3 | E163: 7.3P 6.4/2.9 | G163: dull violet | H163: 170 | I163: 154 | J163: 170 | K163: =SQRT((H163-$D$2)^2+(I163-$E$2)^2+(J163-$F$2)^2) -> 40.98780306
B164: 155 | C164: #d9cfb1 | D164: #4B2 | E164: 4.1Y 8.3/2.1 | F164: Putty | G164: Yellowish Grey | H164: 217 | I164: 207 | J164: 177 | K164: =SQRT((H164-$D$2)^2+(I164-$E$2)^2+(J164-$F$2)^2) -> 41.21892769
B165: 1299 | C165: #9ea192 | D165: #28D2 | E165: 4.1GY 6.5/1.1 | G165: greenish grey | H165: 158 | I165: 161 | J165: 146 | K165: =SQRT((H165-$D$2)^2+(I165-$E$2)^2+(J165-$F$2)^2) -> 41.38840417
B166: 867 | C166: #a2a6b1 | D166: #19C3 | E166: 6.4PB 6.7/1.9 | G166: greyish violet | H166: 162 | I166: 166 | J166: 177 | K166: =SQRT((H166-$D$2)^2+(I166-$E$2)^2+(J166-$F$2)^2) -> 41.38840417
B167: 1300 | C167: #9ea096 | D167: #28D1 | E167: 4.1GY 6.4/0.7 | G167: grey | H167: 158 | I167: 160 | J167: 150 | K167: =SQRT((H167-$D$2)^2+(I167-$E$2)^2+(J167-$F$2)^2) -> 41.42463035
B168: 153 | C168: #dfc483 | D168: #4B4 | E168: 3Y 7.9/5.2 | F168: Champagne | G168: Greyish Yellow | H168: 223 | I168: 196 | J168: 131 | K168: =SQRT((H168-$D$2)^2+(I168-$E$2)^2+(J168-$F$2)^2) -> 41.44876355
B169: 437 | C169: #d7c3ba | D169: #10B2 | E169: 2.5YR 8/2 | F169: Reddish Grey | G169: reddish grey | H169: 215 | I169: 195 | J169: 186 | K169: =SQRT((H169-$D$2)^2+(I169-$E$2)^2+(J169-$F$2)^2) -> 41.59326869
B170: 1236 | C170: #c8d0bc | D170: #27B2 | E170: 6.6GY 8.2/1.3 | G170: greenish grey | H170: 200 | I170: 208 | J170: 188 | K170: =SQRT((H170-$D$2)^2+(I170-$E$2)^2+(J170-$F$2)^2) -> 41.71330723
B171: 1376 | C171: #d3d3b4 | D171: #30B3 | E171: 1.2GY 8.3/1.9 | G171: greyish green | H171: 211 | I171: 211 | J171: 180 | K171: =SQRT((H171-$D$2)^2+(I171-$E$2)^2+(J171-$F$2)^2) -> 41.73727351
B172: 1373 | C172: #c8cf77 | D172: #30B6 | E172: 2.4GY 8/6.1 | G172: greyish green | H172: 200 | I172: 207 | J172: 119 | K172: =SQRT((H172-$D$2)^2+(I172-$E$2)^2+(J172-$F$2)^2) -> 42.02380278
B173: 1320 | C173: #c7e28f | D173: #29A5 | E173: 6.1GY 8.6/5.9 | F173: Viridine Green | G173: light green | H173: 199 | I173: 226 | J173: 143 | K173: =SQRT((H173-$D$2)^2+(I173-$E$2)^2+(J173-$F$2)^2) -> 42.44997055
B174: 720 | C174: #cdcbbe | D174: #16B1 | E174: 7.8Y 8.1/0.81 | G174: grey | H174: 205 | I174: 203 | J174: 190 | K174: =SQRT((H174-$D$2)^2+(I174-$E$2)^2+(J174-$F$2)^2) -> 42.54409477
B175: 531 | C175: #d5c2bd | D175: #12B2 | E175: 9.2R 7.9/2 | G175: reddish grey | H175: 213 | I175: 194 | J175: 189 | K175: =SQRT((H175-$D$2)^2+(I175-$E$2)^2+(J175-$F$2)^2) -> 42.63801121
B176: 208 | C176: #cca677 | D176: #5C4 | E176: 9.2YR 7/4.8 | F176: Golden Blonde, Reddish Orange, Reddish Blonde | G176: Brownish Orange | H176: 204 | I176: 166 | J176: 119 | K176: =SQRT((H176-$D$2)^2+(I176-$E$2)^2+(J176-$F$2)^2) -> 42.67317659
B177: 1227 | C177: #afdcaf | D177: #27A4 | E177: 0.9G 8.3/4.3 | F177: Pastel Green | G177: pastel green | H177: 175 | I177: 220 | J177: 175 | K177: =SQRT((H177-$D$2)^2+(I177-$E$2)^2+(J177-$F$2)^2) -> 42.68489194
B178: 1206 | C178: #9d9f96 | D178: #26D1 | E178: 4.4GY 6.4/0.64 | G178: grey | H178: 157 | I178: 159 | J178: 150 | K178: =SQRT((H178-$D$2)^2+(I178-$E$2)^2+(J178-$F$2)^2) -> 42.82522621
B179: 971 | C179: #9d9f95 | D179: #21D1 | E179: 4GY 6.4/0.71 | G179: grey | H179: 157 | I179: 159 | J179: 149 | K179: =SQRT((H179-$D$2)^2+(I179-$E$2)^2+(J179-$F$2)^2) -> 42.93017587
B180: 1095 | C180: #bfccc1 | D180: #24B2 | E180: 1.9G 8/1 | G180: turquoise grey | H180: 191 | I180: 204 | J180: 193 | K180: =SQRT((H180-$D$2)^2+(I180-$E$2)^2+(J180-$F$2)^2) -> 42.96510212
B181: 1335 | C181: #a8b775 | D181: #29C5 | E181: 4.7GY 7.1/4.9 | G181: greyish green | H181: 168 | I181: 183 | J181: 117 | K181: =SQRT((H181-$D$2)^2+(I181-$E$2)^2+(J181-$F$2)^2) -> 43.15089802
B182: 688 | C182: #a09b9b | D182: #15D2 | E182: 2.7R 6.3/0.47 | G182: violet grey | H182: 160 | I182: 155 | J182: 155 | K182: =SQRT((H182-$D$2)^2+(I182-$E$2)^2+(J182-$F$2)^2) -> 43.15089802
B183: 1094 | C183: #a6c2bd | D183: #24B3 | E183: 5.1BG 7.6/1.8 | F183: Aquamarine | G183: greyish turquoise | H183: 166 | I183: 194 | J183: 189 | K183: =SQRT((H183-$D$2)^2+(I183-$E$2)^2+(J183-$F$2)^2) -> 43.18564576
B184: 202 | C184: #dbcdb4 | D184: #5B2 | E184: 1.4Y 8.2/2 | F184: Alabaster/Marble/Orange Grey | G184: Orange Grey | H184: 219 | I184: 205 | J184: 180 | K184: =SQRT((H184-$D$2)^2+(I184-$E$2)^2+(J184-$F$2)^2) -> 43.33589736
B185: 579 | C185: #cdcbbf | D185: #13B1 | E185: 7.5Y 8.1/0.75 | G185: grey | H185: 205 | I185: 203 | J185: 191 | K185: =SQRT((H185-$D$2)^2+(I185-$E$2)^2+(J185-$F$2)^2) -> 43.39354791
B186: 406 | C186: #a39991 | D186: #9D2 | E186: 7.7YR 6.3/0.96 | G186: brownish grey | H186: 163 | I186: 153 | J186: 145 | K186: =SQRT((H186-$D$2)^2+(I186-$E$2)^2+(J186-$F$2)^2) -> 43.57751714
B187: 1393 | C187: #9d9f91 | D187: #30D2 | E187: 3GY 6.4/0.99 | G187: greenish grey | H187: 157 | I187: 159 | J187: 145 | K187: =SQRT((H187-$D$2)^2+(I187-$E$2)^2+(J187-$F$2)^2) -> 43.57751714
B188: 218 | C188: #a49c88 | D188: #5D2 | E188: 3.9Y 6.3/1.6 | F188: Dust | G188: Brownish Grey | H188: 164 | I188: 156 | J188: 136 | K188: =SQRT((H188-$D$2)^2+(I188-$E$2)^2+(J188-$F$2)^2) -> 43.58898944
B189: 1018 | C189: #9d9e94 | D189: #22D1 | E189: 2.3GY 6.4/0.7 | G189: grey | H189: 157 | I189: 158 | J189: 148 | K189: =SQRT((H189-$D$2)^2+(I189-$E$2)^2+(J189-$F$2)^2) -> 43.69210455
B190: 1381 | C190: #b6bc6f | D190: #30C6 | E190: 2.2GY 7.3/5.5 | G190: greyish green | H190: 182 | I190: 188 | J190: 111 | K190: =SQRT((H190-$D$2)^2+(I190-$E$2)^2+(J190-$F$2)^2) -> 43.78355856
B191: 782 | C191: #9e9c9a | D191: #17D2 | E191: 9.5YR 6.3/0.2 | F191: Violet Grey | G191: violet grey | H191: 158 | I191: 156 | J191: 154 | K191: =SQRT((H191-$D$2)^2+(I191-$E$2)^2+(J191-$F$2)^2) -> 43.8634244
B192: 829 | C192: #9d9d9a | D192: #18D2 | E192: 0.87GY 6.4/0.21 | G192: violet grey | H192: 157 | I192: 157 | J192: 154 | K192: =SQRT((H192-$D$2)^2+(I192-$E$2)^2+(J192-$F$2)^2) -> 43.93176527
B193: 859 | C193: #b5b7c5 | D193: #19B3 | E193: 8.1PB 7.4/2.4 | G193: greyish violet | H193: 181 | I193: 183 | J193: 197 | K193: =SQRT((H193-$D$2)^2+(I193-$E$2)^2+(J193-$F$2)^2) -> 44.03407771
B194: 548 | C194: #9c9e95 | D194: #12D1 | E194: 4.3GY 6.4/0.64 | G194: grey | H194: 156 | I194: 158 | J194: 149 | K194: =SQRT((H194-$D$2)^2+(I194-$E$2)^2+(J194-$F$2)^2) -> 44.32832052
B195: 249 | C195: #e0cab2 | D195: #6B2 | E195: 8.4YR 8.2/2.4 | F195: Birch Bark | G195: orange grey | H195: 224 | I195: 202 | J195: 178 | K195: =SQRT((H195-$D$2)^2+(I195-$E$2)^2+(J195-$F$2)^2) -> 44.58699362
B196: 435 | C196: #dc9999 | D196: #10B4 | E196: 3.1R 6.9/6.2 | F196: Aurora | G196: dull red | H196: 220 | I196: 153 | J196: 153 | K196: =SQRT((H196-$D$2)^2+(I196-$E$2)^2+(J196-$F$2)^2) -> 44.60941605
B197: 1330 | C197: #d1d3ba | D197: #29B2 | E197: 2.9GY 8.3/1.5 | G197: greenish grey | H197: 209 | I197: 211 | J197: 186 | K197: =SQRT((H197-$D$2)^2+(I197-$E$2)^2+(J197-$F$2)^2) -> 44.83302354
B198: 1331 | C198: #d1d3ba | D198: #29B1 | E198: 2.9GY 8.3/1.5 | G198: grey | H198: 209 | I198: 211 | J198: 186 | K198: =SQRT((H198-$D$2)^2+(I198-$E$2)^2+(J198-$F$2)^2) -> 44.83302354
B199: 1158 | C199: #98a297 | D199: #25D2 | E199: 10GY 6.5/1 | G199: greenish grey | H199: 152 | I199: 162 | J199: 151 | K199: =SQRT((H199-$D$2)^2+(I199-$E$2)^2+(J199-$F$2)^2) -> 45.04442252
B200: 1102 | C200: #95b0aa | D200: #24C3 | E200: 3.8BG 6.9/1.8 | G200: greyish turquoise | H200: 149 | I200: 176 | J200: 170 | K200: =SQRT((H200-$D$2)^2+(I200-$E$2)^2+(J200-$F$2)^2) -> 45.13313639
B201: 1142 | C201: #c4d0c1 | D201: #25B2 | E201: 9.6GY 8.2/1.2 | G201: greenish grey | H201: 196 | I201: 208 | J201: 193 | K201: =SQRT((H201-$D$2)^2+(I201-$E$2)^2+(J201-$F$2)^2) -> 45.17742799
B202: 1392 | C202: #9d9f8b | D202: #30D3 | E202: 2.3GY 6.4/1.4 | F202: Lavendar/Celadon Green | G202: dull green | H202: 157 | I202: 159 | J202: 139 | K202: =SQRT((H202-$D$2)^2+(I202-$E$2)^2+(J202-$F$2)^2) -> 45.19955752
... 1213 more rows

Sheet Rayner-Ridgeway
A1: Find nearest colour | B1: Hex | C1: Std notation | D1: R calc | E1: G calc | F1: B calc | K1: Rayner, R.W. (1970) A Mycological colour chart. Commonwealth Mycological Institute, Kew, Surrey & British Mycological Society.
A2: Paste hex code -> | B2: beba9a | C2: ="#" & SUBSTITUTE(B2,"#","") -> #beba9a | D2: =HEX2DEC(MID(C2,2,2)) -> 190 | E2: =HEX2DEC(MID(C2,4,2)) -> 186 | F2: =HEX2DEC(MID(C2,6,2)) -> 154 | K2: This is the Rayner concordance between Munsell and the copy of Ridgeway held by the Commonwealth Mycological Institute
K3: It is not the subset of named chips in Rayner - but they should also correspond
K4: Note that Rayner's list includes duplicate codes for different colour names and some typographical errors
A5: Colour | B5: Hex code | C5: Name | D5: Ridgeway code | E5: Munsell code | F5: R | G5: G | H5: B | I5: Calc Distance
B6: #C3BB9E | C6: Olive-Buff | D6: 21"'d | E6: 5Y 7.5/2 | F6: 194.98538 | G6: 186.614093 | H6: 158.464267 | I6: =SQRT((F6-$D$2)^2+(G6-$E$2)^2+(H6-$F$2)^2) -> 6.720178852
B7: #BCC991 | C7: Glass Green | D7: 29"d | E7: 5GY 7.8/4 | F7: 188.340718 | G7: 200.640041 | H7: 144.744608 | I7: =SQRT((F7-$D$2)^2+(G7-$E$2)^2+(H7-$F$2)^2) -> 17.39960627
B8: #B5C792 | C8: Light Turtle Green | D8: 31”d | E8: 6GY 7.7/4 | F8: 181.135262 | G8: 198.973326 | H8: 145.5259 | I8: =SQRT((F8-$D$2)^2+(G8-$E$2)^2+(H8-$F$2)^2) -> 17.85220261
B9: #AFC598 | C9: Light Fluorite Green | D9: 33”d | E9: 7GY 7.6/3.5 | F9: 175.178999 | G9: 196.522598 | H9: 151.8061 | I9: =SQRT((F9-$D$2)^2+(G9-$E$2)^2+(H9-$F$2)^2) -> 18.30847718
B10: #B6AFA7 | C10: Pale Drab-Gray | D10: 17""f | E10: 10YR 7.1/0.8 | F10: 182.116471 | G10: 175.073541 | H10: 166.544973 | I10: =SQRT((F10-$D$2)^2+(G10-$E$2)^2+(H10-$F$2)^2) -> 18.40961388
B11: #B6B3A9 | C11: Pale Smoke Gray | D11: 21""f | E11: 4.5Y 7.2/0.7 | F11: 182.052194 | G11: 178.571491 | H11: 168.925931 | I11: =SQRT((F11-$D$2)^2+(G11-$E$2)^2+(H11-$F$2)^2) -> 18.46980732
B12: #ADB397 | C12: Water Green | D12: 25"’d | E12: 5GY 7.1/2 | F12: 172.729455 | G12: 179.374456 | H12: 150.955352 | I12: =SQRT((F12-$D$2)^2+(G12-$E$2)^2+(H12-$F$2)^2) -> 18.7467181
B13: #BFA692 | C13: Vinaceous -Buff | D13: 17"'d | E13: 7YR 6.9/2.5 | F13: 191.209154 | G13: 166.395598 | H13: 146.255166 | I13: =SQRT((F13-$D$2)^2+(G13-$E$2)^2+(H13-$F$2)^2) -> 21.11343375
B14: #B4A9A3 | C14: Pale Ecru-Drab | D14: 13""f | E14: 4YR 6.9/1 | F14: 180.05741 | G14: 168.646561 | H14: 162.770154 | I14: =SQRT((F14-$D$2)^2+(G14-$E$2)^2+(H14-$F$2)^2) -> 21.83832737
B15: #B9AEAC | C15: Pallid Browinish Drab | D15: 9''''f | E15: 7.5R 7.1/1 | F15: 184.559225 | G15: 173.730012 | H15: 171.902509 | I15: =SQRT((F15-$D$2)^2+(G15-$E$2)^2+(H15-$F$2)^2) -> 22.37530931
B16: #BAA49B | C16: Light Vinaceous-Fawn | D16: 13"'d | E16: 2.0YR 6.8/2 | F16: 186.06976 | G16: 163.622294 | H16: 154.656868 | I16: =SQRT((F16-$D$2)^2+(G16-$E$2)^2+(H16-$F$2)^2) -> 22.72971596
B17: #C5CA89 | C17: Deep Seafoam Green | D17: 27”d | E17: 2.5GY 7.9/4.5 | F17: 196.506258 | G17: 202.417866 | H17: 137.488695 | I17: =SQRT((F17-$D$2)^2+(G17-$E$2)^2+(H17-$F$2)^2) -> 24.17645363
B18: #B6AA89 | C18: Deep Olive-Buff | D18: 21"'b | E18: 4.5Y 6.9/2.5 | F18: 181.589994 | G18: 170.47708 | H18: 137.430106 | I18: =SQRT((F18-$D$2)^2+(G18-$E$2)^2+(H18-$F$2)^2) -> 24.21261311
B19: #C4D191 | C19: Light Dull Green-Yellow | D19: 27'd | E19: 5GY 8.1/4.5 | F19: 195.754302 | G19: 209.33686 | H19: 145.449889 | I19: =SQRT((F19-$D$2)^2+(G19-$E$2)^2+(H19-$F$2)^2) -> 25.51128033
B20: #CAABAD | C20: Light Brownish Vinaceous | D20: 5”’d | E20: 1.5R 7.2/3 | F20: 201.727487 | G20: 171.477369 | H20: 172.608834 | I20: =SQRT((F20-$D$2)^2+(G20-$E$2)^2+(H20-$F$2)^2) -> 26.35772117
B21: #ACB1AC | C21: Light Mineral Gray | D21: 25"”f | E21: 10GY 7.1/0.5 | F21: 172.404228 | G21: 177.498522 | H21: 171.778805 | I21: =SQRT((F21-$D$2)^2+(G21-$E$2)^2+(H21-$F$2)^2) -> 26.41916402
B22: #C1D597 | C22: Light Lumiere Green | D22: 29’d | E22: 6GY 8.2/4.5 | F22: 193.374874 | G22: 213.203882 | H22: 151.042051 | I22: =SQRT((F22-$D$2)^2+(G22-$E$2)^2+(H22-$F$2)^2) -> 27.57155115
B23: #AFD092 | C23: Veronese Green | D23: 31'd | E23: 7.5GY 7.9/5 | F23: 174.508175 | G23: 207.713863 | H23: 145.641695 | I23: =SQRT((F23-$D$2)^2+(G23-$E$2)^2+(H23-$F$2)^2) -> 27.95263406
B24: #BCBBB6 | C24: Pale Olive-Gray | D24: 23"'"f | E24: 7.5Y 7.5/0.3 | F24: 187.513581 | G24: 186.680232 | H24: 182.160536 | I24: =SQRT((F24-$D$2)^2+(G24-$E$2)^2+(H24-$F$2)^2) -> 28.27827404
B25: #C3B8B6 | C25: Pallid Vinaceous-Drab | D25: 5""’f | E25: 9R 7.5/1 | F25: 194.531167 | G25: 184.481453 | H25: 182.106122 | I25: =SQRT((F25-$D$2)^2+(G25-$E$2)^2+(H25-$F$2)^2) -> 28.50949935
B26: #C09D9B | C26: Light Grayish Vinaceous | D26: 9"’d | E26: 5R 6.7/3.2 | F26: 192.193923 | G26: 157.433498 | H26: 154.886461 | I26: =SQRT((F26-$D$2)^2+(G26-$E$2)^2+(H26-$F$2)^2) -> 28.66433582
B27: #D5A995 | C27: Vinaceous-Pink | D27: 9"d | E27: 2.5YR 7.2/4 | F27: 213.112633 | G27: 169.416246 | H27: 148.698344 | I27: =SQRT((F27-$D$2)^2+(G27-$E$2)^2+(H27-$F$2)^2) -> 28.93652117
B28: #A3BA90 | C28: Olivine | D28: 35"d | E28: 7.5GY 7.2/3.5 | F28: 162.823504 | G28: 186.188414 | H28: 143.957908 | I28: =SQRT((F28-$D$2)^2+(G28-$E$2)^2+(H28-$F$2)^2) -> 28.97310902
B29: #D9BAA5 | C29: Light Ochraceous-Salmon | D29: 13'd | E29: 5YR 7.7/3 | F29: 217.050925 | G29: 186.025875 | H29: 164.984269 | I29: =SQRT((F29-$D$2)^2+(G29-$E$2)^2+(H29-$F$2)^2) -> 29.19601648
B30: #B0CDAB | C30: Oural Green | D30: 35'f | E30: 10GY 7.9/3 | F30: 176.210871 | G30: 205.337244 | H30: 171.302953 | I30: =SQRT((F30-$D$2)^2+(G30-$E$2)^2+(H30-$F$2)^2) -> 29.38471144
B31: #D0A490 | C31: Light Congo Pink | D31: 7"d | E31: 2.5YR 7/4 | F31: 207.624554 | G31: 164.175761 | H31: 143.758164 | I31: =SQRT((F31-$D$2)^2+(G31-$E$2)^2+(H31-$F$2)^2) -> 29.86331389
B32: #CFA48F | C32: Buff-Pink | D32: 11"d | E32: 3YR 7/4 | F32: 207.328608 | G32: 164.399686 | H32: 142.621681 | I32: =SQRT((F32-$D$2)^2+(G32-$E$2)^2+(H32-$F$2)^2) -> 29.93860991
B33: #AFA098 | C33: Ecru-Drab | D33: 13""d | E33: 4YR 6.6/1.3 | F33: 174.954091 | G33: 160.133749 | H33: 152.438788 | I33: =SQRT((F33-$D$2)^2+(G33-$E$2)^2+(H33-$F$2)^2) -> 29.96464085
B34: #A1B395 | C34: Corydalis Green | D34: 29'"d | E34: 8GY 7/2.5 | F34: 160.582296 | G34: 179.282661 | H34: 149.306674 | I34: =SQRT((F34-$D$2)^2+(G34-$E$2)^2+(H34-$F$2)^2) -> 30.53770228
B35: #ADA196 | C35: Drab-Gray | D35: 17""d | E35: 9YR 6.6/1.2 | F35: 172.536997 | G35: 161.213829 | H35: 149.714543 | I35: =SQRT((F35-$D$2)^2+(G35-$E$2)^2+(H35-$F$2)^2) -> 30.62149389
B36: #B6CBB3 | C36: Glaucous/Pale Olivine | D36: 29"’f | E36: 10GY 7.9/2 | F36: 182.456038 | G36: 203.042911 | H36: 179.224548 | I36: =SQRT((F36-$D$2)^2+(G36-$E$2)^2+(H36-$F$2)^2) -> 31.36319499
B37: #C49FA8 | C37: Light Purplish Vinaceous | D37: 1’"d | E37: 6RP 6.8/4 | F37: 195.576845 | G37: 158.555575 | H37: 168.387695 | I37: =SQRT((F37-$D$2)^2+(G37-$E$2)^2+(H37-$F$2)^2) -> 31.48497151
B38: #C8D2AC | C38: Pale Turtle Green | D38: 31"f | E38: 5.5GY 8.2/2.5 | F38: 200.217522 | G38: 209.726149 | H38: 172.038781 | I38: =SQRT((F38-$D$2)^2+(G38-$E$2)^2+(H38-$F$2)^2) -> 31.50754707
B39: #A8A5A3 | C39: Pale Mouse Gray | D39: 15"’"d | E39: 2.5YR 6.7/0.3 | F39: 168.472801 | G39: 164.833107 | H39: 163.413959 | I39: =SQRT((F39-$D$2)^2+(G39-$E$2)^2+(H39-$F$2)^2) -> 31.62404592
B40: #B2AFB5 | C40: Pallid Purplish Gray | D40: 67'''''f | E40: 5P 7.1/1.2 | F40: 178.366705 | G40: 174.671399 | H40: 181.331614 | I40: =SQRT((F40-$D$2)^2+(G40-$E$2)^2+(H40-$F$2)^2) -> 31.79131764
B41: #B1AFB5 | C41: Lilac-Gray | D41: 59"'"f | E41: 2.5P 7.1/1 | F41: 176.9712 | G41: 175.139324 | H41: 181.002711 | I41: =SQRT((F41-$D$2)^2+(G41-$E$2)^2+(H41-$F$2)^2) -> 31.88809047
B42: #DEB996 | C42: Light Pinkish Cinnamon | D42: 15"d | E42: 7.5YR 7.7/4 | F42: 221.906651 | G42: 185.468169 | H42: 150.4162 | I42: =SQRT((F42-$D$2)^2+(G42-$E$2)^2+(H42-$F$2)^2) -> 32.11169327
B43: #B0A2AA | C43: Light Vinaceous-Gray | D43: 69""f | E43: 1.5RP 6.7/2 | F43: 175.971317 | G43: 161.70716 | H43: 169.706151 | I43: =SQRT((F43-$D$2)^2+(G43-$E$2)^2+(H43-$F$2)^2) -> 32.15010422
B44: #D0BCB5 | C44: Pale Grayish Vinaceous | D44: 9"’f | E44: 1YR 7.7/2 | F44: 208.034953 | G44: 187.732998 | H44: 180.609347 | I44: =SQRT((F44-$D$2)^2+(G44-$E$2)^2+(H44-$F$2)^2) -> 32.19192693
B45: #C1B8BA | C45: Pallid Purple-Drab | D45: l''''f | E45: 7.5RP 7.5/1.1 | F45: 193.194153 | G45: 184.491106 | H45: 186.033751 | I45: =SQRT((F45-$D$2)^2+(G45-$E$2)^2+(H45-$F$2)^2) -> 32.22794715
B46: #9EB497 | C46: Deep Lichen Green | D46: 37"d | E46: 9GY 7/2.5 | F46: 158.419073 | G46: 179.678208 | H46: 151.247678 | I46: =SQRT((F46-$D$2)^2+(G46-$E$2)^2+(H46-$F$2)^2) -> 32.32483999
B47: #B0AFB5 | C47: French Gray | D47: 49”"'f | E47: 10PB 7.1/1 | F47: 175.805233 | G47: 175.465783 | H47: 181.261715 | I47: =SQRT((F47-$D$2)^2+(G47-$E$2)^2+(H47-$F$2)^2) -> 32.49095632
B48: #DEBD96 | C48: Pinkish Buff | D48: 17"d | E48: 9YR 7.8/4 | F48: 222.13303 | G48: 189.341591 | H48: 149.577391 | I48: =SQRT((F48-$D$2)^2+(G48-$E$2)^2+(H48-$F$2)^2) -> 32.60762668
B49: #B4B9B9 | C49: Pearl Gray | D49: 35'''''f | E49: 10BG 7.4/0.4 | F49: 179.689064 | G49: 184.99357 | H49: 185.107537 | I49: =SQRT((F49-$D$2)^2+(G49-$E$2)^2+(H49-$F$2)^2) -> 32.78730182
B50: #A2CB9B | C50: Tiber Green | D50: 33'd | E50: 10GY 7.7/4.5 | F50: 161.804124 | G50: 203.031994 | H50: 154.970701 | I50: =SQRT((F50-$D$2)^2+(G50-$E$2)^2+(H50-$F$2)^2) -> 32.95509829
B51: #D8C88B | C51: Colonial Buff | D51: 21"d | E51: 5Y 8/4.5 | F51: 215.861353 | G51: 199.993802 | H51: 138.506761 | I51: =SQRT((F51-$D$2)^2+(G51-$E$2)^2+(H51-$F$2)^2) -> 33.23667444
B52: #9EB6A4 | C52: Glaucous-Green | D52: 39"d | E52: 2.5G 7.1/2 | F52: 158.136339 | G52: 182.127714 | H52: 164.082325 | I52: =SQRT((F52-$D$2)^2+(G52-$E$2)^2+(H52-$F$2)^2) -> 33.64432744
B53: #AF9C9C | C53: Pale Vinaceous-Drab | D53: 5""d | E53: 2.5R 6.5/1.8 | F53: 174.513541 | G53: 156.109601 | H53: 156.194263 | I53: =SQRT((F53-$D$2)^2+(G53-$E$2)^2+(H53-$F$2)^2) -> 33.73545842
B54: #BFD8AA | C54: Pale Tiber Green | D54: 33'f | E54: 7.5GY 8.3/3.5 | F54: 191.459333 | G54: 215.941626 | H54: 169.542364 | I54: =SQRT((F54-$D$2)^2+(G54-$E$2)^2+(H54-$F$2)^2) -> 33.76678396
B55: #A3A79F | C55: Mineral Gray | D55: 25""d | E55: 7.5GY 6.7/0.6 | F55: 162.556681 | G55: 167.037771 | H55: 159.365679 | I55: =SQRT((F55-$D$2)^2+(G55-$E$2)^2+(H55-$F$2)^2) -> 33.7859793
B56: #BBA8B7 | C56: Vinaceous-Lavender | D56: 65”’f | E56: 9P 7/3 | F56: 186.805113 | G56: 167.948162 | H56: 182.67546 | I56: =SQRT((F56-$D$2)^2+(G56-$E$2)^2+(H56-$F$2)^2) -> 34.03466122
B57: #D4A788 | C57: Light Vinaceous-Cinnamon | D57: 13"d | E57: 5YR 7.1/4.5 | F57: 212.002902 | G57: 167.027287 | H57: 135.794951 | I57: =SQRT((F57-$D$2)^2+(G57-$E$2)^2+(H57-$F$2)^2) -> 34.28578924
B58: #B0C9B6 | C58: Greenish Glaucous | D58: 33"'f | E58: 2.5G 7.8/2 | F58: 175.674769 | G58: 200.972319 | H58: 181.642921 | I58: =SQRT((F58-$D$2)^2+(G58-$E$2)^2+(H58-$F$2)^2) -> 34.54726705
B59: #AED185 | C59: Viridine Green | D59: 33d | E59: 7GY 7.9/6 | F59: 173.69395 | G59: 208.719918 | H59: 132.984963 | I59: =SQRT((F59-$D$2)^2+(G59-$E$2)^2+(H59-$F$2)^2) -> 34.98161975
B60: #D2ACB3 | C60: Pale Vinaceous | D60: 1"f | E60: 7.5RP 7.3/4 | F60: 209.852553 | G60: 171.590748 | H60: 179.056243 | I60: =SQRT((F60-$D$2)^2+(G60-$E$2)^2+(H60-$F$2)^2) -> 35.06516387
B61: #D4C6B4 | C61: Tilleul Buff | D61: 17''' | E61: 10YR 8/1.63 | F61: 211.536913 | G61: 198.106263 | H61: 179.711743 | I61: =SQRT((F61-$D$2)^2+(G61-$E$2)^2+(H61-$F$2)^2) -> 35.65801387
B62: #D4A0A6 | C62: Corinthian Pink | D62: 3"d | E62: 10RP 7/5 | F62: 211.911361 | G62: 160.139464 | H62: 165.678575 | I62: =SQRT((F62-$D$2)^2+(G62-$E$2)^2+(H62-$F$2)^2) -> 35.85058127
B63: #C3BFBD | C63: Pallid Mouse Gray | D63: 151'''''f | E63: 5YR 7.7/0.3 | F63: 194.571945 | G63: 191.239892 | H63: 189.24563 | I63: =SQRT((F63-$D$2)^2+(G63-$E$2)^2+(H63-$F$2)^2) -> 35.92511076
B64: #C8CDB7 | C64: Yellowish Glaucous | D64: 25"'f | E64: 5GY 8.1/1.4 | F64: 200.447527 | G64: 205.027443 | H64: 182.758704 | I64: =SQRT((F64-$D$2)^2+(G64-$E$2)^2+(H64-$F$2)^2) -> 36.03134002
B65: #A5ACB0 | C65: Light Gull Gray | D65: *9 | E65: 10B 6.9/1 | F65: 164.912794 | G65: 171.874145 | H65: 176.147381 | I65: =SQRT((F65-$D$2)^2+(G65-$E$2)^2+(H65-$F$2)^2) -> 36.32374113
B66: #D09B9C | C66: Pinkish Vinaceous | D66: 5"d | E66: 2.5R 6.8/5 | F66: 208.291592 | G66: 154.641015 | H66: 155.631697 | I66: =SQRT((F66-$D$2)^2+(G66-$E$2)^2+(H66-$F$2)^2) -> 36.34048312
B67: #B6A6B7 | C67: Dull Lavender | D67: 61"'f | E67: 7P 6.9/3.2 | F67: 182.40512 | G67: 165.523779 | H67: 183.459111 | I67: =SQRT((F67-$D$2)^2+(G67-$E$2)^2+(H67-$F$2)^2) -> 36.6714746
B68: #DFC58E | C68: Cream-Buff | D68: 19"d | E68: 2.5Y 8/4.5 | F68: 222.855437 | G68: 197.33365 | H68: 142.149869 | I68: =SQRT((F68-$D$2)^2+(G68-$E$2)^2+(H68-$F$2)^2) -> 36.71998049
B69: #B0A8B7 | C69: Grayish Lavender | D69: 57"'f | E69: 5P 6.9/2.5 | F69: 176.261022 | G69: 167.646652 | H69: 182.81967 | I69: =SQRT((F69-$D$2)^2+(G69-$E$2)^2+(H69-$F$2)^2) -> 36.82632589
B70: #AECDB5 | C70: Dull Opaline Green | D70: 37'f | E70: 2.5G 7.9/2.5 | F70: 173.927104 | G70: 205.011224 | H70: 181.345208 | I70: =SQRT((F70-$D$2)^2+(G70-$E$2)^2+(H70-$F$2)^2) -> 36.98006253
B71: #9FAEAB | C71: Court Gray | D71: 29''''f | E71: 5BG 6.9/1 | F71: 159.346925 | G71: 173.941538 | H71: 171.369905 | I71: =SQRT((F71-$D$2)^2+(G71-$E$2)^2+(H71-$F$2)^2) -> 37.23883876
B72: #D2BABA | C72: Pale Brownish Vinaceous | D72: 5"'f | E72: 2.5R 7.7/2.5 | F72: 210.090457 | G72: 186.414087 | H72: 186.321059 | I72: =SQRT((F72-$D$2)^2+(G72-$E$2)^2+(H72-$F$2)^2) -> 38.05849163
B73: #A7C4B7 | C73: Lichen Green | D73: 37”f | E73: 7.5G 7.6/2 | F73: 167.025104 | G73: 195.874836 | H73: 182.762795 | I73: =SQRT((F73-$D$2)^2+(G73-$E$2)^2+(H73-$F$2)^2) -> 38.11373254
B74: #A3A6AB | C74: Pallid Neutral Gray | D74: NG.f | E74: 5PB 6.7/1 | F74: 162.546316 | G74: 165.771405 | H74: 171.250482 | I74: =SQRT((F74-$D$2)^2+(G74-$E$2)^2+(H74-$F$2)^2) -> 38.21622627
B75: #CBA6B8 | C75: Pale Laelia Pink | D75: 67"f | E75: 2.5RP 7.1/4.5 | F75: 202.758869 | G75: 165.793638 | H75: 184.140878 | I75: =SQRT((F75-$D$2)^2+(G75-$E$2)^2+(H75-$F$2)^2) -> 38.46502736
B76: #ACB678 | C76: Chrysolite Green | D76: 27"b | E76: 3.5GY 7.1/4.5 | F76: 172.331067 | G76: 181.801703 | H76: 119.900836 | I76: =SQRT((F76-$D$2)^2+(G76-$E$2)^2+(H76-$F$2)^2) -> 38.6337919
B77: #B89B83 | C77: Avellaneous | D77: 17"'b | E77: 7YR 6.5/3 | F77: 184.155477 | G77: 155.018959 | H77: 131.421059 | I77: =SQRT((F77-$D$2)^2+(G77-$E$2)^2+(H77-$F$2)^2) -> 38.77875613
B78: #DAC4B3 | C78: Pale Pinkish Cinnamon | D78: 15"f | E78: 6YR 8/2.2 | F78: 218.040339 | G78: 195.972217 | H78: 178.988812 | I78: =SQRT((F78-$D$2)^2+(G78-$E$2)^2+(H78-$F$2)^2) -> 38.86060278
B79: #DCC785 | C79: Naples Yellow | D79: 19'd | E79: 4Y 8/5 | F79: 220.389503 | G79: 198.80445 | H79: 133.150001 | I79: =SQRT((F79-$D$2)^2+(G79-$E$2)^2+(H79-$F$2)^2) -> 39.01535968
B80: #A89DA8 | C80: Light Heliotrope-Gray | D80: 65""f | E80: 7P 6.5/2 | F80: 167.604141 | G80: 157.107001 | H80: 168.131108 | I80: =SQRT((F80-$D$2)^2+(G80-$E$2)^2+(H80-$F$2)^2) -> 39.19270474
B81: #C1CD77 | C81: Clear Dull Green Yellow | D81: 27’b | E81: 3.5GY 7.9/6 | F81: 192.869945 | G81: 204.547831 | H81: 119.146865 | I81: =SQRT((F81-$D$2)^2+(G81-$E$2)^2+(H81-$F$2)^2) -> 39.58534626
B82: #CBB5BF | C82: Pale Vinaceous-Lilac | D82: 69'"f | E82: 2.5RP 7.5/3 | F82: 202.937489 | G82: 180.63138 | H82: 191.207599 | I82: =SQRT((F82-$D$2)^2+(G82-$E$2)^2+(H82-$F$2)^2) -> 39.75683747
B83: #E4C08F | C83: Light Ochraceous-Buff | D83: 15'd | E83: 9.5YR 7.9/4.7 | F83: 227.876025 | G83: 191.566223 | H83: 143.057338 | I83: =SQRT((F83-$D$2)^2+(G83-$E$2)^2+(H83-$F$2)^2) -> 39.81605154
B84: #B9C9BF | C84: Pale Glaucous-Green | D84: 39"f | E84: 4G 7.9/1.2 | F84: 184.662995 | G84: 201.366504 | H84: 190.575082 | I84: =SQRT((F84-$D$2)^2+(G84-$E$2)^2+(H84-$F$2)^2) -> 40.02936036
B85: #CDC576 | C85: Reed Yellow | D85: 23"b | E85: 9Y 7.8/5.5 | F85: 204.728942 | G85: 197.425754 | H85: 118.463617 | I85: =SQRT((F85-$D$2)^2+(G85-$E$2)^2+(H85-$F$2)^2) -> 40.12884379
B86: #B0ABBC | C86: Pale Aniline Lilac | D86: 53"f | E86: 2P 7/2.7 | F86: 175.691425 | G86: 170.929319 | H86: 188.354725 | I86: =SQRT((F86-$D$2)^2+(G86-$E$2)^2+(H86-$F$2)^2) -> 40.15106318
B87: #C9D4B6 | C87: Pale Fluorite Green | D87: 33"f | E87: 6.5GY 8.3/2 | F87: 200.967436 | G87: 212.300269 | H87: 182.443594 | I87: =SQRT((F87-$D$2)^2+(G87-$E$2)^2+(H87-$F$2)^2) -> 40.26197762
B88: #AFAFBE | C88: Plumbago Blue | D88: 53"'f | E88: 10PB 7.1/2.5 | F88: 175.398737 | G88: 174.546027 | H88: 190.225951 | I88: =SQRT((F88-$D$2)^2+(G88-$E$2)^2+(H88-$F$2)^2) -> 40.70270144
B89: #97B8A6 | C89: Deep Greenish Glaucous | D89: 33”'d | E89: 5G 7.1/2.5 | F89: 150.97846 | G89: 183.717117 | H89: 165.701083 | I89: =SQRT((F89-$D$2)^2+(G89-$E$2)^2+(H89-$F$2)^2) -> 40.80205243
B90: #9EAAAF | C90: Puritan Gray | D90: 33""f | E90: 7.5B 6.8/1.3 | F90: 158.411026 | G90: 170.206689 | H90: 174.803466 | I90: =SQRT((F90-$D$2)^2+(G90-$E$2)^2+(H90-$F$2)^2) -> 40.98873197
B91: #D096A3 | C91: Vinaceous | D91: 1"d | E91: 7.5RP 6.7/5.7 | F91: 207.569123 | G91: 150.012466 | H91: 162.75332 | I91: =SQRT((F91-$D$2)^2+(G91-$E$2)^2+(H91-$F$2)^2) -> 40.99264931
B92: #C3B3C2 | C92: Pale Lobelia Violet | D92: 61"f | E92: 7.5P 7.4/3 | F92: 195.296657 | G92: 179.017331 | H92: 194.495033 | I92: =SQRT((F92-$D$2)^2+(G92-$E$2)^2+(H92-$F$2)^2) -> 41.43259513
B93: #B5929E | C93: Light Vinaceous-Lilac | D93: 69"'d | E93: 4.5RP 6.3/4 | F93: 181.281539 | G93: 145.566561 | H93: 158.231509 | I93: =SQRT((F93-$D$2)^2+(G93-$E$2)^2+(H93-$F$2)^2) -> 41.57860291
B94: #D4C5BC | C94: Pale Vinaceous-Fawn | D94: 13"'f | E94: 5YR 8/1.4 | F94: 211.637463 | G94: 197.279686 | H94: 187.812899 | I94: =SQRT((F94-$D$2)^2+(G94-$E$2)^2+(H94-$F$2)^2) -> 41.69800067
B95: #D6B1BB | C95: Pale Persian Lilac | D95: 69"f | E95: 5.5RP 7.5/4 | F95: 213.56685 | G95: 177.161589 | H95: 187.31391 | I95: =SQRT((F95-$D$2)^2+(G95-$E$2)^2+(H95-$F$2)^2) -> 41.75320979
B96: #C8C1C2 | C96: Pallid Quaker Drab | D96: 1'''''f | E96: 7.5RP 7.8/1 | F96: 200.118485 | G96: 192.755936 | H96: 194.038116 | I96: =SQRT((F96-$D$2)^2+(G96-$E$2)^2+(H96-$F$2)^2) -> 41.84587366
B97: #B1C8BF | C97: Pale Niagara Green | D97: 41"f | E97: 10G 7.8/1.5 | F97: 176.936429 | G97: 199.692244 | H97: 191.394571 | I97: =SQRT((F97-$D$2)^2+(G97-$E$2)^2+(H97-$F$2)^2) -> 41.91048047
B98: #A7AABA | C98: Lavender-Gray | D98: 49"'f | E98: 7.5PB 6.9/2.5 | F98: 166.951492 | G98: 170.191416 | H98: 185.556633 | I98: =SQRT((F98-$D$2)^2+(G98-$E$2)^2+(H98-$F$2)^2) -> 42.15407614
B99: #9FA0A6 | C99: Cinereous | D99: 49""'d | E99: 7.5PB 6.5/1 | F99: 158.969293 | G99: 160.057624 | H99: 166.065279 | I99: =SQRT((F99-$D$2)^2+(G99-$E$2)^2+(H99-$F$2)^2) -> 42.20761314
B100: #9F9F92 | C100: Light Olive-Gray | D100: 23"'"d | E100: 1GY 6.4/0.9 | F100: 158.539687 | G100: 158.653496 | H100: 145.715265 | I100: =SQRT((F100-$D$2)^2+(G100-$E$2)^2+(H100-$F$2)^2) -> 42.49964011
B101: #AFB2C1 | C101: Pearl Blue | D101: 49"f | E101: 7.5PB 7.2/2.5 | F101: 174.801725 | G101: 178.100051 | H101: 193.189468 | I101: =SQRT((F101-$D$2)^2+(G101-$E$2)^2+(H101-$F$2)^2) -> 42.76927822
B102: #CBCD76 | C102: Chalcedony Yellow | D102: 25'b | E102: 1.5GY 8/6 | F102: 202.680021 | G102: 205.376419 | H102: 118.039425 | I102: =SQRT((F102-$D$2)^2+(G102-$E$2)^2+(H102-$F$2)^2) -> 42.77138647
B103: #97B4AB | C103: Light Niagara Green | D103: 41"d | E103: 1BG 7/2 | F103: 150.949961 | G103: 179.737404 | H103: 170.550719 | I103: =SQRT((F103-$D$2)^2+(G103-$E$2)^2+(H103-$F$2)^2) -> 42.87250814
B104: #9CA7AE | C104: Pale Medici Blue | D104: 41""f | E104: 10B 6.7/1.5 | F104: 156.458449 | G104: 167.233038 | H104: 173.742079 | I104: =SQRT((F104-$D$2)^2+(G104-$E$2)^2+(H104-$F$2)^2) -> 43.20861245
B105: #A0A2AF | C105: Pale Viole-Plumbeous | D105: 53''''f | E105: 7.5PB 6.6/2 | F105: 160.070221 | G105: 162.428478 | H105: 174.630381 | I105: =SQRT((F105-$D$2)^2+(G105-$E$2)^2+(H105-$F$2)^2) -> 43.32459972
B106: #D8DD9F | C106: Light Chalcedony Yellow | D106: 25'd | E106: 2.5GY 8.6/4 | F106: 215.926282 | G106: 220.923782 | H106: 159.274131 | I106: =SQRT((F106-$D$2)^2+(G106-$E$2)^2+(H106-$F$2)^2) -> 43.81391452
B107: #9F9DA4 | C107: Light Plumbago Gray | D107: 61”"f | E107: 2.5P 6.4/1.2 | F107: 159.030446 | G107: 156.554764 | H107: 164.200747 | I107: =SQRT((F107-$D$2)^2+(G107-$E$2)^2+(H107-$F$2)^2) -> 43.93393264
B108: #A79498 | C108: Pale Purple-Drab | D108: 1""d | E108: 7.5RP 6.2/2 | F108: 166.599221 | G108: 147.961424 | H108: 151.627069 | I108: =SQRT((F108-$D$2)^2+(G108-$E$2)^2+(H108-$F$2)^2) -> 44.72315422
B109: #DCA481 | C109: Salmon Color | D109: 9'd | E109: 4YR 7.1/5.5 | F109: 220.207528 | G109: 164.051741 | H109: 129.160604 | I109: =SQRT((F109-$D$2)^2+(G109-$E$2)^2+(H109-$F$2)^2) -> 44.84658755
B110: #DFBAB8 | C110: Hydrangea Pink | D110: 5”f | E110: 3.5R 7.8/3.5 | F110: 223.039141 | G110: 185.770967 | H110: 184.386306 | I110: =SQRT((F110-$D$2)^2+(G110-$E$2)^2+(H110-$F$2)^2) -> 44.88836026
B111: #98B6B2 | C111: Bluish Glaucous | D111: 37"'f | E111: 6BG 7.1/2 | F111: 152.37916 | G111: 182.130365 | H111: 178.309753 | I111: =SQRT((F111-$D$2)^2+(G111-$E$2)^2+(H111-$F$2)^2) -> 44.95848939
B112: #A69592 | C112: Pale Brownish Drab | D112: 9""d | E112: 7.5R 6.2/1.5 | F112: 165.743956 | G112: 148.861681 | H112: 146.067898 | I112: =SQRT((F112-$D$2)^2+(G112-$E$2)^2+(H112-$F$2)^2) -> 45.06138758
B113: #D7D0B9 | C113: Pale Olive-Buff | D113: 21"'f | E113: 5Y 8.3/1.5 | F113: 214.533869 | G113: 208.00443 | H113: 185.238689 | I113: =SQRT((F113-$D$2)^2+(G113-$E$2)^2+(H113-$F$2)^2) -> 45.40882467
B114: #E6C387 | C114: Warm Buff | D114: 17’d | E114: 1Y 8/5.3 | F114: 230.290847 | G114: 195.110146 | H114: 134.976612 | I114: =SQRT((F114-$D$2)^2+(G114-$E$2)^2+(H114-$F$2)^2) -> 45.47786718
B115: #CB90A4 | C115: PersiIan Lilac | D115: 69"d | E115: 5RP 6.5/6.22 | F115: 203.079653 | G115: 143.524403 | H115: 164.121026 | I115: =SQRT((F115-$D$2)^2+(G115-$E$2)^2+(H115-$F$2)^2) -> 45.58167209
B116: #A7BCC2 | C116: Pale Glaucous-Blue | D116: 43"f | E116: 6B 7.4/2 | F116: 167.092285 | G116: 187.526799 | H116: 193.643729 | I116: =SQRT((F116-$D$2)^2+(G116-$E$2)^2+(H116-$F$2)^2) -> 45.81178637
B117: #E4C4B1 | C117: Pale Salmon Color | D117: 9'f | E117: 4YR 8.1/3 | F117: 228.401385 | G117: 196.332223 | H117: 177.06547 | I117: =SQRT((F117-$D$2)^2+(G117-$E$2)^2+(H117-$F$2)^2) -> 45.97213404
B118: #C38FA8 | C118: Laelia Pink | D118: 67”d | E118: 3RP 6.4/6 | F118: 194.925232 | G118: 142.547696 | H118: 168.313087 | I118: =SQRT((F118-$D$2)^2+(G118-$E$2)^2+(H118-$F$2)^2) -> 46.0133143
B119: #98A2A5 | C119: Glaucous -Gray | D119: 37""f | E119: 5B 6.5/1 | F119: 151.751839 | G119: 162.256954 | H119: 165.02249 | I119: =SQRT((F119-$D$2)^2+(G119-$E$2)^2+(H119-$F$2)^2) -> 46.34813199
B120: #C9B4C7 | C120: Pale Lilac | D120: 63"f | E120: 8P 7.5/3.5 | F120: 201.199085 | G120: 180.342134 | H120: 198.751513 | I120: =SQRT((F120-$D$2)^2+(G120-$E$2)^2+(H120-$F$2)^2) -> 46.47718654
B121: #C7CF71 | C121: Light Viridine Yellow | D121: 29d | E121: 2.5GY 8/6.5 | F121: 198.655969 | G121: 206.808963 | H121: 113.029375 | I121: =SQRT((F121-$D$2)^2+(G121-$E$2)^2+(H121-$F$2)^2) -> 46.76035557
B122: #E2C1B8 | C122: Pale Congo Pink | D122: 7"f | E122: 9R 8/3 | F122: 225.625701 | G122: 192.736996 | H122: 184.121239 | I122: =SQRT((F122-$D$2)^2+(G122-$E$2)^2+(H122-$F$2)^2) -> 47.13668132
B123: #A6C3C2 | C123: Etain Blue | D123: 43'f | E123: 8BG 7.6/2 | F123: 165.669584 | G123: 195.101615 | H123: 193.552375 | I123: =SQRT((F123-$D$2)^2+(G123-$E$2)^2+(H123-$F$2)^2) -> 47.32017441
B124: #9C9DA9 | C124: Rood's Lavender | D124: 57"’"f | E124: 8.5PB 6.4/2 | F124: 156.006792 | G124: 156.864631 | H124: 169.433711 | I124: =SQRT((F124-$D$2)^2+(G124-$E$2)^2+(H124-$F$2)^2) -> 47.35617544
B125: #AB9AB8 | C125: Deep Lavender | D125: 59"d | E125: 5P 6.5/4.5 | F125: 171.390044 | G125: 153.873073 | H125: 183.603611 | I125: =SQRT((F125-$D$2)^2+(G125-$E$2)^2+(H125-$F$2)^2) -> 47.48519438
B126: #D08E9D | C126: Rhodonite Pink | D126: 71"d | E126: 7.5RP 6.5/6.5 | F126: 207.929924 | G126: 142.020234 | H126: 157.372226 | I126: =SQRT((F126-$D$2)^2+(G126-$E$2)^2+(H126-$F$2)^2) -> 47.61379947
B127: #A5CBBF | C127: Microcline Green | D127: 39’f | E127: 1.5BG 7.8/2.5 | F127: 164.920038 | G127: 202.672011 | H127: 191.007606 | I127: =SQRT((F127-$D$2)^2+(G127-$E$2)^2+(H127-$F$2)^2) -> 47.71292641
B128: #90C89C | C128: Neuvider Green | D128: 37d | E128: 2G 7.5/5 | F128: 144.313688 | G128: 199.771652 | H128: 156.186349 | I128: =SQRT((F128-$D$2)^2+(G128-$E$2)^2+(H128-$F$2)^2) -> 47.76690931
B129: #E3B8B8 | C129: Venetian Pink | D129: 1'f | E129: 2.5R 7.8/4 | F129: 227.181905 | G129: 184.172609 | H129: 184.175599 | I129: =SQRT((F129-$D$2)^2+(G129-$E$2)^2+(H129-$F$2)^2) -> 47.92076995
B130: #C0DEBA | C130: Opaline Green | D130: 37f | E130: 10GY 8.5/3 | F130: 191.544923 | G130: 221.804059 | H130: 185.871063 | I130: =SQRT((F130-$D$2)^2+(G130-$E$2)^2+(H130-$F$2)^2) -> 47.95917102
B131: #E1DB97 | C131: Primrose Yellow | D131: 23"d | E131: 9Y 8.6/4.5 | F131: 224.919194 | G131: 218.780438 | H131: 150.692719 | I131: =SQRT((F131-$D$2)^2+(G131-$E$2)^2+(H131-$F$2)^2) -> 48.00880474
B132: #D6E0AA | C132: Pale Dull Green-Yellow | D132: 27’f | E132: 5GY 8.7/3.5 | F132: 213.802239 | G132: 224.447131 | H132: 170.263379 | I132: =SQRT((F132-$D$2)^2+(G132-$E$2)^2+(H132-$F$2)^2) -> 48.05440625
B133: #D8C573 | C133: Lumiere Green | D133: 29'b | E133: 5.5Y 7.9/6 | F133: 216.406694 | G133: 197.463223 | H133: 115.319456 | I133: =SQRT((F133-$D$2)^2+(G133-$E$2)^2+(H133-$F$2)^2) -> 48.21725266
B134: #CFE2AF | C134: Pale Yellow-Green | D134: 31f | E134: 6.5GY 8.7/3.5 | F134: 206.95019 | G134: 225.977343 | H134: 175.058984 | I134: =SQRT((F134-$D$2)^2+(G134-$E$2)^2+(H134-$F$2)^2) -> 48.25948302
B135: #90B88B | C135: Light Paris Green | D135: 35’d | E135: 10GY 7/4.5 | F135: 144.152245 | G135: 184.105011 | H135: 138.508291 | I135: =SQRT((F135-$D$2)^2+(G135-$E$2)^2+(H135-$F$2)^2) -> 48.43140169
B136: #EEBE9C | C136: Salmon-Buff | D136: 11'd | E136: 5YR 8/4.7 | F136: 238.26302 | G136: 190.426177 | H136: 155.915944 | I136: =SQRT((F136-$D$2)^2+(G136-$E$2)^2+(H136-$F$2)^2) -> 48.50341208
B137: #AAC1C6 | C137: Pale Dull Glaucous-Blue | D137: 41"’f | E137: 4B 7.6/2 | F137: 170.244474 | G137: 193.489953 | H137: 197.840587 | I137: =SQRT((F137-$D$2)^2+(G137-$E$2)^2+(H137-$F$2)^2) -> 48.66597653
B138: #B7B76A | C138: Citron Green | D138: 25"b | E138: 1GY 7.2/5.5 | F138: 182.801972 | G138: 183.128589 | H138: 105.93899 | I138: =SQRT((F138-$D$2)^2+(G138-$E$2)^2+(H138-$F$2)^2) -> 48.68179629
B139: #E09E84 | C139: Flesh Color | D139: 7'd | E139: 1YR 7/6 | F139: 223.775746 | G139: 158.047061 | H139: 132.264849 | I139: =SQRT((F139-$D$2)^2+(G139-$E$2)^2+(H139-$F$2)^2) -> 48.934493
B140: #E3C0B9 | C140: Flesh Pink | D140: 5’f | E140: 7.5R 8/3.2 | F140: 227.288929 | G140: 192.00832 | H140: 185.154075 | I140: =SQRT((F140-$D$2)^2+(G140-$E$2)^2+(H140-$F$2)^2) -> 48.96060176
B141: #9B979B | C141: Pale Quaker Drab | D141: 1”'"d | E141: 7.5P 6.2/0.7 | F141: 155.316386 | G141: 151.318182 | H141: 155.151426 | I141: =SQRT((F141-$D$2)^2+(G141-$E$2)^2+(H141-$F$2)^2) -> 49.06228044
B142: #989EA8 | C142: Gull Gray | D142: *8 | E142: 5PB 6.4/1.8 | F142: 152.052641 | G142: 158.160197 | H142: 168.303289 | I142: =SQRT((F142-$D$2)^2+(G142-$E$2)^2+(H142-$F$2)^2) -> 49.1898441
B143: #DFCDB9 | C143: Pale Pinkish Buff | D143: 17"f | E143: 8.5YR 8.3/2 | F143: 223.345458 | G143: 205.15674 | H143: 184.922564 | I143: =SQRT((F143-$D$2)^2+(G143-$E$2)^2+(H143-$F$2)^2) -> 49.34678532
B144: #BFBBCB | C144: Pale Verbena Violet | D144: 55"f | E144: 2P 7.6/2.7 | F144: 191.294334 | G144: 186.886058 | H144: 203.39684 | I144: =SQRT((F144-$D$2)^2+(G144-$E$2)^2+(H144-$F$2)^2) -> 49.42173814
B145: #9CA87A | C145: Light Grape Green | D145: 25"’b | E145: 5GY 6.6/3.5 | F145: 156.462448 | G145: 168.384007 | H145: 122.208846 | I145: =SQRT((F145-$D$2)^2+(G145-$E$2)^2+(H145-$F$2)^2) -> 49.45470732
B146: #D7E5A0 | C146: Pale Viriidine Yellow | D146: 29f | E146: 5GY 8.8/4.5 | F146: 214.863472 | G146: 228.590221 | H146: 159.852289 | I146: =SQRT((F146-$D$2)^2+(G146-$E$2)^2+(H146-$F$2)^2) -> 49.66254576
B147: #A98EA3 | C147: Purplish Lilac | D147: 65”d | E147: 9.5P 6.1/4 | F147: 168.768961 | G147: 141.939687 | H147: 163.00699 | I147: =SQRT((F147-$D$2)^2+(G147-$E$2)^2+(H147-$F$2)^2) -> 49.73121824
B148: #969C9D | C148: Dawn Grey | D148: 35""’d | E148: 10BG 6.3/0.5 | F148: 149.996076 | G148: 156.411283 | H148: 156.676048 | I148: =SQRT((F148-$D$2)^2+(G148-$E$2)^2+(H148-$F$2)^2) -> 49.82938232
B149: #EEB9A8 | C149: Safrano Pink | D149: 7f | E149: 10R 7.9/4.5 | F149: 237.934423 | G149: 185.444719 | H149: 168.10181 | I149: =SQRT((F149-$D$2)^2+(G149-$E$2)^2+(H149-$F$2)^2) -> 49.96877315
B150: #979EAA | C150: Pale Payne's Gray | D150: 49""f | E150: 5PB 6.4/2 | F150: 151.34612 | G150: 158.215588 | H150: 169.558519 | I150: =SQRT((F150-$D$2)^2+(G150-$E$2)^2+(H150-$F$2)^2) -> 50.08156849
B151: #99B079 | C151: Kildare Green | D151: 29”b | E151: 6.5GY 6.8/4.5 | F151: 153.084954 | G151: 176.324564 | H151: 121.376636 | I151: =SQRT((F151-$D$2)^2+(G151-$E$2)^2+(H151-$F$2)^2) -> 50.20576224
B152: #9A989E | C152: Pale Violet-Gray | D152: 59'''''d | E152: 2.5P 6.2/1 | F152: 153.634142 | G152: 151.522408 | H152: 157.97886 | I152: =SQRT((F152-$D$2)^2+(G152-$E$2)^2+(H152-$F$2)^2) -> 50.26938736
B153: #D7E0B0 | C153: Pale Lumiere Green | D153: 29'f | E153: 5GY 8.7/3 | F153: 214.537048 | G153: 223.762245 | H153: 176.437526 | I153: =SQRT((F153-$D$2)^2+(G153-$E$2)^2+(H153-$F$2)^2) -> 50.31397862
B154: #E5D997 | C154: Straw Yellow | D154: 21'd | E154: 6.5Y 8.6/4.5 | F154: 229.344284 | G154: 217.332225 | H154: 151.226466 | I154: =SQRT((F154-$D$2)^2+(G154-$E$2)^2+(H154-$F$2)^2) -> 50.37234854
B155: #D1B5C8 | C155: Light Pinkish Lilac | D155: 65"f | E155: 10P 7.6/4 | F155: 209.164202 | G155: 181.211502 | H155: 200.430639 | I155: =SQRT((F155-$D$2)^2+(G155-$E$2)^2+(H155-$F$2)^2) -> 50.45790909
B156: #A4B5C5 | C156: Sky Gray | D156: 45"f | E156: 2.5PB 7.2/3 | F156: 163.654911 | G156: 180.785651 | H156: 196.856467 | I156: =SQRT((F156-$D$2)^2+(G156-$E$2)^2+(H156-$F$2)^2) -> 50.57598159
B157: #D1E1B5 | C157: Pale Veronese Green | D157: 31'f | E157: 6.5GY 8.7/3 | F157: 208.507164 | G157: 225.119645 | H157: 180.570802 | I157: =SQRT((F157-$D$2)^2+(G157-$E$2)^2+(H157-$F$2)^2) -> 50.7825685
B158: #CFBA6A | C158: Deep Colonial Buff | D158: 21"b | E158: 5Y 7.5/6 | F158: 207.250941 | G158: 186.151053 | H158: 106.218685 | I158: =SQRT((F158-$D$2)^2+(G158-$E$2)^2+(H158-$F$2)^2) -> 50.80031344
B159: #ECC2AE | C159: Pale Flesh Color | D159: 7’f | E159: 2YR 8.1/3.7 | F159: 236.103286 | G159: 193.651325 | H159: 174.400682 | I159: =SQRT((F159-$D$2)^2+(G159-$E$2)^2+(H159-$F$2)^2) -> 50.99258358
B160: #A6B7C7 | C160: Pale Russian Blue | D160: 45'"f | E160: 2.5PB 7.3/3 | F160: 166.27319 | G160: 183.425086 | H160: 199.481063 | I160: =SQRT((F160-$D$2)^2+(G160-$E$2)^2+(H160-$F$2)^2) -> 51.36262052
B161: #DCE497 | C161: Pale Green-Yellow | D161: 27f | E161: 3GY 8.8/5 | F161: 219.876409 | G161: 227.763976 | H161: 150.712159 | I161: =SQRT((F161-$D$2)^2+(G161-$E$2)^2+(H161-$F$2)^2) -> 51.45521747
B162: #8EB588 | C162: Clear Fluorite Green | D162: 33"b | E162: 10GY 6.9/4.5 | F162: 141.598871 | G162: 181.429073 | H162: 136.121859 | I162: =SQRT((F162-$D$2)^2+(G162-$E$2)^2+(H162-$F$2)^2) -> 51.79952305
B163: #A1A4BF | C163: Aniline Lilac | D163: 53"d | E163: 8.5PB 6.7/4 | F163: 161.014183 | G163: 163.821574 | H163: 190.982623 | I163: =SQRT((F163-$D$2)^2+(G163-$E$2)^2+(H163-$F$2)^2) -> 51.95935499
B164: #D2E5B1 | C164: Pale Cendre Green | D164: 35f | E164: 6.5GY 8.8/3.5 | F164: 209.643977 | G164: 228.75994 | H164: 177.295436 | I164: =SQRT((F164-$D$2)^2+(G164-$E$2)^2+(H164-$F$2)^2) -> 52.5069104
B165: #C6BCCE | C165: Pale Bluish Lavender | D165: 57"f | E165: 5P 7.7/3 | F165: 197.829826 | G165: 188.29195 | H165: 206.128497 | I165: =SQRT((F165-$D$2)^2+(G165-$E$2)^2+(H165-$F$2)^2) -> 52.76304966
B166: #C0D86E | C166: Light Yellow-Green | D166: 31d | E166: 5GY 8.2/7.5 | F166: 192.440823 | G166: 215.768158 | H166: 110.312587 | I166: =SQRT((F166-$D$2)^2+(G166-$E$2)^2+(H166-$F$2)^2) -> 52.92155423
B167: #E1948F | C167: Jasper Pink | D167: 3'd | E167: 5R 6.8/7 | F167: 225.090829 | G167: 147.871234 | H167: 143.0082 | I167: =SQRT((F167-$D$2)^2+(G167-$E$2)^2+(H167-$F$2)^2) -> 52.97158431
B168: #E0E2A3 | C168: Chartreuse Yellow | D168: 25”d | E168: 1.5GY 8.8/4 | F168: 224.066701 | G168: 225.721464 | H168: 162.868313 | I168: =SQRT((F168-$D$2)^2+(G168-$E$2)^2+(H168-$F$2)^2) -> 53.07524654
B169: #B7878B | C169: Purplish Vinaceous | D169: 1'"b | E169: 1R 6/4.5 | F169: 182.690775 | G169: 135.107716 | H169: 138.974821 | I169: =SQRT((F169-$D$2)^2+(G169-$E$2)^2+(H169-$F$2)^2) -> 53.56496378
B170: #B48987 | C170: Brownish Vinaceous | D170: 5”’b | E170: 4R 6/4 | F170: 180.239918 | G170: 136.566226 | H170: 135.466176 | I170: =SQRT((F170-$D$2)^2+(G170-$E$2)^2+(H170-$F$2)^2) -> 53.68854482
B171: #A4B8C9 | C171: Pale Neropalin Blue | D171: 49*f | E171: 2PB 7.3/3.2 | F171: 163.836654 | G171: 183.897472 | H171: 200.887076 | I171: =SQRT((F171-$D$2)^2+(G171-$E$2)^2+(H171-$F$2)^2) -> 53.73396685
B172: #A29CBD | C172: Verbena Violet | D172: 55"d | E172: 1P 6.5/4.71 | F172: 162.254668 | G172: 156.151694 | H172: 189.157681 | I172: =SQRT((F172-$D$2)^2+(G172-$E$2)^2+(H172-$F$2)^2) -> 53.82181112
B173: #E09587 | C173: Coral Pink | D173: 5'd | E173: 7.5R 6.8/6.8 | F173: 224.42993 | G173: 148.972286 | H173: 135.368664 | I173: =SQRT((F173-$D$2)^2+(G173-$E$2)^2+(H173-$F$2)^2) -> 53.88504769
B174: #A38CA3 | C174: Deep Vinaceous-Lavender | D174: 65'"d | E174: 7.5P 6/4 | F174: 163.223319 | G174: 140.070925 | H174: 163.166332 | I174: =SQRT((F174-$D$2)^2+(G174-$E$2)^2+(H174-$F$2)^2) -> 53.94897791
B175: #B18A84 | C175: Light Russet-Vinaceous | D175: 9"'b | E175: 7R 6/3.5 | F175: 177.337342 | G175: 138.1162 | H175: 132.42114 | I175: =SQRT((F175-$D$2)^2+(G175-$E$2)^2+(H175-$F$2)^2) -> 54.02636772
B176: #A3AB6E | C176: Deep Chrysolite Green | D176: 27" | E176: 3GY 6.7/4.5 | F176: 162.930347 | G176: 170.936121 | H176: 109.688808 | I176: =SQRT((F176-$D$2)^2+(G176-$E$2)^2+(H176-$F$2)^2) -> 54.06633241
B177: #94A5B5 | C177: Light Alice Blue | D177: 45”d | E177: 2.5PB 6.6/3 | F177: 148.055088 | G177: 165.009862 | H177: 181.138111 | I177: =SQRT((F177-$D$2)^2+(G177-$E$2)^2+(H177-$F$2)^2) -> 54.18891588
B178: #DBC2C8 | C178: Pale Purplish Vinaceous | D178: 1"'f | E178: 6RP 8/3 | F178: 218.948235 | G178: 193.504722 | H178: 199.672958 | I178: =SQRT((F178-$D$2)^2+(G178-$E$2)^2+(H178-$F$2)^2) -> 54.59249266
B179: #8BB0AA | C179: Deep Bluish Glaucous | D179: 37"’d | E179: 5BG 6.8/2.5 | F179: 138.822322 | G179: 175.609149 | H179: 169.917023 | I179: =SQRT((F179-$D$2)^2+(G179-$E$2)^2+(H179-$F$2)^2) -> 54.59373711
B180: #9FABC5 | C180: Burn Blue | D180: 47"f | E180: 6PB 6.9/4 | F180: 158.802524 | G180: 171.141284 | H180: 196.549966 | I180: =SQRT((F180-$D$2)^2+(G180-$E$2)^2+(H180-$F$2)^2) -> 54.8138993
B181: #8FAEB3 | C181: Light Glaucous-Blue | D181: 43"d | E181: 3.5B 6.8/2.5 | F181: 142.890844 | G181: 173.671393 | H181: 179.241751 | I181: =SQRT((F181-$D$2)^2+(G181-$E$2)^2+(H181-$F$2)^2) -> 54.84900294
B182: #C28688 | C182: Deep Vinaceous | D182: 1"b | E182: 2.5R 6.1/5.5 | F182: 194.039945 | G182: 134.284837 | H182: 136.155259 | I182: =SQRT((F182-$D$2)^2+(G182-$E$2)^2+(H182-$F$2)^2) -> 54.85630339
B183: #B1B265 | C183: Lime Green | D183: 25” | E183: 1GY 7/5.5 | F183: 177.447604 | G183: 177.832645 | H183: 101.170211 | I183: =SQRT((F183-$D$2)^2+(G183-$E$2)^2+(H183-$F$2)^2) -> 54.91133707
B184: #DDE2B1 | C184: Seafoam Green | D184: 27"f | E184: 3GY 8.8/3 | F184: 221.057109 | G184: 225.576092 | H184: 176.850899 | I184: =SQRT((F184-$D$2)^2+(G184-$E$2)^2+(H184-$F$2)^2) -> 55.25372985
B185: #92AF7B | C185: Turtle Green | D185: 31"b | E185: 7.5GY 6.7/4.5 | F185: 145.80026 | G185: 174.561946 | H185: 122.867438 | I185: =SQRT((F185-$D$2)^2+(G185-$E$2)^2+(H185-$F$2)^2) -> 55.26013493
B186: #A295B8 | C186: Bluish Lavender | D186: 57"d | E186: 2.5P 6.3/5 | F186: 161.568077 | G186: 149.404678 | H186: 184.270932 | I186: =SQRT((F186-$D$2)^2+(G186-$E$2)^2+(H186-$F$2)^2) -> 55.35269787
B187: #CB9573 | C187: Vinaceous -Cinnamon | D187: 13"b | E187: 4YR 6.5/5.4 | F187: 202.98329 | G187: 148.553504 | H187: 115.263562 | I187: =SQRT((F187-$D$2)^2+(G187-$E$2)^2+(H187-$F$2)^2) -> 55.4194687
B188: #B7B5D1 | C188: Pale Grayish Blue-Violet | D188: 51"f | E188: 10PB 7.4/4 | F188: 182.562217 | G188: 181.338931 | H188: 208.736995 | I188: =SQRT((F188-$D$2)^2+(G188-$E$2)^2+(H188-$F$2)^2) -> 55.43631303
B189: #E6E0A2 | C189: Naphthalene Yellow | D189: 23'f | E189: 9Y 8.8/4 | F189: 229.591181 | G189: 224.085701 | H189: 162.096325 | I189: =SQRT((F189-$D$2)^2+(G189-$E$2)^2+(H189-$F$2)^2) -> 55.52956611
B190: #9BA2BF | C190: Pale Grayish Violet-Blue | D190: 53*d | E190: 7.5PB 6.6/4.3 | F190: 155.23339 | G190: 161.820782 | H190: 190.692237 | I190: =SQRT((F190-$D$2)^2+(G190-$E$2)^2+(H190-$F$2)^2) -> 56.03277621
B191: #D7ABCA | C191: Pale Rose-Purple | D191: 67'f | E191: 10P 7.4/6 | F191: 215.063646 | G191: 170.660165 | H191: 202.285991 | I191: =SQRT((F191-$D$2)^2+(G191-$E$2)^2+(H191-$F$2)^2) -> 56.52463017
B192: #D7E7B2 | C192: Light Viridine Green | D192: 33f | E192: 6GY 8.9/3.5 | F192: 214.93906 | G192: 230.990424 | H192: 177.662996 | I192: =SQRT((F192-$D$2)^2+(G192-$E$2)^2+(H192-$F$2)^2) -> 56.62183629
B193: #CDCDCD | C193: Pale Gull Gray | D193: *10 | E193: N8.2 / | F193: 205.133912 | G193: 205.133912 | H193: 205.133912 | I193: =SQRT((F193-$D$2)^2+(G193-$E$2)^2+(H193-$F$2)^2) -> 56.6552631
B194: #E8DFA2 | C194: Massicot Yellow | D194: 21'f | E194: 7.5Y 8.8/4 | F194: 231.987925 | G194: 223.316391 | H194: 162.291016 | I194: =SQRT((F194-$D$2)^2+(G194-$E$2)^2+(H194-$F$2)^2) -> 56.78239013
B195: #B1C6D0 | C195: Pale King's Blue | D195: 47*f | E195: 9B 7.8/2.5 | F195: 176.796872 | G195: 197.926978 | H195: 208.019098 | I195: =SQRT((F195-$D$2)^2+(G195-$E$2)^2+(H195-$F$2)^2) -> 56.87388102
B196: #D2A26A | C196: Cinnamon-Buff | D196: 17"b | E196: 8.5YR 6.9/6 | F196: 210.064399 | G196: 162.080904 | H196: 106.273162 | I196: =SQRT((F196-$D$2)^2+(G196-$E$2)^2+(H196-$F$2)^2) -> 57.03116978
B197: #DB8A8D | C197: Aliarine Pink | D197: I’d | E197: 2.5R 6.5/7.5 | F197: 218.731758 | G197: 138.273759 | H197: 141.253562 | I197: =SQRT((F197-$D$2)^2+(G197-$E$2)^2+(H197-$F$2)^2) -> 57.14700062
B198: #9CC9C5 | C198: Pale Nile Blue | D198: 41'f | E198: 7.5BG 7.7/3 | F198: 155.77144 | G198: 200.527089 | H198: 197.474933 | I198: =SQRT((F198-$D$2)^2+(G198-$E$2)^2+(H198-$F$2)^2) -> 57.20752078
B199: #999387 | C199: Smoke Gray | D199: 21""d | E199: 3Y 6/1 | F199: 152.968438 | G199: 146.814386 | H199: 134.595872 | I199: =SQRT((F199-$D$2)^2+(G199-$E$2)^2+(H199-$F$2)^2) -> 57.30069033
B200: #EFD0AD | C200: Pale Ochraceous-Buff | D200: 15'f | E200: 8.5YR 8.5/3.5 | F200: 239.377956 | G200: 208.421167 | H200: 172.528314 | I200: =SQRT((F200-$D$2)^2+(G200-$E$2)^2+(H200-$F$2)^2) -> 57.30785014
... 913 more rows

Sheet General Munsell Codes
A1: Find nearest colour | B1: Hex | C1: Std notation | D1: R calc | E1: G calc | F1: B calc | J1: Munsell book of color, 1970
A2: Paste hex code -> | B2: d3a37f | C2: ="#" & SUBSTITUTE(B2,"#","") -> #d3a37f | D2: =HEX2DEC(MID(C2,2,2)) -> 211 | E2: =HEX2DEC(MID(C2,4,2)) -> 163 | F2: =HEX2DEC(MID(C2,6,2)) -> 127 | J2: RGB calculated using the' munselinterpolation' R library
J3: R-Forge: munsellinterpolation: R Development Page
A5: Colour | B5: Hex Code | C5: Munsell code | D5: R | E5: G | F5: B | G5: Calc Distance
B6: #BEA277 | C6: 5YR 7/6 | D6: 218 | E6: 162 | F6: 119 | G6: =SQRT((D6-$D$2)^2+(E6-$E$2)^2+(F6-$F$2)^2) -> 10.67707825
B7: #BDA785 | C7: 7.5YR 7/4 | D7: 203 | E7: 167 | F7: 133 | G7: 10.77032961
B8: #CFA07F | C8: 2.5YR 7/6 | D8: 222 | E8: 160 | F8: 127 | G8: 11.40175425
B9: #B2A68A | C9: 5YR 7/4 | D9: 205 | E9: 166 | F9: 138 | G9: 12.88409873
B10: #BBA97F | C10: 10YR 7/4 | D10: 198 | E10: 169 | F10: 127 | G10: 14.31782106
B11: #CBA470 | C11: 7.5YR 7/6 | D11: 214 | E11: 164 | F11: 112 | G11: 15.32970972
B12: #D09E87 | C12: 10R 7/6 | D12: 224 | E12: 158 | F12: 135 | G12: 16.0623784
B13: #BFA58F | C13: 2.5YR 7/4 | D13: 207 | E13: 165 | F13: 143 | G13: 16.61324773
B14: #B8AB7B | C14: 2.5Y 7/4 | D14: 194 | E14: 171 | F14: 123 | G14: 19.20937271
B15: #D09E90 | C15: 7.5R 7/6 | D15: 223 | E15: 158 | F15: 144 | G15: 21.40093456
B16: #BEA495 | C16: 10R 7/4 | D16: 208 | E16: 164 | F16: 149 | G16: 22.22611077
B17: #C6A768 | C17: 10YR 7/6 | D17: 208 | E17: 167 | F17: 104 | G17: 23.53720459
B18: #B5AD78 | C18: 5Y 7/4 | D18: 187 | E18: 173 | F18: 120 | G18: 26.92582404
B19: #CE9D98 | C19: 5R 7/6 | D19: 222 | E19: 157 | F19: 152 | G19: 27.96426291
B20: #BEA39B | C20: 7.5R 7/4 | D20: 208 | E20: 163 | F20: 155 | G20: 28.16025568
B21: #E09879 | C21: 10R 7/8 | D21: 238 | E21: 152 | F21: 121 | G21: 29.76575213
B22: #DE9B6F | C22: 2.5YR 7/8 | D22: 235 | E22: 155 | F22: 111 | G22: 29.93325909
B23: #C2AA63 | C23: 2.5Y 7/6 | D23: 202 | E23: 170 | F23: 99 | G23: 30.23243292
B24: #DF9785 | C24: 7.5R 7/8 | D24: 239 | E24: 151 | F24: 133 | G24: 31.04834939
B25: #B3AF77 | C25: 7.5Y 7/4 | D25: 183 | E25: 175 | F25: 119 | G25: 31.4960315
B26: #BDA39F | C26: 5R 7/4 | D26: 206 | E26: 163 | F26: 159 | G26: 32.38826948
B27: #C99E65 | C27: 5YR 7/8 | D27: 230 | E27: 158 | F27: 101 | G27: 32.58834147
B28: #CD9D9E | C28: 2.5R 7/6 | D28: 221 | E28: 157 | F28: 158 | G28: 33.12099032
B29: #DE9790 | C29: 5R 7/8 | D29: 238 | E29: 151 | F29: 144 | G29: 34.0881211
B30: #F8AB96 | C30: 10YR 7/2 | D30: 187 | E30: 171 | F30: 150 | G30: 34.19064199
B31: #87AA99 | C31: 7.5YR 7/2 | D31: 189 | E31: 170 | F31: 153 | G31: 34.7706773
B32: #EBAD93 | C32: 2.5Y 7/2 | D32: 184 | E32: 173 | F32: 147 | G32: 35.05709629
B33: #B4837E | C33: 5R 6/6 | D33: 195 | E33: 131 | F33: 126 | G33: 35.79106034
B34: #B0B078 | C34: 10Y 7/4 | D34: 178 | E34: 176 | F34: 120 | G34: 36.15245497
B35: #B48378 | C35: 7.5R 6/6 | D35: 195 | E35: 131 | F35: 120 | G35: 36.45545227
B36: #A4AA9C | C36: 5YR 7/2 | D36: 190 | E36: 170 | F36: 156 | G36: 36.48287269
B37: #BDA4A3 | C37: 2.5R 7/4 | D37: 205 | E37: 164 | F37: 163 | G37: 36.51027253
B38: #B38384 | C38: 2.5R 6/6 | D38: 194 | E38: 131 | F38: 132 | G38: 36.57868232
B39: #DEAD92 | C39: 5Y 7/2 | D39: 181 | E39: 173 | F39: 146 | G39: 36.89173349
B40: #DD9798 | C40: 2.5R 7/8 | D40: 237 | E40: 151 | F40: 152 | G40: 38.01315562
B41: #C27D7F | C41: 2.5R 6/8 | D41: 207 | E41: 125 | F41: 127 | G41: 38.20994635
B42: #FFA99F | C42: 2.5YR 7/2 | D42: 191 | E42: 169 | F42: 159 | G42: 38.20994635
B43: #B1838A | C43: R 6/6 | D43: 193 | E43: 131 | F43: 138 | G43: 38.32753579
B44: #D6A15B | C44: 7.5YR 7/8 | D44: 224 | E44: 161 | F44: 91 | G44: 38.32753579
B45: #B5846F | C45: 10R 6/6 | D45: 195 | E45: 132 | F45: 111 | G45: 38.37968212
B46: #CC9DA4 | C46: R 7/6 | D46: 220 | E46: 157 | F46: 164 | G46: 38.54867053
B47: #DCC57B | C47: 2.5Y 8/6 | D47: 229 | E47: 197 | F47: 123 | G47: 38.67815921
B48: #D0AE92 | C48: 7.5Y 7/2 | D48: 179 | E48: 174 | F48: 146 | G48: 38.80721582
B49: #BBAD5E | C49: 5Y 7/6 | D49: 193 | E49: 173 | F49: 94 | G49: 38.89730068
B50: #C37D77 | C50: 5R 6/8 | D50: 208 | E50: 125 | F50: 119 | G50: 38.94868419
B51: #D6C876 | C51: 5Y 8/6 | D51: 220 | E51: 200 | F51: 118 | G51: 39.12799509
B52: #C17D88 | C52: R 6/8 | D52: 205 | E52: 125 | F52: 136 | G52: 39.50949253
B53: #E2C281 | C53: 10YR 8/6 | D53: 236 | E53: 194 | F53: 129 | G53: 39.87480407
B54: #A5897B | C54: 10R 6/4 | D54: 181 | E54: 137 | F54: 123 | G54: 39.89987469
B55: #A48981 | C55: 7.5R 6/4 | D55: 180 | E55: 137 | F55: 129 | G55: 40.5092582
B56: #BCA4A7 | C56: R 7/4 | D56: 204 | E56: 164 | F56: 167 | G56: 40.62019202
B57: #A58A76 | C57: 2.5YR 6/4 | D57: 180 | E57: 138 | F57: 118 | G57: 40.82891133
B58: #A38986 | C58: 5R 6/4 | D58: 180 | E58: 137 | F58: 134 | G58: 41.06093034
B59: #FFA9A2 | C59: 10R 7/2 | D59: 190 | E59: 169 | F59: 162 | G59: 41.25530269
B60: #B48667 | C60: 2.5YR 6/6 | D60: 194 | E60: 134 | F60: 103 | G60: 41.30375286
B61: #C4AF92 | C61: 10Y 7/2 | D61: 176 | E61: 175 | F61: 146 | G61: 41.59326869
B62: #D2CB74 | C62: 7.5Y 8/6 | D62: 214 | E62: 203 | F62: 116 | G62: 41.59326869
B63: #C37D6E | C63: 7.5R 6/8 | D63: 209 | E63: 125 | F63: 110 | G63: 41.67733197
B64: #D3C694 | C64: 2.5Y 8/4 | D64: 220 | E64: 198 | F64: 148 | G64: 41.79712909
B65: #AF8391 | C65: 7.5RP 6/6 | D65: 191 | E65: 131 | F65: 145 | G65: 41.80908992
B66: #ADB27A | C66: 2.5GY 7/4 | D66: 172 | E66: 178 | F66: 122 | G66: 42.08325083
B67: #D0C991 | C67: 5Y 8/4 | D67: 214 | E67: 201 | F67: 145 | G67: 42.15447782
B68: #CECA8F | C68: 7.5Y 8/4 | D68: 210 | E68: 202 | F68: 143 | G68: 42.16633728
B69: #DC97A0 | C69: R 7/8 | D69: 235 | E69: 151 | F69: 160 | G69: 42.53234064
B70: #978C71 | C70: 5YR 6/4 | D70: 178 | E70: 140 | F70: 113 | G70: =SQRT((D70-$D$2)^2+(E70-$E$2)^2+(F70-$F$2)^2) -> 42.59107888
B71: #BF7D90 | C71: 7.5RP 6/8 | D71: 202 | E71: 125 | F71: 144 | G71: 42.59107888
B72: #CECC74 | C72: 10Y 8/6 | D72: 207 | E72: 204 | F72: 116 | G72: 42.63801121
B73: #A3898A | C73: 2.5R 6/4 | D73: 179 | E73: 137 | F73: 138 | G73: 42.67317659
B74: #B7AF5D | C74: 7.5Y 7/6 | D74: 187 | E74: 175 | F74: 93 | G74: 43.31281566
B75: #E6BF88 | C75: 7.5YR 8/6 | D75: 243 | E75: 191 | F75: 136 | G75: 43.46262762
B76: #CBCB90 | C76: 10Y 8/4 | D76: 206 | E76: 203 | F76: 144 | G76: 43.74928571
B77: #FFA9A5 | C77: 7.5R 7/2 | D77: 190 | E77: 169 | F77: 165 | G77: 43.829214
B78: #CA9EAA | C78: 7.5RP 7/6 | D78: 218 | E78: 158 | F78: 170 | G78: 43.8520239
B79: #D6C498 | C79: 10YR 8/4 | D79: 226 | E79: 196 | F79: 152 | G79: 44.03407771
B80: #FFA183 | C80: 7.5R 8/12 | D80: 255 | E80: 161 | F80: 131 | G80: 44.22668877
B81: #B8B093 | C81: 2.5GY 7/2 | D81: 173 | E81: 176 | F81: 147 | G81: 44.86646855
B82: #BBA4AB | C82: 7.5RP 7/4 | D82: 202 | E82: 164 | F82: 171 | G82: 44.92215489
B83: #A2898D | C83: R 6/4 | D83: 177 | E83: 137 | F83: 141 | G83: 45.033321
B84: #FFAD82 | C84: 10R 8/10 | D84: 255 | E84: 173 | F84: 130 | G84: 45.22167622
B85: #AE8497 | C85: 5RP 6/6 | D85: 188 | E85: 132 | F85: 151 | G85: 45.45327271
B86: #A38D6D | C86: 7.5YR 6/4 | D86: 175 | E86: 141 | F86: 109 | G86: 45.86937976
B87: #FFA9A7 | C87: 5R 7/2 | D87: 189 | E87: 169 | F87: 167 | G87: 46.04345773
B88: #EF907B | C88: 7.5R 7/10 | D88: 253 | E88: 144 | F88: 123 | G88: 46.27094121
B89: #D0A551 | C89: 10YR 7/8 | D89: 216 | E89: 165 | F89: 81 | G89: 46.31414471
B90: #C37F62 | C90: 10R 6/8 | D90: 208 | E90: 127 | F90: 98 | G90: 46.32493929
B91: #FFA570 | C91: 10R 8/12 | D91: 255 | E91: 165 | F91: 112 | G91: 46.5295605
B92: #BC7E99 | C92: 5RP 6/8 | D92: 200 | E92: 126 | F92: 153 | G92: 46.54030511
B93: #C7CF77 | C93: 2.5GY 8/6 | D93: 198 | E93: 207 | F93: 119 | G93: 46.57252409
B94: #A3885F | C94: 5YR 6/6 | D94: 190 | E94: 136 | F94: 95 | G94: 46.84015371
B95: #CD7585 | C95: R 6/10 | D95: 219 | E95: 117 | F95: 133 | G95: 47.07440918
B96: #EE936C | C96: 10R 7/10 | D96: 251 | E96: 147 | F96: 108 | G96: 47.08502947
B97: #D8C29D | C97: 7.5YR 8/4 | D97: 230 | E97: 194 | F97: 157 | G97: 47.138095
B98: #DABD8F | C98: 5YR 8/6 | D98: 247 | E98: 189 | F98: 143 | G98: 47.20169488
B99: #CF757B | C99: 2.5R 6/10 | D99: 221 | E99: 117 | F99: 123 | G99: 47.24404724
B100: #A18A91 | C100: 7.5RP 6/4 | D100: 175 | E100: 138 | F100: 145 | G100: 47.38143096
B101: #EE8F88 | C101: 5R 7/10 | D101: 253 | E101: 143 | F101: 136 | G101: 47.38143096
B102: #B2B15E | C102: 10Y 7/6 | D102: 180 | E102: 177 | F102: 94 | G102: 47.39198244
B103: #FFB073 | C103: 2.5YR 8/10 | D103: 255 | E103: 176 | F103: 115 | G103: 47.42362281
B104: #C8CD92 | C104: 2.5GY 8/4 | D104: 199 | E104: 205 | F104: 146 | G104: 47.63402146
B105: #FFA9A9 | C105: 2.5R 7/2 | D105: 189 | E105: 169 | F105: 169 | G105: 47.79121258
B106: #FBB585 | C106: 2.5YR 8/8 | D106: 255 | E106: 181 | F106: 133 | G106: 47.9165942
B107: #FFAA91 | C107: 7.5R 8/10 | D107: 255 | E107: 170 | F107: 145 | G107: 48.05205511
B108: #A7B194 | C108: 5GY 7/2 | D108: 170 | E108: 177 | F108: 148 | G108: 48.14561247
B109: #CA7690 | C109: 7.5RP 6/10 | D109: 215 | E109: 118 | F109: 144 | G109: 48.27007354
B110: #ED8F93 | C110: 2.5R 7/10 | D110: 251 | E110: 143 | F110: 147 | G110: 48.98979486
B111: #AAB47E | C111: 5GY 7/4 | D111: 165 | E111: 180 | F111: 126 | G111: 49.05099387
B112: #E6B879 | C112: 5YR 8/8 | D112: 255 | E112: 184 | F112: 121 | G112: 49.12229636
B113: #ADA9AA | C113: R 7/2 | D113: 188 | E113: 169 | F113: 170 | G113: 49.13247399
B114: #BAA4AF | C114: 5RP 7/4 | D114: 200 | E114: 164 | F114: 175 | G114: 49.25444142
B115: #DA97AA | C115: 7.5RP 7/8 | D115: 232 | E115: 151 | F115: 170 | G115: 49.33558553
B116: #D07570 | C116: 5R 6/10 | D116: 222 | E116: 117 | F116: 112 | G116: 49.61854492
B117: #A08A95 | C117: 5RP 6/4 | D117: 174 | E117: 138 | F117: 149 | G117: 49.77951386
B118: #FDB390 | C118: 10R 8/8 | D118: 255 | E118: 179 | F118: 144 | G118: 49.80963762
B119: #EB965F | C119: 2.5YR 7/10 | D119: 247 | E119: 150 | F119: 95 | G119: 49.88987873
B120: #ECC068 | C120: 10YR 8/8 | D120: 245 | E120: 192 | F120: 104 | G120: 50.25932749
B121: #A18F68 | C121: 10YR 6/4 | D121: 171 | E121: 143 | F121: 104 | G121: 50.28916384
B122: #C89EB1 | C122: 5RP 7/6 | D122: 215 | E122: 158 | F122: 177 | G122: 50.40833264
B123: #FC8F85 | C123: 2.5YR 6/2 | D123: 165 | E123: 143 | F123: 133 | G123: 50.51732376
B124: #FF8F88 | C124: 10R 6/2 | D124: 165 | E124: 143 | F124: 136 | G124: 50.96076922
B125: #C2D17D | C125: 5GY 8/6 | D125: 189 | E125: 209 | F125: 125 | G125: 51.02940329
B126: #CDC1A2 | C126: 5YR 8/4 | D126: 233 | E126: 193 | F126: 162 | G126: 51.07837116
B127: #E5C461 | C127: 2.5Y 8/8 | D127: 236 | E127: 196 | F127: 97 | G127: 51.12729212
B128: #EF8F82 | C128: 5YR 6/2 | D128: 164 | E128: 143 | F128: 130 | G128: 51.16639522
B129: #FFA9AC | C129: 7.5RP 7/2 | D129: 187 | E129: 169 | F129: 172 | G129: 51.35172831
B130: #C8779A | C130: 5RP 6/10 | D130: 211 | E130: 119 | F130: 154 | G130: 51.623638
B131: #7E9080 | C131: 7.5YR 6/2 | D131: 163 | E131: 144 | F131: 128 | G131: 51.63332257
B132: #F3BC71 | C132: 7.5YR 8/8 | D132: 254 | E132: 188 | F132: 113 | G132: 51.67204273
B133: #C28158 | C133: 2.5YR 6/8 | D133: 206 | E133: 129 | F133: 88 | G133: 51.98076567
B134: #ECBA97 | C134: 2.5YR 8/6 | D134: 251 | E134: 186 | F134: 151 | G134: =SQRT((D134-$D$2)^2+(E134-$E$2)^2+(F134-$F$2)^2) -> 52.0096145
B135: #C5CF95 | C135: 5GY 8/4 | D135: 194 | E135: 207 | F135: 149 | G135: 52.04805472
B136: #FD8780 | C136: 5R 7/12 | D136: 255 | E136: 135 | F136: 128 | G136: 52.16320542
B137: #FF8F8A | C137: 7.5R 6/2 | D137: 164 | E137: 143 | F137: 138 | G137: 52.24940191
B138: #ACB462 | C138: 2.5GY 7/6 | D138: 171 | E138: 180 | F138: 98 | G138: 52.24940191
B139: #EB8F9D | C139: R 7/10 | D139: 249 | E139: 143 | F139: 157 | G139: 52.38320341
B140: #AF8A58 | C140: 7.5YR 6/6 | D140: 186 | E140: 138 | F140: 88 | G140: 52.64028875
B141: #AA85A0 | C141: 2.5RP 6/6 | D141: 183 | E141: 133 | F141: 160 | G141: 52.65928218
B142: #D7917D | C142: 10YR 6/2 | D142: 161 | E142: 145 | F142: 125 | G142: 53.1789432
B143: #FFA9AE | C143: 5RP 7/2 | D143: 186 | E143: 169 | F143: 174 | G143: 53.57238094
B144: #F0B566 | C144: 5YR 8/10 | D144: 255 | E144: 181 | F144: 102 | G144: 53.71219601
B145: #FF8F8D | C145: 5R 6/2 | D145: 163 | E145: 143 | F145: 141 | G145: 53.85164807
B146: #FD886F | C146: 7.5R 7/12 | D146: 255 | E146: 136 | F146: 111 | G146: 54.04627647
B147: #DCC85A | C147: 5Y 8/8 | D147: 225 | E147: 200 | F147: 90 | G147: 54.16641026
B148: #D17663 | C148: 7.5R 6/10 | D148: 223 | E148: 118 | F148: 99 | G148: 54.34151268
B149: #FF8F8F | C149: 2.5R 6/2 | D149: 163 | E149: 143 | F149: 143 | G149: 54.40588203
B150: #CAA949 | C150: 2.5Y 7/8 | D150: 208 | E150: 169 | F150: 73 | G150: 54.41507144
B151: #FB868D | C151: 2.5R 7/12 | D151: 255 | E151: 134 | F151: 141 | G151: 54.52522352
B152: #FEB19C | C152: 7.5R 8/8 | D152: 255 | E152: 177 | F152: 156 | G152: 54.52522352
B153: #FF9E5F | C153: 10R 8/14 | D153: 255 | E153: 158 | F153: 95 | G153: 54.63515352
B154: #FFA89F | C154: 5R 8/10 | D154: 255 | E154: 168 | F154: 159 | G154: 54.63515352
B155: #B77FA4 | C155: 2.5RP 6/8 | D155: 193 | E155: 127 | F155: 164 | G155: 54.67174773
B156: #B8A5B4 | C156: 2.5RP 7/4 | D156: 197 | E156: 165 | F156: 180 | G156: 54.85435261
B157: #FFAB5F | C157: 2.5YR 8/12 | D157: 255 | E157: 171 | F157: 95 | G157: 54.99090834
B158: #9F8B9B | C158: 2.5RP 6/4 | D158: 170 | E158: 139 | F158: 155 | G158: 55.14526272
B159: #D797B2 | C159: 5RP 7/8 | D159: 229 | E159: 151 | F159: 178 | G159: 55.39855594
B160: #9E9164 | C160: 2.5Y 6/4 | D160: 166 | E160: 145 | F160: 100 | G160: 55.47972603
B161: #938F90 | C161: R 6/2 | D161: 162 | E161: 143 | F161: 144 | G161: 55.58776844
B162: #D8BFA8 | C162: 2.5YR 8/4 | D162: 236 | E162: 191 | F162: 168 | G162: 55.58776844
B163: #90B299 | C163: 7.5GY 7/2 | D163: 164 | E163: 178 | F163: 153 | G163: 55.76737397
B164: #C9927A | C164: 2.5Y 6/2 | D164: 158 | E164: 146 | F164: 122 | G164: 55.88380803
B165: #D29A50 | C165: 5YR 7/10 | D165: 240 | E165: 154 | F165: 80 | G165: 55.95533933
B166: #FFAAB0 | C166: 2.5RP 7/2 | D166: 184 | E166: 170 | F166: 176 | G166: 56.38262144
B167: #D6CB57 | C167: 7.5Y 8/8 | D167: 217 | E167: 203 | F167: 87 | G167: 56.88585061
B168: #F68F92 | C168: 7.5RP 6/2 | D168: 161 | E168: 143 | F168: 146 | G168: 57.10516614
B169: #EDB99F | C169: 10R 8/6 | D169: 253 | E169: 185 | F169: 159 | G169: 57.20139858
B170: #E890A9 | C170: 7.5RP 7/10 | D170: 245 | E170: 144 | F170: 169 | G170: 57.28001397
B171: #A5B668 | C171: 5GY 7/6 | D171: 162 | E171: 182 | F171: 104 | G171: 57.36723804
B172: #EDC9AA | C172: 7.5Y 8/2 | D172: 206 | E172: 201 | F172: 170 | G172: 57.6020833
B173: #CFCD57 | C173: 10Y 8/8 | D173: 209 | E173: 205 | F173: 87 | G173: 58.03447251
B174: #DB6D83 | C174: R 6/12 | D174: 232 | E174: 109 | F174: 131 | G174: 58.07753438
B175: #C59FB9 | C175: 2.5RP 7/6 | D175: 210 | E175: 159 | F175: 185 | G175: 58.14636704
B176: #D76E90 | C176: 7.5RP 6/12 | D176: 228 | E176: 110 | F176: 144 | G176: 58.19793811
B177: #FEC9AB | C177: 5Y 8/2 | D177: 208 | E177: 201 | F177: 171 | G177: 58.21511831
B178: #FFC8AC | C178: 2.5Y 8/2 | D178: 211 | E178: 200 | F178: 172 | G178: 58.25804665
B179: #FF7D79 | C179: 5R 7/14 | D179: 255 | E179: 125 | F179: 121 | G179: 58.44655678
B180: #BE9379 | C180: 5Y 6/2 | D180: 155 | E180: 147 | F180: 121 | G180: 58.54912467
B181: #E0CAAA | C181: 10Y 8/2 | D181: 203 | E181: 202 | F181: 170 | G181: 58.6003413
B182: #EC8F94 | C182: 5RP 6/2 | D182: 160 | E182: 143 | F182: 148 | G182: 58.66856058
B183: #F2AAB2 | C183: 10P 7/2 | D183: 182 | E183: 170 | F183: 178 | G183: 59.08468499
B184: #AB8D51 | C184: 10YR 6/6 | D184: 181 | E184: 141 | F184: 81 | G184: 59.16079783
B185: #F9869A | C185: R 7/12 | D185: 255 | E185: 134 | F185: 154 | G185: 59.21148537
B186: #C6D15C | C186: 2.5GY 8/8 | D186: 197 | E186: 209 | F186: 92 | G186: 59.4726828
B187: #FF7C88 | C187: 2.5R 7/14 | D187: 255 | E187: 124 | F187: 136 | G187: 59.48108943
B188: #FFC6AF | C188: 10YR 8/2 | D188: 214 | E188: 198 | F188: 175 | G188: 59.48108943
B189: #A4B686 | C189: 7.5GY 7/4 | D189: 155 | E189: 182 | F189: 134 | G189: 59.54829972
B190: #D4CBAA | C190: 2.5GY 8/2 | D190: 200 | E190: 203 | F190: 170 | G190: 59.74947699
B191: #C179A9 | C191: 2.5RP 6/10 | D191: 204 | E191: 121 | F191: 169 | G191: 59.80802622
B192: #A686A7 | C192: 10P 6/6 | D192: 177 | E192: 134 | F192: 167 | G192: 59.97499479
B193: #D7BEAE | C193: 10R 8/4 | D193: 237 | E193: 190 | F193: 174 | G193: 60.11655346
B194: #DD6C76 | C194: 2.5R 6/12 | D194: 234 | E194: 108 | F194: 118 | G194: 60.29096118
B195: #9B9361 | C195: 5Y 6/4 | D195: 161 | E195: 147 | F195: 97 | G195: 60.46486583
B196: #FDADAD | C196: R 7/0 | D196: 173 | E196: 173 | F196: 173 | G196: 60.49793385
B197: #FF844C | C197: 5YR 6/8 | D197: 201 | E197: 132 | F197: 76 | G197: 60.51446108
B198: #E08F97 | C198: 2.5RP 6/2 | D198: 159 | E198: 143 | F198: 151 | G198: =SQRT((D198-$D$2)^2+(E198-$E$2)^2+(F198-$F$2)^2) -> 60.66300355
B199: #9D8BA0 | C199: 10P 6/4 | D199: 166 | E199: 139 | F199: 160 | G199: 60.74537019
B200: #B6A6B9 | C200: 10P 7/4 | D200: 193 | E200: 166 | F200: 185 | G200: 60.80296045
B201: #BDD364 | C201: 5GY 8/8 | D201: 185 | E201: 211 | F201: 100 | G201: 60.90155991
... 2153 more rows

Sheet Munsell named soils
A1: Find nearest colour | B1: Hex | C1: Std notation | D1: R calc | E1: G calc | F1: B calc | J1: Munsell soil colors converted to RGB using R library 'munsellinterpol'
A2: Paste hex code -> | B2: 755534 | C2: ="#" & SUBSTITUTE(B2,"#","") -> #755534 | D2: =HEX2DEC(MID(C2,2,2)) -> 117 | E2: =HEX2DEC(MID(C2,4,2)) -> 85 | F2: =HEX2DEC(MID(C2,6,2)) -> 52 | J2: I don't recall where the soil munsell code/names came from, and I'm not sure I trust them to be correct
A5: Colour | B5: Hex code | C5: Name | D5: Munsell code | E5: R | F5: G | G5: B | H5: Calc Distance
B6: #785A35 | C6: Dark Yellowish Brown | D6: 10YR 4/4 | E6: 120.125383 | F6: 90.778564 | G6: 53.994042 | H6: =SQRT((E6-$D$2)^2+(F6-$E$2)^2+(G6-$F$2)^2) -> 6.865568024
B7: #735C32 | C7: Olive Brown | D7: 2.5Y 4/4 | E7: 115.441868 | F7: 92.888159 | G7: 50.717286 | H7: =SQRT((E7-$D$2)^2+(F7-$E$2)^2+(G7-$F$2)^2) -> 8.1422468
B8: #7C583A | C8: Brown | D8: 7.5YR 4/4 | E8: 124.11692 | F8: 88.746526 | G8: 58.272474 | H8: =SQRT((E8-$D$2)^2+(F8-$E$2)^2+(G8-$F$2)^2) -> 10.19955575
B9: #6E5E30 | C9: Olive | D9: 5Y 4/4 | E9: 110.561206 | F9: 94.864042 | G9: 48.373554 | H9: =SQRT((E9-$D$2)^2+(F9-$E$2)^2+(G9-$F$2)^2) -> 12.32511677
B10: #6F5D3E | C10: Olive Brown | D10: 2.5Y 4/3 | E10: 111.640605 | F10: 93.673762 | G10: 62.084776 | H10: =SQRT((E10-$D$2)^2+(F10-$E$2)^2+(G10-$F$2)^2) -> 14.34084966
B11: #735C40 | C11: Brown | D11: 10YR 4/3 | E11: 115.439176 | F11: 92.041546 | G11: 64.425348 | H11: =SQRT((E11-$D$2)^2+(F11-$E$2)^2+(G11-$F$2)^2) -> 14.36693477
B12: #7E573E | C12: Reddish Brown | D12: 5YR 4/4 | E12: 126.700477 | F12: 87.208796 | G12: 62.972644 | H12: =SQRT((E12-$D$2)^2+(F12-$E$2)^2+(G12-$F$2)^2) -> 14.81137908
B13: #6B5F3C | C13: Olive | D13: 5Y 4/3 | E13: 107.605874 | F13: 95.233356 | G13: 60.640074 | H13: =SQRT((E13-$D$2)^2+(F13-$E$2)^2+(G13-$F$2)^2) -> 16.3591582
B14: #765A43 | C14: Brown | D14: 7.5YR 4/3 | E14: 118.685729 | F14: 90.452236 | G14: 67.879709 | H14: =SQRT((E14-$D$2)^2+(F14-$E$2)^2+(G14-$F$2)^2) -> 16.87405457
B15: #845527 | C15: Strong Brown | D15: 7.5YR 4/6 | E15: 132.396598 | F15: 85.74484 | G15: 39.727766 | H15: =SQRT((E15-$D$2)^2+(F15-$E$2)^2+(G15-$F$2)^2) -> 19.70324197
B16: #785947 | C16: Reddish Brown | D16: 5YR 4/3 | E16: 120.579009 | F16: 89.370236 | G16: 71.248728 | H16: =SQRT((E16-$D$2)^2+(F16-$E$2)^2+(G16-$F$2)^2) -> 20.06045358
B17: #88532E | C17: Yellowish Red | D17: 5YR 4/6 | E17: 136.374393 | F17: 83.26085 | G17: 46.652904 | H17: =SQRT((E17-$D$2)^2+(F17-$E$2)^2+(G17-$F$2)^2) -> 20.17382419
B18: #805544 | C18: Reddish Brown | D18: 2.5YR 4/4 | E18: 128.834872 | F18: 85.74231 | G18: 68.379753 | H18: =SQRT((E18-$D$2)^2+(F18-$E$2)^2+(G18-$F$2)^2) -> 20.22156096
B19: #7F5820 | C19: Dark Yellowish Brown | D19: 10YR 4/6 | E19: 127.123196 | F19: 88.635728 | G19: 32.731907 | H19: =SQRT((E19-$D$2)^2+(F19-$E$2)^2+(G19-$F$2)^2) -> 22.06710274
B20: #8B5036 | C20: Red | D20: 2.5YR 4/6 | E20: 139.935593 | F20: 80.724889 | G20: 54.464494 | H20: =SQRT((E20-$D$2)^2+(F20-$E$2)^2+(G20-$F$2)^2) -> 23.46042905
B21: #7A584B | C21: Reddish Brown | D21: 2.5YR 4/3 | E21: 122.102887 | F21: 88.343368 | G21: 75.335905 | H21: =SQRT((E21-$D$2)^2+(F21-$E$2)^2+(G21-$F$2)^2) -> 24.12015811
B22: #825449 | C22: Weak Red | D22: 10R 4/4 | E22: 130.154066 | F22: 84.621053 | G22: 73.588671 | H22: =SQRT((E22-$D$2)^2+(F22-$E$2)^2+(G22-$F$2)^2) -> 25.28327053
B23: #6B5E49 | C23: Dark Grayish Brown | D23: 2.5Y 4/2 | E23: 107.144254 | F23: 94.492468 | G23: 73.323979 | H23: =SQRT((E23-$D$2)^2+(F23-$E$2)^2+(G23-$F$2)^2) -> 25.33682613
B24: #6D5D4A | C24: Dark Grayish Brown | D24: 10YR 4/2 | E24: 109.904727 | F24: 93.37223 | G24: 74.840765 | H24: =SQRT((E24-$D$2)^2+(F24-$E$2)^2+(G24-$F$2)^2) -> 25.34043567
B25: #685F48 | C25: Olive Gray | D25: 5Y 4/2 | E25: 104.161576 | F25: 95.577745 | G25: 72.590018 | H25: =SQRT((E25-$D$2)^2+(F25-$E$2)^2+(G25-$F$2)^2) -> 26.47003327
B26: #705C4D | C26: Brown | D26: 7.5YR 4/2 | E26: 112.26763 | F26: 92.259595 | G26: 77.442572 | H26: =SQRT((E26-$D$2)^2+(F26-$E$2)^2+(G26-$F$2)^2) -> 26.87790013
B27: #8E4E3E | C27: Red | D27: 10R 4/6 | E27: 142.314848 | F27: 78.683793 | G27: 62.24239 | H27: =SQRT((E27-$D$2)^2+(F27-$E$2)^2+(G27-$F$2)^2) -> 28.02931596
B28: #7A574F | C28: Weak Red | D28: 10R 4/3 | E28: 122.899565 | F28: 87.603507 | G28: 79.420481 | H28: =SQRT((E28-$D$2)^2+(F28-$E$2)^2+(G28-$F$2)^2) -> 28.16852666
B29: #673B32 | C29: Dusky Red | D29: 10R 3/4 | E29: 103.945795 | F29: 59.694629 | G29: 50.940588 | H29: =SQRT((E29-$D$2)^2+(F29-$E$2)^2+(G29-$F$2)^2) -> 28.49379623
B30: #715B4F | C30: Dark Reddish Gray | D30: 5YR 4/2 | E30: 113.50404 | F30: 91.592605 | G30: 79.52391 | H30: =SQRT((E30-$D$2)^2+(F30-$E$2)^2+(G30-$F$2)^2) -> 28.51753493
B31: #663D2E | C31: Dark Reddish Brown | D31: 2.5YR 3/4 | E31: 102.018966 | F31: 61.187971 | G31: 46.256252 | H31: =SQRT((E31-$D$2)^2+(F31-$E$2)^2+(G31-$F$2)^2) -> 28.71297174
B32: #603F34 | C32: Dark Reddish Brown | D32: 2.5YR 3/3 | E32: 96.108273 | F32: 63.76197 | G32: 52.496046 | H32: =SQRT((E32-$D$2)^2+(F32-$E$2)^2+(G32-$F$2)^2) -> 29.79537274
B33: #613E37 | C33: Dusky Red | D33: 10R 3/3 | E33: 97.49464 | F33: 62.762154 | G33: 55.870255 | H33: =SQRT((E33-$D$2)^2+(F33-$E$2)^2+(G33-$F$2)^2) -> 29.83219297
B34: #633E2A | C34: Dark Reddish Brown | D34: 5YR 3/4 | E34: 99.326727 | F34: 62.949191 | G34: 42.001439 | H34: =SQRT((E34-$D$2)^2+(F34-$E$2)^2+(G34-$F$2)^2) -> 29.97588995
B35: #5E4131 | C35: Dark Reddish Brown | D35: 5YR 3/3 | E35: 94.060312 | F35: 65.01151 | G35: 49.283571 | H35: =SQRT((E35-$D$2)^2+(F35-$E$2)^2+(G35-$F$2)^2) -> 30.54747133
B36: #725A52 | C36: Weak Red | D36: 2.5YR 4/2 | E36: 114.480251 | F36: 90.949316 | G36: 82.261905 | H36: =SQRT((E36-$D$2)^2+(F36-$E$2)^2+(G36-$F$2)^2) -> 30.94392331
B37: #5B422E | C37: Dark Brown | D37: 7.5YR 3/3 | E37: 91.902054 | F37: 66.215201 | G37: 46.424063 | H37: =SQRT((E37-$D$2)^2+(F37-$E$2)^2+(G37-$F$2)^2) -> 31.84127259
B38: #604025 | C38: Dark Brown | D38: 7.5YR 3/4 | E38: 96.467315 | F38: 64.650791 | G38: 37.928622 | H38: =SQRT((E38-$D$2)^2+(F38-$E$2)^2+(G38-$F$2)^2) -> 32.15097415
B39: #725A55 | C39: Weak Red | D39: 10R 4/2 | E39: 114.811863 | F39: 90.531134 | G39: 85.171682 | H39: =SQRT((E39-$D$2)^2+(F39-$E$2)^2+(G39-$F$2)^2) -> 33.70076963
B40: #733428 | C40: Dark Red | D40: 10R 3/6 | E40: 115.310851 | F40: 52.98866 | G40: 40.905741 | H40: =SQRT((E40-$D$2)^2+(F40-$E$2)^2+(G40-$F$2)^2) -> 33.92140468
B41: #59423A | C41: Dusky Red | D41: 2.5YR 3/2 | E41: 89.43702 | F41: 66.283052 | G41: 58.648305 | H41: =SQRT((E41-$D$2)^2+(F41-$E$2)^2+(G41-$F$2)^2) -> 33.97413676
B42: #58432B | C42: Dark Brown | D42: 10YR 3/3 | E42: 88.792072 | F42: 67.732254 | G42: 43.898996 | H42: =SQRT((E42-$D$2)^2+(F42-$E$2)^2+(G42-$F$2)^2) -> 34.05126312
B43: #5A413C | C43: Dusky Red | D43: 10R 3/2 | E43: 90.240652 | F43: 65.718033 | G43: 60.882206 | H43: =SQRT((E43-$D$2)^2+(F43-$E$2)^2+(G43-$F$2)^2) -> 34.15773031
B44: #584338 | C44: Dark Reddish Brown | D44: 5YR 3/2 | E44: 88.047041 | F44: 67.07645 | G44: 56.411338 | H44: =SQRT((E44-$D$2)^2+(F44-$E$2)^2+(G44-$F$2)^2) -> 34.33638569
B45: #564336 | C45: Dark Brown | D45: 7.5YR 3/2 | E45: 86.528956 | F45: 67.851446 | G45: 54.649388 | H45: =SQRT((E45-$D$2)^2+(F45-$E$2)^2+(G45-$F$2)^2) -> 35.06532024
B46: #5C4222 | C46: Dark Yellowish Brown | D46: 10YR 3/4 | E46: 92.733256 | F46: 66.597251 | G46: 34.341505 | H46: =SQRT((E46-$D$2)^2+(F46-$E$2)^2+(G46-$F$2)^2) -> 35.20452358
B47: #703720 | C47: Dark Red | D47: 2.5YR 3/6 | E47: 112.667773 | F47: 55.533327 | G47: 32.18455 | H47: =SQRT((E47-$D$2)^2+(F47-$E$2)^2+(G47-$F$2)^2) -> 35.77296559
B48: #544435 | C48: Very Dark Grayish Brown | D48: 10YR 3/2 | E48: 84.160822 | F48: 68.91697 | G48: 53.010274 | H48: =SQRT((E48-$D$2)^2+(F48-$E$2)^2+(G48-$F$2)^2) -> 36.57999616
B49: #554529 | C49: Dark Olive Brown | D49: 2.5Y 3/3 | E49: 85.236674 | F49: 69.283945 | G49: 41.965595 | H49: =SQRT((E49-$D$2)^2+(F49-$E$2)^2+(G49-$F$2)^2) -> 36.83195008
B50: #954B26 | C50: Red | D50: 2.5YR 4/8 | E50: 149.838208 | F50: 75.252808 | G50: 38.336957 | H50: =SQRT((E50-$D$2)^2+(F50-$E$2)^2+(G50-$F$2)^2) -> 36.87864423
B51: #675E55 | C51: Dark Gray | D51: 10YR 4/1 | E51: 103.649531 | F51: 94.647894 | G51: 85.387298 | H51: =SQRT((E51-$D$2)^2+(F51-$E$2)^2+(G51-$F$2)^2) -> 37.22940436
B52: #665F54 | C52: Dark Gray | D52: 2.5Y 4/1 | E52: 102.123811 | F52: 95.230659 | G52: 84.608312 | H52: =SQRT((E52-$D$2)^2+(F52-$E$2)^2+(G52-$F$2)^2) -> 37.27290429
B53: #645F54 | C53: Dark Gray | D53: 5Y 4/1 | E53: 100.448985 | F53: 95.807947 | G53: 84.253878 | H53: =SQRT((E53-$D$2)^2+(F53-$E$2)^2+(G53-$F$2)^2) -> 37.82935979
B54: #685E56 | C54: Dark Gray | D54: 7.5YR 4/1 | E54: 104.923389 | F54: 94.079057 | G54: 86.769361 | H54: =SQRT((E54-$D$2)^2+(F54-$E$2)^2+(G54-$F$2)^2) -> 37.91018694
B55: #695D57 | C55: Dark Gray | D55: 5YR 4/1 | E55: 105.540569 | F55: 93.76338 | G55: 87.794311 | H55: =SQRT((E55-$D$2)^2+(F55-$E$2)^2+(G55-$F$2)^2) -> 38.59207286
B56: #514633 | C56: Very Dark Grayish Brown | D56: 2.5Y 3/2 | E56: 81.424054 | F56: 70.022163 | G56: 51.904667 | H56: =SQRT((E56-$D$2)^2+(F56-$E$2)^2+(G56-$F$2)^2) -> 38.60042258
B57: #994731 | C57: Red | D57: 10R 4/8 | E57: 153.690196 | F57: 71.704246 | G57: 49.818127 | H57: =SQRT((E57-$D$2)^2+(F57-$E$2)^2+(G57-$F$2)^2) -> 39.08590701
B58: #695D59 | C58: Dark Reddish Gray | D58: 2.5YR 4/1 | E58: 105.992033 | F58: 93.465706 | G58: 89.176386 | H58: =SQRT((E58-$D$2)^2+(F58-$E$2)^2+(G58-$F$2)^2) -> 39.68535236
B59: #616054 | C59: Dark Greenish Gray | D59: 10Y 4/1 | E59: 97.325375 | F59: 96.737822 | G59: 84.760608 | H59: =SQRT((E59-$D$2)^2+(F59-$E$2)^2+(G59-$F$2)^2) -> 39.97655276
B60: #4E4733 | C60: Dark Olive Gray | D60: 5Y 3/2 | E60: 78.701506 | F60: 71.009768 | G60: 51.497035 | H60: =SQRT((E60-$D$2)^2+(F60-$E$2)^2+(G60-$F$2)^2) -> 40.77688325
B61: #6A5D5A | C61: Dark Reddish Gray | D61: 10R 4/1 | E61: 106.051063 | F61: 93.291437 | G61: 90.667264 | H61: =SQRT((E61-$D$2)^2+(F61-$E$2)^2+(G61-$F$2)^2) -> 41.03394271
B62: #514441 | C62: Dark Reddish Gray | D62: 2.5YR 3/1 | E62: 81.409255 | F62: 68.859439 | G62: 65.096601 | H62: =SQRT((E62-$D$2)^2+(F62-$E$2)^2+(G62-$F$2)^2) -> 41.21577121
B63: #50453F | C63: Very Dark Gray | D63: 5YR 3/1 | E63: 80.709174 | F63: 69.22892 | G63: 63.956103 | H63: =SQRT((E63-$D$2)^2+(F63-$E$2)^2+(G63-$F$2)^2) -> 41.33641754
B64: #514442 | C64: Dark Reddish Gray | D64: 10R 3/1 | E64: 81.760853 | F64: 68.616322 | G64: 66.202444 | H64: =SQRT((E64-$D$2)^2+(F64-$E$2)^2+(G64-$F$2)^2) -> 41.3754976
B65: #4F453F | C65: Very Dark Gray | D65: 7.5YR 3/1 | E65: 79.909038 | F65: 69.600805 | G65: 63.0874 | H65: =SQRT((E65-$D$2)^2+(F65-$E$2)^2+(G65-$F$2)^2) -> 41.66299446
B66: #4E463E | C66: Very Dark Gray | D66: 10YR 3/1 | E66: 78.575714 | F66: 70.148024 | G66: 62.251264 | H66: =SQRT((E66-$D$2)^2+(F66-$E$2)^2+(G66-$F$2)^2) -> 42.45109374
B67: #5E6156 | C67: Dark Greenish Gray | D67: 5GY 4/1 | E67: 94.128809 | F67: 97.493921 | G67: 86.854457 | H67: =SQRT((E67-$D$2)^2+(F67-$E$2)^2+(G67-$F$2)^2) -> 43.52037009
B68: #4D463D | C68: Very Dark Gray | D68: 2.5Y 3/1 | E68: 77.006994 | F68: 70.732667 | G68: 61.699608 | H68: =SQRT((E68-$D$2)^2+(F68-$E$2)^2+(G68-$F$2)^2) -> 43.55547859
B69: #8E772B | C69: Olive | D69: 5Y 5/6 | E69: 142.138135 | F69: 119.787008 | G69: 43.59419 | H69: =SQRT((E69-$D$2)^2+(F69-$E$2)^2+(G69-$F$2)^2) -> 43.73464758
B70: #4B473D | C70: Very Dark Gray | D70: 5Y 3/1 | E70: 75.441381 | F70: 71.265197 | G70: 61.506587 | H70: =SQRT((E70-$D$2)^2+(F70-$E$2)^2+(G70-$F$2)^2) -> 44.78994109
B71: #887848 | C71: Olive | D71: 5Y 5/4 | E71: 136.354016 | F71: 120.608601 | G71: 72.103434 | H71: =SQRT((E71-$D$2)^2+(F71-$E$2)^2+(G71-$F$2)^2) -> 45.24045158
B72: #947430 | C72: Light Olive Brown | D72: 2.5Y 5/6 | E72: 148.917706 | F72: 116.956405 | G72: 48.301606 | H72: =SQRT((E72-$D$2)^2+(F72-$E$2)^2+(G72-$F$2)^2) -> 45.31699345
B73: #48483D | C73: Very Dark Greenish Gray | D73: 10Y 3/1 | E73: 72.592618 | F73: 72.122166 | G73: 61.923305 | H73: =SQRT((E73-$D$2)^2+(F73-$E$2)^2+(G73-$F$2)^2) -> 47.28981039
B74: #8D764A | C74: Light Olive Brown | D74: 2.5Y 5/4 | E74: 141.679589 | F74: 118.491897 | G74: 74.913837 | H74: =SQRT((E74-$D$2)^2+(F74-$E$2)^2+(G74-$F$2)^2) -> 47.49561247
B75: #583125 | C75: Dark Reddish Brown | D75: 2.5YR 2.5/4 | E75: 88.365337 | F75: 49.790821 | G75: 37.294728 | H75: =SQRT((E75-$D$2)^2+(F75-$E$2)^2+(G75-$F$2)^2) -> 47.70613415
B76: #9B7136 | C76: Yellowish Brown | D76: 10YR 5/6 | E76: 155.228127 | F76: 113.97886 | G76: 54.852179 | H76: =SQRT((E76-$D$2)^2+(F76-$E$2)^2+(G76-$F$2)^2) -> 48.05516565
B77: #52342B | C77: Dark Reddish Brown | D77: 2.5YR 2.5/3 | E77: 82.693249 | F77: 52.418967 | G77: 43.057131 | H77: =SQRT((E77-$D$2)^2+(F77-$E$2)^2+(G77-$F$2)^2) -> 48.15030406
B78: #5A625A | C78: Dark Greenish Gray | D78: 10GY 4/1 | E78: 90.68834 | F78: 98.152307 | G78: 90.132935 | H78: =SQRT((E78-$D$2)^2+(F78-$E$2)^2+(G78-$F$2)^2) -> 48.16022595
B79: #606060 | C79: Dark Gray | D79: N 4/ | E79: 96.014439 | F79: 96.014439 | G79: 96.014439 | H79: =SQRT((E79-$D$2)^2+(F79-$E$2)^2+(G79-$F$2)^2) -> 49.98982374
B80: #45483F | C80: Very Dark Greenish Gray | D80: 5GY 3/1 | E80: 69.673465 | F80: 72.813346 | G80: 63.816154 | H80: =SQRT((E80-$D$2)^2+(F80-$E$2)^2+(G80-$F$2)^2) -> 50.27859332
B81: #4D3632 | C81: Very Dusky Red | D81: 10R 2.5/2 | E81: 77.067431 | F81: 54.419483 | G81: 50.609947 | H81: =SQRT((E81-$D$2)^2+(F81-$E$2)^2+(G81-$F$2)^2) -> 50.31610412
B82: #92744E | C82: Yellowish Brown | D82: 10YR 5/4 | E82: 146.239386 | F82: 116.460223 | G82: 78.779302 | H82: =SQRT((E82-$D$2)^2+(F82-$E$2)^2+(G82-$F$2)^2) -> 50.61440843
B83: #4C3630 | C83: Very Dusky Red | D83: 2.5YR 2.5/2 | E83: 76.329142 | F83: 54.9385 | G83: 48.653438 | H83: =SQRT((E83-$D$2)^2+(F83-$E$2)^2+(G83-$F$2)^2) -> 50.68542147
B84: #4E3624 | C84: Very Dark Brown | D84: 7.5YR 2.5/3 | E84: 78.416099 | F84: 54.962821 | G84: 36.970882 | H84: =SQRT((E84-$D$2)^2+(F84-$E$2)^2+(G84-$F$2)^2) -> 51.1549013
B85: #474747 | C85: Very Dark Gray | D85: N 3/ | E85: 71.50491 | F85: 71.50491 | G85: 71.50491 | H85: =SQRT((E85-$D$2)^2+(F85-$E$2)^2+(G85-$F$2)^2) -> 51.30655107
B86: #63408 | C86: Dark Yellowish Brown | D86: 10YR 3/6 | E86: 99.187468 | F86: 64.43374 | G86: 8.500238 | H86: =SQRT((E86-$D$2)^2+(F86-$E$2)^2+(G86-$F$2)^2) -> 51.30776394
B87: #847854 | C87: Olive | D87: 5Y 5/3 | E87: 132.990436 | F87: 120.960279 | G87: 84.920471 | H87: =SQRT((E87-$D$2)^2+(F87-$E$2)^2+(G87-$F$2)^2) -> 51.30880159
B88: #4B372E | C88: Dark Reddish Brown | D88: 5YR 2.5/2 | E88: 75.026024 | F88: 55.692718 | G88: 46.585689 | H88: =SQRT((E88-$D$2)^2+(F88-$E$2)^2+(G88-$F$2)^2) -> 51.47859947
B89: #58625D | C89: Dark Greenish Gray | D89: 5G 4/1 | E89: 88.43139 | F89: 98.473129 | G89: 93.054483 | H89: =SQRT((E89-$D$2)^2+(F89-$E$2)^2+(G89-$F$2)^2) -> 51.79923992
B90: #A06F3E | C90: Strong Brown | D90: 7.5YR 5/6 | E90: 160.669595 | F90: 111.065317 | G90: 62.59669 | H90: =SQRT((E90-$D$2)^2+(F90-$E$2)^2+(G90-$F$2)^2) -> 51.94924558
B91: #49382C | C91: Very Dark Brown | D91: 7.5YR 2.5/2 | E91: 73.45359 | F91: 56.510329 | G91: 44.710115 | H91: =SQRT((E91-$D$2)^2+(F91-$E$2)^2+(G91-$F$2)^2) -> 52.54610928
B92: #897756 | C92: Light Olive Brown | D92: 2.5Y 5/3 | E92: 137.470967 | F92: 119.244853 | G92: 86.899327 | H92: =SQRT((E92-$D$2)^2+(F92-$E$2)^2+(G92-$F$2)^2) -> 53.0069191
B93: #424942 | C93: Very Dark Greenish Gray | D93: 10GY 3/1 | E93: 66.683791 | F93: 73.366869 | G93: 66.783774 | H93: =SQRT((E93-$D$2)^2+(F93-$E$2)^2+(G93-$F$2)^2) -> 53.71787969
B94: #57625E | C94: Dark Greenish Gray | D94: 10G 4/1 | E94: 87.423887 | F94: 98.549749 | G94: 94.911124 | H94: =SQRT((E94-$D$2)^2+(F94-$E$2)^2+(G94-$F$2)^2) -> 53.84892498
B95: #957253 | C95: Brown | D95: 7.5YR 5/4 | E95: 149.92594 | F95: 114.5813 | G95: 83.805528 | H95: =SQRT((E95-$D$2)^2+(F95-$E$2)^2+(G95-$F$2)^2) -> 54.50470114
B96: #50645A | C96: Grayish Green | D96: 5G 4/2 | E96: 80.222427 | F96: 100.784789 | G96: 90.142417 | H96: =SQRT((E96-$D$2)^2+(F96-$E$2)^2+(G96-$F$2)^2) -> 55.28646683
B97: #453937 | C97: Reddish Black | D97: 10R 2.5/1 | E97: 69.274234 | F97: 57.165836 | G97: 55.259152 | H97: =SQRT((E97-$D$2)^2+(F97-$E$2)^2+(G97-$F$2)^2) -> 55.34538371
B98: #8D7559 | C98: Brown | D98: 10YR 5/3 | E98: 141.028099 | F98: 117.71274 | G98: 89.733421 | H98: =SQRT((E98-$D$2)^2+(F98-$E$2)^2+(G98-$F$2)^2) -> 55.419166
B99: #443936 | C99: Black | D99: 2.5YR 2.5/1 | E99: 68.926363 | F99: 57.393641 | G99: 54.309078 | H99: =SQRT((E99-$D$2)^2+(F99-$E$2)^2+(G99-$F$2)^2) -> 55.48438945
B100: #A46C45 | C100: Yellowish Red | D100: 5YR 5/6 | E100: 164.296801 | F100: 108.856431 | G100: 69.603839 | H100: =SQRT((E100-$D$2)^2+(F100-$E$2)^2+(G100-$F$2)^2) -> 55.82124893
B101: #443935 | C101: Black | D101: 5YR 2.5/1 | E101: 68.271518 | F101: 57.737931 | G101: 53.286041 | H101: =SQRT((E101-$D$2)^2+(F101-$E$2)^2+(G101-$F$2)^2) -> 55.85104534
B102: #404945 | C102: Very Dark Greenish Gray | D102: 5G 3/1 | E102: 64.925905 | F102: 73.606789 | G102: 69.10052 | H102: =SQRT((E102-$D$2)^2+(F102-$E$2)^2+(G102-$F$2)^2) -> 55.98164352
B103: #566261 | C103: Dark Greenish Gray | D103: 5BG 4/1 | E103: 86.724832 | F103: 98.488437 | G103: 97.240433 | H103: =SQRT((E103-$D$2)^2+(F103-$E$2)^2+(G103-$F$2)^2) -> 56.08226554
B104: #433A34 | C104: Black | D104: 7.5YR 2.5/1 | E104: 67.450704 | F104: 58.126334 | G104: 52.351124 | H104: =SQRT((E104-$D$2)^2+(F104-$E$2)^2+(G104-$F$2)^2) -> 56.36887391
B105: #3F4946 | C105: Very Dark Greenish Gray | D105: 10G 3/1 | E105: 63.996797 | F105: 73.68338 | G105: 70.720188 | H105: =SQRT((E105-$D$2)^2+(F105-$E$2)^2+(G105-$F$2)^2) -> 57.33978423
B106: #423B29 | C106: Black | D106: 5Y 2.5/2 | E106: 66.511584 | F106: 59.346171 | G106: 41.812338 | H106: =SQRT((E106-$D$2)^2+(F106-$E$2)^2+(G106-$F$2)^2) -> 57.54118134
B107: #44474F | C107: Very Dark Bluish Gray | D107: 5PB 3/1 | E107: 68.09889 | F107: 71.619183 | G107: 79.247403 | H107: =SQRT((E107-$D$2)^2+(F107-$E$2)^2+(G107-$F$2)^2) -> 57.55680492
B108: #A16F1B | C108: Yellowish Brown | D108: 10YR 5/8 | E108: 161.579696 | F108: 111.952965 | G108: 27.510308 | H108: =SQRT((E108-$D$2)^2+(F108-$E$2)^2+(G108-$F$2)^2) -> 57.56350087
B109: #5C6067 | C109: Dark Bluish Gray | D109: 5PB 4/1 | E109: 92.960289 | F109: 96.119624 | G109: 103.124712 | H109: =SQRT((E109-$D$2)^2+(F109-$E$2)^2+(G109-$F$2)^2) -> 57.57855434
B110: #987158 | C110: Reddish Brown | D110: 5YR 5/4 | E110: 152.083774 | F110: 113.313917 | G110: 88.201783 | H110: =SQRT((E110-$D$2)^2+(F110-$E$2)^2+(G110-$F$2)^2) -> 57.81970414
B111: #566263 | C111: Dark Greenish Gray | D111: 10BG 4/1 | E111: 86.640327 | F111: 98.272825 | G111: 99.446646 | H111: =SQRT((E111-$D$2)^2+(F111-$E$2)^2+(G111-$F$2)^2) -> 57.87107952
B112: #A86C27 | C112: Strong Brown | D112: 7.5YR 5/8 | E112: 168.67047 | F112: 108.036574 | G112: 39.161867 | H112: =SQRT((E112-$D$2)^2+(F112-$E$2)^2+(G112-$F$2)^2) -> 58.01154084
B113: #403B33 | C113: Black | D113: 2.5Y 2.5/1 | E113: 64.862603 | F113: 59.142339 | G113: 51.09924 | H113: =SQRT((E113-$D$2)^2+(F113-$E$2)^2+(G113-$F$2)^2) -> 58.20427963
B114: #596166 | C114: Dark Bluish Gray | D114: 10B 4/1 | E114: 89.903781 | F114: 97.077803 | G114: 102.320673 | H114: =SQRT((E114-$D$2)^2+(F114-$E$2)^2+(G114-$F$2)^2) -> 58.41445489
B115: #8F745D | C115: Brown | D115: 7.5YR 5/3 | E115: 143.877236 | F115: 116.298663 | G115: 93.609048 | H115: =SQRT((E115-$D$2)^2+(F115-$E$2)^2+(G115-$F$2)^2) -> 58.59441096
B116: #576165 | C116: Dark Bluish Gray | D116: 5B 4/1 | E116: 87.630371 | F116: 97.826905 | G116: 101.130182 | H116: =SQRT((E116-$D$2)^2+(F116-$E$2)^2+(G116-$F$2)^2) -> 58.65900939
B117: #3F4948 | C117: Very Dark Greenish Gray | D117: 5BG 3/1 | E117: 63.189521 | F117: 73.658783 | G117: 72.924407 | H117: =SQRT((E117-$D$2)^2+(F117-$E$2)^2+(G117-$F$2)^2) -> 58.83894681
B118: #3F3B32 | C118: Black | D118: 5Y 2.5/1 | E118: 63.474806 | F118: 59.613305 | G118: 50.964414 | H118: =SQRT((E118-$D$2)^2+(F118-$E$2)^2+(G118-$F$2)^2) -> 59.24949885
B119: #817961 | C119: Olive Gray | D119: 5Y 5/2 | E119: 129.336948 | F119: 121.241742 | G119: 97.32478 | H119: =SQRT((E119-$D$2)^2+(F119-$E$2)^2+(G119-$F$2)^2) -> 59.32958647
B120: #41484E | C120: Very Dark Bluish Gray | D120: 10B 3/1 | E120: 65.054196 | F120: 72.550122 | G120: 78.485625 | H120: =SQRT((E120-$D$2)^2+(F120-$E$2)^2+(G120-$F$2)^2) -> 59.6225993
B121: #3E494B | C121: Very Dark Greenish Gray | D121: 10BG 3/1 | E121: 62.758168 | F121: 73.537405 | G121: 75.048983 | H121: =SQRT((E121-$D$2)^2+(F121-$E$2)^2+(G121-$F$2)^2) -> 60.04017855
B122: #847762 | C122: Grayish Brown | D122: 2.5Y 5/2 | E122: 132.765051 | F122: 119.989684 | G122: 98.535445 | H122: =SQRT((E122-$D$2)^2+(F122-$E$2)^2+(G122-$F$2)^2) -> 60.31884002
B123: #3F494C | C123: Very Dark Bluish Gray | D123: 5B 3/1 | E123: 63.18421 | F123: 73.22237 | G123: 76.894678 | H123: =SQRT((E123-$D$2)^2+(F123-$E$2)^2+(G123-$F$2)^2) -> 60.4532614
B124: #AE6831 | C124: Yellowish Red | D124: 5YR 5/8 | E124: 174.240623 | F124: 104.545042 | G124: 49.455878 | H124: =SQRT((E124-$D$2)^2+(F124-$E$2)^2+(G124-$F$2)^2) -> 60.53899689
B125: #A76A4E | C125: Red | D125: 2.5YR 5/6 | E125: 167.470172 | F125: 106.616073 | G125: 78.131915 | H125: =SQRT((E125-$D$2)^2+(F125-$E$2)^2+(G125-$F$2)^2) -> 60.8060018
B126: #917360 | C126: Reddish Brown | D126: 5YR 5/3 | E126: 145.511916 | F126: 115.372551 | G126: 96.816069 | H126: =SQRT((E126-$D$2)^2+(F126-$E$2)^2+(G126-$F$2)^2) -> 61.18742721
B127: #3C3C33 | C127: Greenish Black | D127: 10Y 2.5/1 | E127: 60.83541 | F127: 60.389409 | G127: 51.5743 | H127: =SQRT((E127-$D$2)^2+(F127-$E$2)^2+(G127-$F$2)^2) -> 61.32147731
B128: #877664 | C128: Grayish Brown | D128: 10YR 5/2 | E128: 135.233301 | F128: 118.966987 | G128: 100.39846 | H128: =SQRT((E128-$D$2)^2+(F128-$E$2)^2+(G128-$F$2)^2) -> 61.87584667
B129: #394B42 | C129: Very Dark Grayish Green | D129: 5G 3/2 | E129: 57.547753 | F129: 75.615651 | G129: 66.68232 | H129: =SQRT((E129-$D$2)^2+(F129-$E$2)^2+(G129-$F$2)^2) -> 61.95325819
B130: #9A6F5D | C130: Reddish Brown | D130: 2.5YR 5/4 | E130: 154.098096 | F130: 111.95453 | G130: 93.76668 | H130: =SQRT((E130-$D$2)^2+(F130-$E$2)^2+(G130-$F$2)^2) -> 62.0263732
B131: #3B3B3B | C131: Black | D131: N 2.5/ | E131: 59.864532 | F131: 59.864532 | G131: 59.864532 | H131: =SQRT((E131-$D$2)^2+(F131-$E$2)^2+(G131-$F$2)^2) -> 62.91346691
B132: #3A3D35 | C132: Greenish Black | D132: 5GY 2.5/1 | E132: 58.211336 | F132: 61.000867 | G132: 53.377911 | H132: =SQRT((E132-$D$2)^2+(F132-$E$2)^2+(G132-$F$2)^2) -> 63.51349493
B133: #897667 | C133: Brown | D133: 7.5YR 5/2 | E133: 137.223188 | F133: 118.008238 | G133: 103.101265 | H133: =SQRT((E133-$D$2)^2+(F133-$E$2)^2+(G133-$F$2)^2) -> 64.10819287
B134: #927264 | C134: Reddish Brown | D134: 2.5YR 5/3 | E134: 146.863677 | F134: 114.452507 | G134: 100.906682 | H134: =SQRT((E134-$D$2)^2+(F134-$E$2)^2+(G134-$F$2)^2) -> 64.42944138
B135: #B3643D | C135: Red | D135: 2.5YR 5/8 | E135: 179.228659 | F135: 100.944353 | G135: 61.035244 | H135: =SQRT((E135-$D$2)^2+(F135-$E$2)^2+(G135-$F$2)^2) -> 64.87113401
B136: #A96855 | C136: Red | D136: 10R 5/6 | E136: 169.526092 | F136: 104.912894 | G136: 85.509169 | H136: =SQRT((E136-$D$2)^2+(F136-$E$2)^2+(G136-$F$2)^2) -> 65.40931199
B137: #9B6F62 | C137: Weak Red | D137: 10R 5/4 | E137: 155.261937 | F137: 111.003214 | G137: 98.432977 | H137: =SQRT((E137-$D$2)^2+(F137-$E$2)^2+(G137-$F$2)^2) -> 65.54513189
B138: #373D37 | C138: Greenish Black | D138: 10GY 2.5/1 | E138: 55.688846 | F138: 61.463054 | G138: 55.919662 | H138: =SQRT((E138-$D$2)^2+(F138-$E$2)^2+(G138-$F$2)^2) -> 65.79064661
B139: #8A7569 | C139: Reddish Gray | D139: 5YR 5/2 | E139: 138.395825 | F139: 117.383468 | G139: 105.175771 | H139: =SQRT((E139-$D$2)^2+(F139-$E$2)^2+(G139-$F$2)^2) -> 65.83413209
B140: #383B43 | C140: Bluish Black | D140: 5PB 2.5/1 | E140: 56.776156 | F140: 59.936357 | G140: 67.114486 | H140: =SQRT((E140-$D$2)^2+(F140-$E$2)^2+(G140-$F$2)^2) -> 66.95928071
B141: #363D39 | C141: Greenish Black | D141: 5G 2.5/1 | E141: 54.131334 | F141: 61.689589 | G141: 57.824493 | H141: =SQRT((E141-$D$2)^2+(F141-$E$2)^2+(G141-$F$2)^2) -> 67.30355967
B142: #937168 | C142: Weak Red | D142: 10R 5/3 | E142: 147.361847 | F142: 113.879363 | G142: 104.769622 | H142: =SQRT((E142-$D$2)^2+(F142-$E$2)^2+(G142-$F$2)^2) -> 67.38317569
B143: #8B746B | C143: Weak Red | D143: 2.5YR 5/2 | E143: 139.128222 | F143: 116.856114 | G143: 107.818988 | H143: =SQRT((E143-$D$2)^2+(F143-$E$2)^2+(G143-$F$2)^2) -> 67.97227103
B144: #353D3B | C144: Greenish Black | D144: 10G 2.5/1 | E144: 53.30655 | F144: 61.760378 | G144: 59.230814 | H144: =SQRT((E144-$D$2)^2+(F144-$E$2)^2+(G144-$F$2)^2) -> 68.18519102
B145: #7D796D | C145: Gray | D145: 5Y 5/1 | E145: 125.631946 | F145: 121.37192 | G145: 109.367276 | H145: =SQRT((E145-$D$2)^2+(F145-$E$2)^2+(G145-$F$2)^2) -> 68.47212142
B146: #7A7A6D | C146: Greenish Gray | D146: 10Y 5/1 | E146: 122.890564 | F146: 122.197748 | G146: 109.629756 | H146: =SQRT((E146-$D$2)^2+(F146-$E$2)^2+(G146-$F$2)^2) -> 68.84446221
B147: #7F786D | C147: Gray | D147: 2.5Y 5/1 | E147: 127.551302 | F147: 120.698722 | G147: 109.984943 | H147: =SQRT((E147-$D$2)^2+(F147-$E$2)^2+(G147-$F$2)^2) -> 68.90560457
B148: #363C42 | C148: Bluish Black | D148: 10B 2.5/1 | E148: 54.019558 | F148: 60.787441 | G148: 66.336696 | H148: =SQRT((E148-$D$2)^2+(F148-$E$2)^2+(G148-$F$2)^2) -> 68.98061278
B149: #343D3D | C149: Greenish Black | D149: 5BG 2.5/1 | E149: 52.480472 | F149: 61.762193 | G149: 61.219286 | H149: =SQRT((E149-$D$2)^2+(F149-$E$2)^2+(G149-$F$2)^2) -> 69.19364423
B150: #B66247 | C150: Red | D150: 10R 5/8 | E150: 182.31227 | F150: 98.233073 | G150: 71.958546 | H150: =SQRT((E150-$D$2)^2+(F150-$E$2)^2+(G150-$F$2)^2) -> 69.56400213
B151: #80786E | C151: Gray | D151: 10YR 5/1 | E151: 128.864391 | F151: 120.177219 | G151: 110.933927 | H151: =SQRT((E151-$D$2)^2+(F151-$E$2)^2+(G151-$F$2)^2) -> 69.65205138
B152: #343D3F | C152: Greenish Black | D152: 10BG 2.5/1 | E152: 52.127923 | F152: 61.642294 | G152: 63.13797 | H152: =SQRT((E152-$D$2)^2+(F152-$E$2)^2+(G152-$F$2)^2) -> 69.8428463
B153: #343D40 | C153: Bluish Black | D153: 5B 2.5/1 | E153: 52.456842 | F153: 61.37844 | G153: 64.744759 | H153: =SQRT((E153-$D$2)^2+(F153-$E$2)^2+(G153-$F$2)^2) -> 69.90154665
B154: #8B746E | C154: Weak Red | D154: 10R 5/2 | E154: 139.001968 | F154: 116.60646 | G154: 110.813928 | H154: =SQRT((E154-$D$2)^2+(F154-$E$2)^2+(G154-$F$2)^2) -> 70.30030609
B155: #777B6F | C155: Greenish Gray | D155: 5GY 5/1 | E155: 119.470024 | F155: 123.04494 | G155: 111.451404 | H155: =SQRT((E155-$D$2)^2+(F155-$E$2)^2+(G155-$F$2)^2) -> 70.62568878
B156: #817770 | C156: Gray | D156: 7.5YR 5/1 | E156: 129.900349 | F156: 119.694966 | G156: 112.329919 | H156: =SQRT((E156-$D$2)^2+(F156-$E$2)^2+(G156-$F$2)^2) -> 70.78035601
B157: #3B2E20 | C157: Very Dark Brown | D157: 10YR 2/2 | E157: 59.941577 | F157: 46.348858 | G157: 32.999763 | H157: =SQRT((E157-$D$2)^2+(F157-$E$2)^2+(G157-$F$2)^2) -> 71.48834464
B158: #827771 | C158: Gray | D158: 5YR 5/1 | E158: 130.505891 | F158: 119.38723 | G158: 113.365017 | H158: =SQRT((E158-$D$2)^2+(F158-$E$2)^2+(G158-$F$2)^2) -> 71.62789952
B159: #827772 | C159: Reddish Gray | D159: 2.5YR 5/1 | E159: 130.811208 | F159: 119.150096 | G159: 114.676434 | H159: =SQRT((E159-$D$2)^2+(F159-$E$2)^2+(G159-$F$2)^2) -> 72.70016439
B160: #2F3F37 | C160: Very Dark Grayish Green | D160: 5G 2.5/2 | E160: 47.611054 | F160: 63.454592 | G160: 55.744993 | H160: =SQRT((E160-$D$2)^2+(F160-$E$2)^2+(G160-$F$2)^2) -> 72.75338759
B161: #372F29 | C161: Black | D161: 10YR 2/1 | E161: 55.014727 | F161: 47.534891 | G161: 41.05676 | H161: =SQRT((E161-$D$2)^2+(F161-$E$2)^2+(G161-$F$2)^2) -> 73.25000316
B162: #737B72 | C162: Greenish Gray | D162: 10GY 5/1 | E162: 115.518865 | F162: 123.838667 | G162: 114.865715 | H162: =SQRT((E162-$D$2)^2+(F162-$E$2)^2+(G162-$F$2)^2) -> 73.91031009
B163: #827774 | C163: Reddish Gray | D163: 10R 5/1 | E163: 130.578386 | F163: 119.066037 | G163: 116.251788 | H163: =SQRT((E163-$D$2)^2+(F163-$E$2)^2+(G163-$F$2)^2) -> 73.98080632
B164: #687E72 | C164: Grayish Green | D164: 5G 5/2 | E164: 104.354883 | F164: 126.711934 | G164: 114.821209 | H164: =SQRT((E164-$D$2)^2+(F164-$E$2)^2+(G164-$F$2)^2) -> 76.46102747
B165: #717C76 | C165: Greenish Gray | D165: 5G 5/1 | E165: 113.081493 | F165: 124.18462 | G165: 118.077781 | H165: =SQRT((E165-$D$2)^2+(F165-$E$2)^2+(G165-$F$2)^2) -> 76.9224433
B166: #797979 | C166: Gray | D166: N 5/ | E166: 121.445271 | F166: 121.445271 | G166: 121.445271 | H166: =SQRT((E166-$D$2)^2+(F166-$E$2)^2+(G166-$F$2)^2) -> 78.55357329
B167: #707C78 | C167: Greenish Gray | D167: 10G 5/1 | E167: 112.144361 | F167: 124.221725 | G167: 120.16838 | H167: =SQRT((E167-$D$2)^2+(F167-$E$2)^2+(G167-$F$2)^2) -> 78.79624975
B168: #6F7C7A | C168: Greenish Gray | D168: 5BG 5/1 | E168: 111.423405 | F168: 124.155169 | G168: 122.630627 | H168: =SQRT((E168-$D$2)^2+(F168-$E$2)^2+(G168-$F$2)^2) -> 80.95005338
B169: #A89244 | C169: Olive Yellow | D169: 5Y 6/6 | E169: 168.325058 | F169: 146.0977 | G169: 68.866367 | H169: =SQRT((E169-$D$2)^2+(F169-$E$2)^2+(G169-$F$2)^2) -> 81.55773942
B170: #6F7B7C | C170: Greenish Gray | D170: 10BG 5/1 | E170: 111.586987 | F170: 123.868876 | G170: 124.892037 | H170: =SQRT((E170-$D$2)^2+(F170-$E$2)^2+(G170-$F$2)^2) -> 82.78489771
B171: #717B7E | C171: Bluish Gray | D171: 5B 5/1 | E171: 113.106122 | F171: 123.29225 | G171: 126.425754 | H171: =SQRT((E171-$D$2)^2+(F171-$E$2)^2+(G171-$F$2)^2) -> 83.7893284
B172: #AC9124 | C172: Olive Yellow | D172: 5Y 6/8 | E172: 172.864407 | F172: 145.45837 | G172: 36.043457 | H172: =SQRT((E172-$D$2)^2+(F172-$E$2)^2+(G172-$F$2)^2) -> 83.84901751
B173: #76797F | C173: Bluish Gray | D173: 5PB 5/1 | E173: 118.522083 | F173: 121.593573 | G173: 127.934772 | H173: =SQRT((E173-$D$2)^2+(F173-$E$2)^2+(G173-$F$2)^2) -> 84.3059661
B174: #737A7F | C174: Bluish Gray | D174: 10B 5/1 | E174: 115.411266 | F174: 122.531349 | G174: 127.534651 | H174: =SQRT((E174-$D$2)^2+(F174-$E$2)^2+(G174-$F$2)^2) -> 84.3600008
B175: #AF8F49 | C175: Olive Yellow | D175: 2.5Y 6/6 | E175: 175.56591 | F175: 143.14934 | G175: 73.562922 | H175: =SQRT((E175-$D$2)^2+(F175-$E$2)^2+(G175-$F$2)^2) -> 85.3010619
B176: #B58D2C | C176: Olive Yellow | D176: 2.5Y 6/8 | E176: 181.950297 | F176: 141.641635 | G176: 44.569635 | H176: =SQRT((E176-$D$2)^2+(F176-$E$2)^2+(G176-$F$2)^2) -> 86.49870646
B177: #A19260 | C177: Pale Olive | D177: 5Y 6/4 | E177: 161.954314 | F177: 146.873766 | G177: 96.575578 | H177: =SQRT((E177-$D$2)^2+(F177-$E$2)^2+(G177-$F$2)^2) -> 88.52251364
B178: #B68C4F | C178: Brownish Yellow | D178: 10YR 6/6 | E178: 182.224639 | F178: 140.106009 | G178: 79.936264 | H178: =SQRT((E178-$D$2)^2+(F178-$E$2)^2+(G178-$F$2)^2) -> 89.84075137
B179: #BD8936 | C179: Brownish Yellow | D179: 10YR 6/8 | E179: 189.688305 | F179: 137.958564 | G179: 54.372431 | H179: =SQRT((E179-$D$2)^2+(F179-$E$2)^2+(G179-$F$2)^2) -> 89.96570243
B180: #A79063 | C180: Light Yellowish Brown | D180: 2.5Y 6/4 | E180: 167.613968 | F180: 144.686825 | G180: 99.370847 | H180: =SQRT((E180-$D$2)^2+(F180-$E$2)^2+(G180-$F$2)^2) -> 91.47834706
B181: #9E936C | C181: Pale Olive | D181: 5Y 6/3 | E181: 158.79259 | F181: 147.090855 | G181: 108.978325 | H181: =SQRT((E181-$D$2)^2+(F181-$E$2)^2+(G181-$F$2)^2) -> 94.06606388
B182: #C48641 | C182: Reddish Yellow | D182: 7.5YR 6/8 | E182: 196.944448 | F182: 134.079185 | G182: 65.080889 | H182: =SQRT((E182-$D$2)^2+(F182-$E$2)^2+(G182-$F$2)^2) -> 94.71531462
B183: #BB8957 | C183: Reddish Yellow | D183: 7.5YR 6/6 | E183: 187.689928 | F183: 137.265854 | G183: 87.646475 | H183: =SQRT((E183-$D$2)^2+(F183-$E$2)^2+(G183-$F$2)^2) -> 94.86546577
B184: #AC8E67 | C184: Light Yellowish Brown | D184: 10YR 6/4 | E184: 172.373351 | F184: 142.61988 | G184: 103.387147 | H184: =SQRT((E184-$D$2)^2+(F184-$E$2)^2+(G184-$F$2)^2) -> 95.00998605
B185: #A3916E | C185: Light Yellowish Brown | D185: 2.5Y 6/3 | E185: 163.244258 | F185: 145.416976 | G185: 110.976909 | H185: =SQRT((E185-$D$2)^2+(F185-$E$2)^2+(G185-$F$2)^2) -> 96.26535297
B186: #A78F72 | C186: Pale Brown | D186: 10YR 6/3 | E186: 167.152674 | F186: 143.766166 | G186: 114.133287 | H186: =SQRT((E186-$D$2)^2+(F186-$E$2)^2+(G186-$F$2)^2) -> 99.14281784
B187: #B08C6C | C187: Light Brown | D187: 7.5YR 6/4 | E187: 176.591541 | F187: 140.556006 | G187: 108.657331 | H187: =SQRT((E187-$D$2)^2+(F187-$E$2)^2+(G187-$F$2)^2) -> 99.23545091
B188: #BF875E | C188: Reddish Yellow | D188: 5YR 6/6 | E188: 191.636412 | F188: 135.006862 | G188: 94.228272 | H188: =SQRT((E188-$D$2)^2+(F188-$E$2)^2+(G188-$F$2)^2) -> 99.26987055
B189: #CA824A | C189: Reddish Yellow | D189: 5YR 6/8 | E189: 202.490655 | F189: 130.750872 | G189: 74.776229 | H189: =SQRT((E189-$D$2)^2+(F189-$E$2)^2+(G189-$F$2)^2) -> 99.60196277
B190: #9B9379 | C190: Light Olive Gray | D190: 5Y 6/2 | E190: 155.455541 | F190: 147.217336 | G190: 121.275226 | H190: =SQRT((E190-$D$2)^2+(F190-$E$2)^2+(G190-$F$2)^2) -> 100.741662
B191: #9E927A | C191: Light Brownish Gray | D191: 2.5Y 6/2 | E191: 158.508601 | F191: 146.102657 | G191: 122.530049 | H191: =SQRT((E191-$D$2)^2+(F191-$E$2)^2+(G191-$F$2)^2) -> 102.1322009
B192: #B28B71 | C192: Light Reddish Brown | D192: 5YR 6/4 | E192: 178.862866 | F192: 139.258966 | G192: 113.16433 | H192: =SQRT((E192-$D$2)^2+(F192-$E$2)^2+(G192-$F$2)^2) -> 102.5286538
B193: #AA8E76 | C193: Light Brown | D193: 7.5YR 6/3 | E193: 170.444835 | F193: 142.193867 | G193: 118.232051 | H193: =SQRT((E193-$D$2)^2+(F193-$E$2)^2+(G193-$F$2)^2) -> 102.5386434
B194: #A1907C | C194: Light Brownish Gray | D194: 10YR 6/2 | E194: 161.466201 | F194: 144.891678 | G194: 124.816235 | H194: =SQRT((E194-$D$2)^2+(F194-$E$2)^2+(G194-$F$2)^2) -> 104.2423148
B195: #C28466 | C195: Light Red | D195: 2.5YR 6/6 | E195: 194.932059 | F195: 132.775473 | G195: 102.828993 | H195: =SQRT((E195-$D$2)^2+(F195-$E$2)^2+(G195-$F$2)^2) -> 104.5920082
B196: #AC8D79 | C196: Light Reddish Brown | D196: 5YR 6/3 | E196: 172.101906 | F196: 141.249184 | G196: 121.730808 | H196: =SQRT((E196-$D$2)^2+(F196-$E$2)^2+(G196-$F$2)^2) -> 105.1787827
B197: #CE7F57 | C197: Light Red | D197: 2.5YR 6/8 | E197: 206.987612 | F197: 127.538032 | G197: 87.137527 | H197: =SQRT((E197-$D$2)^2+(F197-$E$2)^2+(G197-$F$2)^2) -> 105.5552002
B198: #B48976 | C198: Light Reddish Brown | D198: 2.5YR 6/4 | E198: 180.793282 | F198: 137.992396 | G198: 118.412409 | H198: =SQRT((E198-$D$2)^2+(F198-$E$2)^2+(G198-$F$2)^2) -> 106.2468114
B199: #A38F7F | C199: Pinkish Gray | D199: 7.5YR 6/2 | E199: 163.698559 | F199: 143.845527 | G199: 127.673712 | H199: =SQRT((E199-$D$2)^2+(F199-$E$2)^2+(G199-$F$2)^2) -> 106.6304935
B200: #AD8C7D | C200: Light Reddish Brown | D200: 2.5YR 6/3 | E200: 173.43685 | F200: 140.358077 | G200: 125.731247 | H200: =SQRT((E200-$D$2)^2+(F200-$E$2)^2+(G200-$F$2)^2) -> 108.1014871
B201: #949486 | C201: Greenish Gray | D201: 10Y 6/1 | E201: 148.927318 | F201: 148.121718 | G201: 134.096763 | H201: =SQRT((E201-$D$2)^2+(F201-$E$2)^2+(G201-$F$2)^2) -> 108.3678154
B202: #A48F82 | C202: Pinkish Gray | D202: 5YR 6/2 | E202: 164.821289 | F202: 143.212422 | G202: 130.1136 | H202: =SQRT((E202-$D$2)^2+(F202-$E$2)^2+(G202-$F$2)^2) -> 108.5232522
... 125 more rows

Sheet Flora of British Fungi
A1: Find nearest colour | B1: Hex | C1: Std notation | D1: R calc | E1: G calc | F1: B calc | J1: Royal Botanic Garden Edinburgh, Flora of British Fungi, Colour Identification Chart, 1969
A2: Paste hex code -> | B2: 755534 | C2: ="#" & SUBSTITUTE(B2,"#","") -> #755534 | D2: =HEX2DEC(MID(C2,2,2)) -> 117 | E2: =HEX2DEC(MID(C2,4,2)) -> 85 | F2: =HEX2DEC(MID(C2,6,2)) -> 52 | J2: color plates scanned using NIX photometer, June 2025
A5: Colour | B5: Hex Code | C5: Name | D5: R | E5: G | F5: B | G5: Calc Distance
B6: #79513d | C6: 18 Umber | D6: 121 | E6: 81 | F6: 61 | G6: =SQRT((D6-$D$2)^2+(E6-$E$2)^2+(F6-$F$2)^2) -> 10.63014581
B7: #6a4d3f | C7: 24 Date Brown | D7: 106 | E7: 77 | F7: 63 | G7: =SQRT((D7-$D$2)^2+(E7-$E$2)^2+(F7-$F$2)^2) -> 17.49285568
B8: #714132 | C8: 19 Bay | D8: 113 | E8: 65 | F8: 50 | G8: =SQRT((D8-$D$2)^2+(E8-$E$2)^2+(F8-$F$2)^2) -> 20.49390153
B9: #634f3f | C9: 16 Cigar Brown | D9: 99 | E9: 79 | F9: 63 | G9: =SQRT((D9-$D$2)^2+(E9-$E$2)^2+(F9-$F$2)^2) -> 21.9317122
B10: #61503d | C10: 26 Sepia | D10: 97 | E10: 80 | F10: 61 | G10: =SQRT((D10-$D$2)^2+(E10-$E$2)^2+(F10-$F$2)^2) -> 22.49444376
B11: #87493f | C11: 20 Dark Brick | D11: 135 | E11: 73 | F11: 63 | G11: =SQRT((D11-$D$2)^2+(E11-$E$2)^2+(F11-$F$2)^2) -> 24.2693222
B12: #826245 | C12: 17 Snuff Brown | D12: 130 | E12: 98 | F12: 69 | G12: =SQRT((D12-$D$2)^2+(E12-$E$2)^2+(F12-$F$2)^2) -> 25.03996805
B13: #7c574d | C13: 22 Purplish Date | D13: 124 | E13: 87 | F13: 77 | G13: =SQRT((D13-$D$2)^2+(E13-$E$2)^2+(F13-$F$2)^2) -> 26.03843313
B14: #6d4d4c | C14: 25 Brown Vinaceous | D14: 109 | E14: 77 | F14: 76 | G14: =SQRT((D14-$D$2)^2+(E14-$E$2)^2+(F14-$F$2)^2) -> 26.53299832
B15: #945238 | C15: 14 Rusty Tawny | D15: 148 | E15: 82 | F15: 56 | G15: =SQRT((D15-$D$2)^2+(E15-$E$2)^2+(F15-$F$2)^2) -> 31.40063694
B16: #90534b | C16: 23 Chestnut | D16: 144 | E16: 83 | F16: 75 | G16: =SQRT((D16-$D$2)^2+(E16-$E$2)^2+(F16-$F$2)^2) -> 35.52463934
B17: #5c3e41 | C17: 21 Purplish Chestnut | D17: 92 | E17: 62 | F17: 65 | G17: =SQRT((D17-$D$2)^2+(E17-$E$2)^2+(F17-$F$2)^2) -> 36.37306696
B18: #7a7940 | C18: 62 Olivaceous | D18: 122 | E18: 121 | F18: 64 | G18: =SQRT((D18-$D$2)^2+(E18-$E$2)^2+(F18-$F$2)^2) -> 38.27531842
B19: #867b24 | C19: 64 Citrine | D19: 134 | E19: 123 | F19: 36 | G19: =SQRT((D19-$D$2)^2+(E19-$E$2)^2+(F19-$F$2)^2) -> 44.59820624
B20: #897151 | C20: 27 Hazel | D20: 137 | E20: 113 | F20: 81 | G20: =SQRT((D20-$D$2)^2+(E20-$E$2)^2+(F20-$F$2)^2) -> 45
B21: #4a4840 | C21: 37 Olivaceous Black | D21: 74 | E21: 72 | F21: 64 | G21: =SQRT((D21-$D$2)^2+(E21-$E$2)^2+(F21-$F$2)^2) -> 46.49731175
B22: #45623d | C22: 59 Leaf Green | D22: 69 | E22: 98 | F22: 61 | G22: =SQRT((D22-$D$2)^2+(E22-$E$2)^2+(F22-$F$2)^2) -> 50.53711507
B23: #882632 | C23: 41 Blood Red | D23: 136 | E23: 38 | F23: 50 | G23: =SQRT((D23-$D$2)^2+(E23-$E$2)^2+(F23-$F$2)^2) -> 50.73460358
B24: #463936 | C24: 36 Fuscous Grey | D24: 70 | E24: 57 | F24: 54 | G24: =SQRT((D24-$D$2)^2+(E24-$E$2)^2+(F24-$F$2)^2) -> 54.74486277
B25: #7f785d | C25: 61 Grey olivaceous | D25: 127 | E25: 120 | F25: 93 | G25: =SQRT((D25-$D$2)^2+(E25-$E$2)^2+(F25-$F$2)^2) -> 54.82700065
B26: #787067 | C26: 35 Mouse Grey | D26: 120 | E26: 112 | F26: 103 | G26: =SQRT((D26-$D$2)^2+(E26-$E$2)^2+(F26-$F$2)^2) -> 57.78408085
B27: #aa7338 | C27: 12 Fulvous | D27: 170 | E27: 115 | F27: 56 | G27: =SQRT((D27-$D$2)^2+(E27-$E$2)^2+(F27-$F$2)^2) -> 61.03277808
B28: #8c7861 | C28: 33 Drab | D28: 140 | E28: 120 | F28: 97 | G28: =SQRT((D28-$D$2)^2+(E28-$E$2)^2+(F28-$F$2)^2) -> 61.47357156
B29: #3a3b3e | C29: 38 Violaceous Black | D29: 58 | E29: 59 | F29: 62 | G29: =SQRT((D29-$D$2)^2+(E29-$E$2)^2+(F29-$F$2)^2) -> 65.24568951
B30: #796773 | C30: 80 Vinaceous Grey | D30: 121 | E30: 103 | F30: 115 | G30: =SQRT((D30-$D$2)^2+(E30-$E$2)^2+(F30-$F$2)^2) -> 65.64297373
B31: #b16c52 | C31: 15 Brick | D31: 177 | E31: 108 | F31: 82 | G31: =SQRT((D31-$D$2)^2+(E31-$E$2)^2+(F31-$F$2)^2) -> 70.91544261
B32: #6d816c | C32: 65 Green Grey | D32: 109 | E32: 129 | F32: 108 | G32: =SQRT((D32-$D$2)^2+(E32-$E$2)^2+(F32-$F$2)^2) -> 71.66589147
B33: #413c5f | C33: 83 Dark Violet | D33: 65 | E33: 60 | F33: 95 | G33: =SQRT((D33-$D$2)^2+(E33-$E$2)^2+(F33-$F$2)^2) -> 71.95832127
B34: #9c7d62 | C34: 28 Milky coffee | D34: 156 | E34: 125 | F34: 98 | G34: =SQRT((D34-$D$2)^2+(E34-$E$2)^2+(F34-$F$2)^2) -> 72.36711961
B35: #a27b63 | C35: 29 Fawn | D35: 162 | E35: 123 | F35: 99 | G35: =SQRT((D35-$D$2)^2+(E35-$E$2)^2+(F35-$F$2)^2) -> 75.35250494
B36: #7b9f47 | C36: 58 Herbarium Green | D36: 123 | E36: 159 | F36: 71 | G36: =SQRT((D36-$D$2)^2+(E36-$E$2)^2+(F36-$F$2)^2) -> 76.63550091
B37: #285344 | C37: 60 Dark Green | D37: 40 | E37: 83 | F37: 68 | G37: =SQRT((D37-$D$2)^2+(E37-$E$2)^2+(F37-$F$2)^2) -> 78.67019766
B38: #7c9564 | C38: 68 Pistachio Green | D38: 124 | E38: 149 | F38: 100 | G38: =SQRT((D38-$D$2)^2+(E38-$E$2)^2+(F38-$F$2)^2) -> 80.30566605
B39: #c56540 | C39: 13 Rust | D39: 197 | E39: 101 | F39: 64 | G39: =SQRT((D39-$D$2)^2+(E39-$E$2)^2+(F39-$F$2)^2) -> 82.46211251
B40: #aa386e | C40: 40 Purple | D40: 170 | E40: 56 | F40: 110 | G40: =SQRT((D40-$D$2)^2+(E40-$E$2)^2+(F40-$F$2)^2) -> 83.74962686
B41: #453474 | C41: 82 Violet | D41: 69 | E41: 52 | F41: 116 | G41: =SQRT((D41-$D$2)^2+(E41-$E$2)^2+(F41-$F$2)^2) -> 86.53900855
B42: #c87932 | C42: 11 Sienna | D42: 200 | E42: 121 | F42: 50 | G42: =SQRT((D42-$D$2)^2+(E42-$E$2)^2+(F42-$F$2)^2) -> 90.49309366
B43: #29345d | C43: 73 Dark Blue | D43: 41 | E43: 52 | F43: 93 | G43: =SQRT((D43-$D$2)^2+(E43-$E$2)^2+(F43-$F$2)^2) -> 92.44457799
B44: #ca3444 | C44: 42 Red | D44: 202 | E44: 52 | F44: 68 | G44: =SQRT((D44-$D$2)^2+(E44-$E$2)^2+(F44-$F$2)^2) -> 92.57429449
B45: #797c8e | C45: 75 Leaden Grey | D45: 121 | E45: 124 | F45: 142 | G45: =SQRT((D45-$D$2)^2+(E45-$E$2)^2+(F45-$F$2)^2) -> 98.16822296
B46: #c58459 | C46: 10 Cinnamon | D46: 197 | E46: 132 | F46: 89 | G46: =SQRT((D46-$D$2)^2+(E46-$E$2)^2+(F46-$F$2)^2) -> 99.88993943
B47: #637692 | C47: 74 Eye Blue | D47: 99 | E47: 118 | F47: 146 | G47: =SQRT((D47-$D$2)^2+(E47-$E$2)^2+(F47-$F$2)^2) -> 101.2373449
B48: #aa7c90 | C48: 77 Livid Vinaceous | D48: 170 | E48: 124 | F48: 144 | G48: =SQRT((D48-$D$2)^2+(E48-$E$2)^2+(F48-$F$2)^2) -> 113.1105654
B49: #b49779 | C49: 32 Clay Buff | D49: 180 | E49: 151 | F49: 121 | G49: =SQRT((D49-$D$2)^2+(E49-$E$2)^2+(F49-$F$2)^2) -> 114.3940558
B50: #ea4736 | C50: 43 Scarlet | D50: 234 | E50: 71 | F50: 54 | G50: =SQRT((D50-$D$2)^2+(E50-$E$2)^2+(F50-$F$2)^2) -> 117.8516016
B51: #45b56f | C51: 67 Green | D51: 69 | E51: 181 | F51: 111 | G51: =SQRT((D51-$D$2)^2+(E51-$E$2)^2+(F51-$F$2)^2) -> 122.4785696
B52: #eb7d35 | C52: 47 Apricot | D52: 235 | E52: 125 | F52: 53 | G52: =SQRT((D52-$D$2)^2+(E52-$E$2)^2+(F52-$F$2)^2) -> 124.5993579
B53: #cb8682 | C53: 76 Vinaceous | D53: 203 | E53: 134 | F53: 130 | G53: =SQRT((D53-$D$2)^2+(E53-$E$2)^2+(F53-$F$2)^2) -> 126.0198397
B54: #ea735f | C54: 44 Coral | D54: 234 | E54: 115 | F54: 95 | G54: =SQRT((D54-$D$2)^2+(E54-$E$2)^2+(F54-$F$2)^2) -> 128.210764
B55: #00796f | C55: 70 Dark Bluish Green | D55: 0 | E55: 121 | F55: 111 | G55: =SQRT((D55-$D$2)^2+(E55-$E$2)^2+(F55-$F$2)^2) -> 135.8896611
B56: #c3a78f | C56: 31 Vinaceous Buff | D56: 195 | E56: 167 | F56: 143 | G56: =SQRT((D56-$D$2)^2+(E56-$E$2)^2+(F56-$F$2)^2) -> 145.220522
B57: #eaab23 | C57: 09 H Ochre | D57: 234 | E57: 171 | F57: 35 | G57: =SQRT((D57-$D$2)^2+(E57-$E$2)^2+(F57-$F$2)^2) -> 146.1984952
B58: #d1a588 | C58: 30 Clay Pink | D58: 209 | E58: 165 | F58: 136 | G58: =SQRT((D58-$D$2)^2+(E58-$E$2)^2+(F58-$F$2)^2) -> 148.0540442
B59: #b5ac9d | C59: 34 Smoke Grey | D59: 181 | E59: 172 | F59: 157 | G59: =SQRT((D59-$D$2)^2+(E59-$E$2)^2+(F59-$F$2)^2) -> 150.6320019
B60: #3baba4 | C60: 69 Bluish Green | D60: 59 | E60: 171 | F60: 164 | G60: =SQRT((D60-$D$2)^2+(E60-$E$2)^2+(F60-$F$2)^2) -> 152.6564771
B61: #00977f | C61: 66 Greyish Green | D61: 0 | E61: 151 | F61: 127 | G61: =SQRT((D61-$D$2)^2+(E61-$E$2)^2+(F61-$F$2)^2) -> 153.8505769
B62: #bfb792 | C62: 63 Olivaceous Buff | D62: 191 | E62: 183 | F62: 146 | G62: =SQRT((D62-$D$2)^2+(E62-$E$2)^2+(F62-$F$2)^2) -> 154.6479874
B63: #ff9f21 | C63: 48 Orange | D63: 255 | E63: 159 | F63: 33 | G63: =SQRT((D63-$D$2)^2+(E63-$E$2)^2+(F63-$F$2)^2) -> 157.7371231
B64: #c9d36a | C64: 56 Yellowish Green | D64: 201 | E64: 211 | F64: 106 | G64: =SQRT((D64-$D$2)^2+(E64-$E$2)^2+(F64-$F$2)^2) -> 160.7731321
B65: #e3bc7d | C65: 52 Buff | D65: 227 | E65: 188 | F65: 125 | G65: =SQRT((D65-$D$2)^2+(E65-$E$2)^2+(F65-$F$2)^2) -> 167.4455135
B66: #9c97cb | C66: 81 Lavender | D66: 156 | E66: 151 | F66: 203 | G66: =SQRT((D66-$D$2)^2+(E66-$E$2)^2+(F66-$F$2)^2) -> 169.3458001
B67: #3899c6 | C67: 71 Sky Blue | D67: 56 | E67: 153 | F67: 198 | G67: =SQRT((D67-$D$2)^2+(E67-$E$2)^2+(F67-$F$2)^2) -> 172.2236918
B68: #0068b3 | C68: 72 Blue | D68: 0 | E68: 104 | F68: 179 | G68: =SQRT((D68-$D$2)^2+(E68-$E$2)^2+(F68-$F$2)^2) -> 173.7210408
B69: #ffac7e | C69: 46 Peach | D69: 255 | E69: 172 | F69: 126 | G69: =SQRT((D69-$D$2)^2+(E69-$E$2)^2+(F69-$F$2)^2) -> 179.134028
B70: #c5a1c4 | C70: 79 Lilac | D70: 197 | E70: 161 | F70: 196 | G70: =SQRT((D70-$D$2)^2+(E70-$E$2)^2+(F70-$F$2)^2) -> 181.4166475
B71: #ffca1f | C71: 51 Luteous | D71: 255 | E71: 202 | F71: 31 | G71: =SQRT((D71-$D$2)^2+(E71-$E$2)^2+(F71-$F$2)^2) -> 182.1373108
B72: #e9e24a | C72: 57 Greenish Yellow | D72: 233 | E72: 226 | F72: 74 | G72: =SQRT((D72-$D$2)^2+(E72-$E$2)^2+(F72-$F$2)^2) -> 183.9048667
B73: #ffc26b | C73: 49 Saffron | D73: 255 | E73: 194 | F73: 107 | G73: =SQRT((D73-$D$2)^2+(E73-$E$2)^2+(F73-$F$2)^2) -> 184.2552577
B74: #fbce00 | C74: 53 Lemon Chrome | D74: 251 | E74: 206 | F74: 0 | G74: =SQRT((D74-$D$2)^2+(E74-$E$2)^2+(F74-$F$2)^2) -> 187.8856035
B75: #f798ab | C75: 39 Rose | D75: 247 | E75: 152 | F75: 171 | G75: =SQRT((D75-$D$2)^2+(E75-$E$2)^2+(F75-$F$2)^2) -> 188.5470763
B76: #ffd46b | C76: 08 G Ochraceous | D76: 255 | E76: 212 | F76: 107 | G76: =SQRT((D76-$D$2)^2+(E76-$E$2)^2+(F76-$F$2)^2) -> 195.4430863
B77: #f7e457 | C77: 54 Lemon Yellow | D77: 247 | E77: 228 | F77: 87 | G77: =SQRT((D77-$D$2)^2+(E77-$E$2)^2+(F77-$F$2)^2) -> 196.4026476
B78: #ffc49f | C78: 45 Salmon | D78: 255 | E78: 196 | F78: 159 | G78: =SQRT((D78-$D$2)^2+(E78-$E$2)^2+(F78-$F$2)^2) -> 206.9154417
B79: #fedb91 | C79: 06 F Pale Ochraceous | D79: 254 | E79: 219 | F79: 145 | G79: =SQRT((D79-$D$2)^2+(E79-$E$2)^2+(F79-$F$2)^2) -> 213.0117368
B80: #f9e28f | C80: 50 Straw Yellow | D80: 249 | E80: 226 | F80: 143 | G80: =SQRT((D80-$D$2)^2+(E80-$E$2)^2+(F80-$F$2)^2) -> 213.508782
B81: #fae1a2 | C81: 05 E Yellowish Cream | D81: 250 | E81: 225 | F81: 162 | G81: =SQRT((D81-$D$2)^2+(E81-$E$2)^2+(F81-$F$2)^2) -> 222.2363607
B82: #efeeab | C82: 55 Sulphur Yellow | D82: 239 | E82: 238 | F82: 171 | G82: =SQRT((D82-$D$2)^2+(E82-$E$2)^2+(F82-$F$2)^2) -> 229.0283825
B83: #f3e0bb | C83: 04 D Cream | D83: 243 | E83: 224 | F83: 187 | G83: =SQRT((D83-$D$2)^2+(E83-$E$2)^2+(F83-$F$2)^2) -> 231.1319969
B84: #f7e8c0 | C84: 03 C Pale Cream | D84: 247 | E84: 232 | F84: 192 | G84: =SQRT((D84-$D$2)^2+(E84-$E$2)^2+(F84-$F$2)^2) -> 241.0580843
B85: #f5e8ce | C85: 02 B Ivory | D85: 245 | E85: 232 | F85: 206 | G85: =SQRT((D85-$D$2)^2+(E85-$E$2)^2+(F85-$F$2)^2) -> 248.4129626

Sheet Pantone-Like
A1: Find nearest colour | B1: Hex | C1: Std notation | D1: R calc | E1: G cal | F1: B calc | I1: Pantone-like codes scraped from margaret2.github.io/pantone-colors/
A2: Paste hex code -> | B2: d3a37f | C2: ="#" & SUBSTITUTE(B2,"#","") -> #d3a37f | D2: =HEX2DEC(MID(C2,2,2)) -> 211 | E2: =HEX2DEC(MID(C2,4,2)) -> 163 | F2: =HEX2DEC(MID(C2,6,2)) -> 127 | I2: See also
I3: https://www.pantone.com/color-finder#/pick?pantoneBook=pantoneSolidCoatedV3M2
I4: https://www.color-hex.com/color/
A5: Colour | B5: Hex Code | C5: Name | D5: R | E5: G | F5: B | G5: Calc Distance | I5: https:/www.pantone.com/color-finder
B6: #cca580 | C6: Porcini | D6: =HEX2DEC(MID(B6,2,2)) -> 204 | E6: =HEX2DEC(MID(B6,4,2)) -> 165 | F6: =HEX2DEC(RIGHT(B6,2)) -> 128 | G6: =SQRT((D6-$D$2)^2+(E6-$E$2)^2+(F6-$F$2)^2) -> 7.348469228 | I6: https://www.colorxs.com/color/
B7: #cca67f | C7: Sand | D7: 204 | E7: 166 | F7: 127 | G7: 7.615773106
B8: #d29b83 | C8: Dusty coral | D8: 210 | E8: 155 | F8: 131 | G8: 9
B9: #d99b7c | C9: Peach bloom | D9: 217 | E9: 155 | F9: 124 | G9: 10.44030651
B10: #d2a172 | C10: Clay | D10: 210 | E10: 161 | F10: 114 | G10: 13.19090596
B11: #c5a582 | C11: Latte | D11: 197 | E11: 165 | F11: 130 | G11: 14.45683229
B12: #ca9978 | C12: Toast | D12: 202 | E12: 153 | F12: 120 | G12: 15.16575089
B13: #d29380 | C13: Muted clay | D13: 210 | E13: 147 | F13: 128 | G13: 16.0623784
B14: #c9a38d | C14: Maple sugar | D14: 201 | E14: 163 | F14: 141 | G14: 17.20465053
B15: #c9b27c | C15: Cocoon | D15: 201 | E15: 178 | F15: 124 | G15: 18.27566688
B16: #c4ab86 | C16: Croissant | D16: 196 | E16: 171 | F16: 134 | G16: 18.38477631
B17: #d7b57f | C17: New wheat | D17: 215 | E17: 181 | F17: 127 | G17: 18.43908891
B18: #c79685 | C18: Cafe creme | D18: 199 | E18: 150 | F18: 133 | G18: 18.68154169
B19: #e29a86 | C19: Shrimp | D19: 226 | E19: 154 | F19: 134 | G19: 18.84144368
B20: #c39d88 | C20: Sirocco | D20: 195 | E20: 157 | F20: 136 | G20: 19.31320792
B21: #d1b272 | C21: Rattan | D21: 209 | E21: 178 | F21: 114 | G21: 19.94993734
B22: #bfa77f | C22: Taos taupe | D22: 191 | E22: 167 | F22: 127 | G22: 20.39607805
B23: #bfa387 | C23: Candied ginger | D23: 191 | E23: 163 | F23: 135 | G23: 21.54065923
B24: #c0ad7c | C24: Hemp | D24: 192 | E24: 173 | F24: 124 | G24: 21.67948339
B25: #dd9289 | C25: Lobster bisque | D25: 221 | E25: 146 | F25: 137 | G25: 22.11334439
B26: #c8b273 | C26: Rich gold | D26: 200 | E26: 178 | F26: 115 | G26: 22.13594362
B27: #e1927a | C27: Canyon sunset | D27: 225 | E27: 146 | F27: 122 | G27: 22.58317958
B28: #bfa58a | C28: Ginger root | D28: 191 | E28: 165 | F28: 138 | G28: 22.91287847
B29: #c1a68d | C29: Cuban sand | D29: 193 | E29: 166 | F29: 141 | G29: 23
B30: #ccb97e | C30: Dried moss | D30: 204 | E30: 185 | F30: 126 | G30: 23.10844002
B31: #bca483 | C31: Curds & whey | D31: 188 | E31: 164 | F31: 131 | G31: 23.36664289
B32: #dd9c6b | C32: Gold earth | D32: 221 | E32: 156 | F32: 107 | G32: 23.43074903
B33: #c9a86a | C33: Fall leaf | D33: 201 | E33: 168 | F33: 106 | G33: 23.79075451
B34: #d3a297 | C34: Peach beige | D34: 211 | E34: 162 | F34: 151 | G34: 24.0208243
B35: #e0b589 | C35: Desert mist | D35: 224 | E35: 181 | F35: 137 | G35: 24.35159132
B36: #ccb390 | C36: Almond buff | D36: 204 | E36: 179 | F36: 144 | G36: 24.37211521
B37: #c5a193 | C37: Mahogany rose | D37: 197 | E37: 161 | F37: 147 | G37: 24.49489743
B38: #cfbb7b | C38: Pampas | D38: 207 | E38: 187 | F38: 123 | G38: 24.65765601
B39: #ce8e8b | C39: Rosette | D39: 206 | E39: 142 | F39: 139 | G39: 24.69817807
B40: #be9785 | C40: Tuscany | D40: 190 | E40: 151 | F40: 133 | G40: 24.91987159
B41: #bbaa7e | C41: Silver fern | D41: 187 | E41: 170 | F41: 126 | G41: 25.01999201
B42: #d19c97 | C42: Rose tan | D42: 209 | E42: 156 | F42: 151 | G42: 25.07987241
B43: #dab58f | C43: Sheepskin | D43: 218 | E43: 181 | F43: 143 | G43: 25.07987241
B44: #c5ae91 | C44: Warm sand | D44: 197 | E44: 174 | F44: 145 | G44: 25.3179778
B45: #cfb095 | C45: Hazelnut | D45: 207 | E45: 176 | F45: 149 | G45: 25.86503431
B46: #e29d94 | C46: Coral almond | D46: 226 | E46: 157 | F46: 148 | G46: 26.4952826
B47: #ecaa79 | C47: Apricot nectar | D47: 236 | E47: 170 | F47: 121 | G47: 26.64582519
B48: #be9e6f | C48: Curry | D48: 190 | E48: 158 | F48: 111 | G48: 26.87005769
B49: #e38e84 | C49: Coral haze | D49: 227 | E49: 142 | F49: 132 | G49: 26.87005769
B50: #c2a594 | C50: Rugby tan | D50: 194 | E50: 165 | F50: 148 | G50: 27.09243437
B51: #c39b6a | C51: Taffy | D51: 195 | E51: 155 | F51: 106 | G51: 27.58622845
B52: #baa38b | C52: Sesame | D52: 186 | E52: 163 | F52: 139 | G52: 27.73084925
B53: #edaa86 | C53: Coral sands | D53: 237 | E53: 170 | F53: 134 | G53: 27.82085549
B54: #d6af66 | C54: Ochre | D54: 214 | E54: 175 | F54: 102 | G54: 27.89265136
B55: #dabe81 | C55: Jojoba | D55: 218 | E55: 190 | F55: 129 | G55: 27.96426291
B56: #b99984 | C56: Brush | D56: 185 | E56: 153 | F56: 132 | G56: 28.3019434
B57: #c0ac92 | C57: Irish cream | D57: 192 | E57: 172 | F57: 146 | G57: 28.33725463
B58: #eb9687 | C58: Blooming dahlia | D58: 235 | E58: 150 | F58: 135 | G58: 28.44292531
B59: #caa39a | C59: Misty rose | D59: 202 | E59: 163 | F59: 154 | G59: 28.46049894
B60: #ea9575 | C60: Shell coral | D60: 234 | E60: 149 | F60: 117 | G60: 28.72281323
B61: #e6af91 | C61: Peach nougat | D61: 230 | E61: 175 | F61: 145 | G61: 28.7923601
B62: #cf9c63 | C62: Oak buff | D62: 207 | E62: 156 | F62: 99 | G62: 29.13760457
B63: #d1969a | C63: Blush | D63: 209 | E63: 150 | F63: 154 | G63: 30.03331484
B64: #bfaf92 | C64: Pale khaki | D64: 191 | E64: 175 | F64: 146 | G64: 30.08321791
B65: #c7b595 | C65: Mojave desert | D65: 199 | E65: 181 | F65: 149 | G65: 30.85449724
B66: #deaa9b | C66: Dusty pink | D66: 222 | E66: 170 | F66: 155 | G66: 30.88689042
B67: #b89b72 | C67: Lark | D67: 184 | E67: 155 | F67: 114 | G67: 31.01612484
B68: #bca66a | C68: Southern moss | D68: 188 | E68: 166 | F68: 106 | G68: 31.28897569
B69: #c08a80 | C69: Cameo brown | D69: 192 | E69: 138 | F69: 128 | G69: 31.41655614
B70: #b69885 | C70: Nougat | D70: =HEX2DEC(MID(B70,2,2)) -> 182 | E70: =HEX2DEC(MID(B70,4,2)) -> 152 | F70: =HEX2DEC(RIGHT(B70,2)) -> 133 | G70: =SQRT((D70-$D$2)^2+(E70-$E$2)^2+(F70-$F$2)^2) -> 31.591138
B71: #baaa91 | C71: Safari | D71: 186 | E71: 170 | F71: 145 | G71: 31.591138
B72: #b7b17a | C72: Leek green | D72: 183 | E72: 177 | F72: 122 | G72: 31.70173497
B73: #c0916c | C73: Fenugreek | D73: 192 | E73: 145 | F73: 108 | G73: 32.34192326
B74: #ce8477 | C74: Canyon clay | D74: 206 | E74: 132 | F74: 119 | G74: 32.40370349
B75: #f2a987 | C75: Peach | D75: 242 | E75: 169 | F75: 135 | G75: 32.57299495
B76: #d18489 | C76: Mauveglow | D76: 209 | E76: 132 | F76: 137 | G76: 32.63433774
B77: #cab698 | C77: Pebble | D77: 202 | E77: 182 | F77: 152 | G77: 32.66496594
B78: #b49f89 | C78: Nomad | D78: 180 | E78: 159 | F78: 137 | G78: 32.81767816
B79: #b5ad88 | C79: Pale olive green | D79: 181 | E79: 173 | F79: 136 | G79: 32.87856445
B80: #e8a798 | C80: Coral pink | D80: 232 | E80: 167 | F80: 152 | G80: 32.89376841
B81: #d38377 | C81: Terra cotta | D81: 211 | E81: 131 | F81: 119 | G81: 32.984845
B82: #c2877b | C82: Rose dawn | D82: 194 | E82: 135 | F82: 123 | G82: 33
B83: #dfc08a | C83: Sahara sun | D83: 223 | E83: 192 | F83: 138 | G83: 33.2565783
B84: #e3bc8e | C84: Desert dust | D84: 227 | E84: 188 | F84: 142 | G84: 33.2565783
B85: #dfb19b | C85: Pink sand | D85: 223 | E85: 177 | F85: 155 | G85: 33.52610923
B86: #d2b49c | C86: Toasted almond | D86: 210 | E86: 180 | F86: 156 | G86: 33.63034344
B87: #d8b998 | C87: Mellow buff | D87: 216 | E87: 185 | F87: 152 | G87: 33.67491648
B88: #ceb899 | C88: Semolina | D88: 206 | E88: 184 | F88: 153 | G88: 33.7934905
B89: #cfc486 | C89: Shadow green | D89: 207 | E89: 196 | F89: 134 | G89: 33.9705755
B90: #dac483 | C90: Raffia | D90: 218 | E90: 196 | F90: 131 | G90: 33.9705755
B91: #b69574 | C91: Tan | D91: 182 | E91: 149 | F91: 116 | G91: 34.02939905
B92: #d5ba98 | C92: Beige | D92: 213 | E92: 186 | F92: 152 | G92: 34.02939905
B93: #e9897e | C93: Burnt coral | D93: 233 | E93: 137 | F93: 126 | G93: 34.07345007
B94: #ca848a | C94: Brandied apricot | D94: 202 | E94: 132 | F94: 138 | G94: 34.10278581
B95: #b7a793 | C95: Humus | D95: 183 | E95: 167 | F95: 147 | G95: 34.64101615
B96: #d9a6a1 | C96: Mellow rose | D96: 217 | E96: 166 | F96: 161 | G96: 34.6554469
B97: #dd9760 | C97: Apricot tan | D97: 221 | E97: 151 | F97: 96 | G97: 34.71310992
B98: #c4bf71 | C98: Linden green | D98: 196 | E98: 191 | F98: 113 | G98: 34.71310992
B99: #dab965 | C99: Misted yellow | D99: 218 | E99: 185 | F99: 101 | G99: 34.7706773
B100: #bdb369 | C100: Golden green | D100: 189 | E100: 179 | F100: 105 | G100: 34.98571137
B101: #b3b17b | C101: Weeping willow | D101: 179 | E101: 177 | F101: 123 | G101: 35.15679166
B102: #b39f8d | C102: Gilded beige | D102: 179 | E102: 159 | F102: 141 | G102: 35.15679166
B103: #de8e65 | C103: Copper tan | D103: 222 | E103: 142 | F103: 101 | G103: 35.18522417
B104: #c68f65 | C104: Butterum | D104: 198 | E104: 143 | F104: 101 | G104: 35.28455753
B105: #d69fa2 | C105: Bridal rose | D105: 214 | E105: 159 | F105: 162 | G105: 35.35533906
B106: #b2ac88 | C106: Sage green | D106: 178 | E106: 172 | F106: 136 | G106: 35.36947837
B107: #de8286 | C107: Peach blossom | D107: 222 | E107: 130 | F107: 134 | G107: 35.48239
B108: #e78b90 | C108: Strawberry ice | D108: 231 | E108: 139 | F108: 144 | G108: 35.56683849
B109: #b6a893 | C109: White pepper | D109: 182 | E109: 168 | F109: 147 | G109: 35.58089375
B110: #bd9865 | C110: Pale gold | D110: 189 | E110: 152 | F110: 101 | G110: 35.79106034
B111: #e6bd8f | C111: Golden straw | D111: 230 | E111: 189 | F111: 143 | G111: 35.95830919
B112: #ba9f99 | C112: Adobe rose | D112: 186 | E112: 159 | F112: 153 | G112: 36.29049462
B113: #bdab9b | C113: Doeskin | D113: 189 | E113: 171 | F113: 155 | G113: 36.49657518
B114: #c48a69 | C114: Sandstone | D114: 196 | E114: 138 | F114: 105 | G114: 36.52396474
B115: #e5b39b | C115: Almost apricot | D115: 229 | E115: 179 | F115: 155 | G115: 36.93237063
B116: #b09a77 | C116: Starfish | D116: 176 | E116: 154 | F116: 119 | G116: 37.01351105
B117: #af9a7e | C117: Incense | D117: 175 | E117: 154 | F117: 126 | G117: 37.12142239
B118: #d1c87c | C118: Muted lime | D118: 209 | E118: 200 | F118: 124 | G118: 37.17526059
B119: #c2c18d | C119: Beechnut | D119: 194 | E119: 193 | F119: 141 | G119: 37.21558813
B120: #b19d8d | C120: Light taupe | D120: 177 | E120: 157 | F120: 141 | G120: 37.25587202
B121: #f5a26f | C121: Pumpkin | D121: 245 | E121: 162 | F121: 111 | G121: 37.58989226
B122: #e2a9a1 | C122: Coral cloud | D122: 226 | E122: 169 | F122: 161 | G122: 37.64306045
B123: #babc72 | C123: Green banana | D123: 186 | E123: 188 | F123: 114 | G123: 37.6696164
B124: #b59a6a | C124: Prairie sand | D124: 181 | E124: 154 | F124: 106 | G124: 37.70941527
B125: #da7e7a | C125: Lantana | D125: 218 | E125: 126 | F125: 122 | G125: 37.98683983
B126: #dbb0a2 | C126: Rose cloud | D126: 219 | E126: 176 | F126: 162 | G126: 38.18376618
B127: #ae997d | C127: Travertine | D127: 174 | E127: 153 | F127: 125 | G127: 38.37968212
B128: #c5b1a0 | C128: Moonlight | D128: 197 | E128: 177 | F128: 160 | G128: 38.48376281
B129: #d1b7a0 | C129: Frappe | D129: 209 | E129: 183 | F129: 160 | G129: 38.63935817
B130: #b8a99a | C130: Oxford tan | D130: 184 | E130: 169 | F130: 154 | G130: 38.65229618
B131: #f9aa7d | C131: Orange chiffon | D131: 249 | E131: 170 | F131: 125 | G131: 38.69108424
B132: #bab696 | C132: Bog | D132: 186 | E132: 182 | F132: 150 | G132: 38.92300091
B133: #d1be9b | C133: Boulder | D133: 209 | E133: 190 | F133: 155 | G133: 38.94868419
B134: #faa181 | C134: Coral reef | D134: =HEX2DEC(MID(B134,2,2)) -> 250 | E134: =HEX2DEC(MID(B134,4,2)) -> 161 | F134: =HEX2DEC(RIGHT(B134,2)) -> 129 | G134: =SQRT((D134-$D$2)^2+(E134-$E$2)^2+(F134-$F$2)^2) -> 39.10242959
B135: #af9483 | C135: Warm taupe | D135: 175 | E135: 148 | F135: 131 | G135: 39.20459157
B136: #c6a4a4 | C136: Pale mauve | D136: 198 | E136: 164 | F136: 164 | G136: 39.23009049
B137: #bd8b69 | C137: Sandstorm | D137: 189 | E137: 139 | F137: 105 | G137: 39.29376541
B138: #d37f6f | C138: Tawny orange | D138: 211 | E138: 127 | F138: 111 | G138: 39.39543121
B139: #b1a992 | C139: Eucalyptus | D139: 177 | E139: 169 | F139: 146 | G139: 39.40812099
B140: #c1a65c | C140: Olivenite | D140: 193 | E140: 166 | F140: 92 | G140: 39.47150871
B141: #db9b59 | C141: Golden nugget | D141: 219 | E141: 155 | F141: 89 | G141: 39.6484552
B142: #b4bb85 | C142: Nile | D142: 180 | E142: 187 | F142: 133 | G142: 39.66106403
B143: #b0b487 | C143: Winter pear | D143: 176 | E143: 180 | F143: 135 | G143: 39.72404813
B144: #c89fa5 | C144: Zephyr | D144: 200 | E144: 159 | F144: 165 | G144: 39.7617907
B145: #b09080 | C145: Roebuck | D145: 176 | E145: 144 | F145: 128 | G145: 39.83716857
B146: #d77e70 | C146: Crabapple | D146: 215 | E146: 126 | F146: 112 | G146: 40.1248053
B147: #ce8498 | C147: Wild rose | D147: 206 | E147: 132 | F147: 152 | G147: 40.13726448
B148: #dda758 | C148: Golden apricot | D148: 221 | E148: 167 | F148: 88 | G148: 40.45985665
B149: #bd8c66 | C149: Pastry shell | D149: 189 | E149: 140 | F149: 102 | G149: 40.47221269
B150: #fa9a85 | C150: Peach pink | D150: 250 | E150: 154 | F150: 133 | G150: 40.47221269
B151: #b98e68 | C151: Doe | D151: 185 | E151: 142 | F151: 104 | G151: 40.57092555
B152: #ba8671 | C152: Cork | D152: 186 | E152: 134 | F152: 113 | G152: 40.76763422
B153: #bba5a0 | C153: Shadow gray | D153: 187 | E153: 165 | F153: 160 | G153: 40.85339643
B154: #c08768 | C154: Toasted nut | D154: 192 | E154: 135 | F154: 104 | G154: 40.91454509
B155: #f1bd89 | C155: Apricot cream | D155: 241 | E155: 189 | F155: 137 | G155: 40.93897898
B156: #d2cc81 | C156: Endive | D156: 210 | E156: 204 | F156: 129 | G156: 41.06093034
B157: #fbac82 | C157: Apricot wash | D157: 251 | E157: 172 | F157: 130 | G157: 41.10960958
B158: #cdb2a5 | C158: Rose dust | D158: 205 | E158: 178 | F158: 165 | G158: 41.29164564
B159: #dcbd9e | C159: Honey peach | D159: 220 | E159: 189 | F159: 158 | G159: 41.44876355
B160: #aea692 | C160: Spray green | D160: 174 | E160: 166 | F160: 146 | G160: 41.70131892
B161: #c28799 | C161: Polignac | D161: 194 | E161: 135 | F161: 153 | G161: 41.82104733
B162: #d8c09d | C162: Marzipan | D162: 216 | E162: 192 | F162: 157 | G162: 42.02380278
B163: #aea393 | C163: Plaza taupe | D163: 174 | E163: 163 | F163: 147 | G163: 42.05948169
B164: #fca289 | C164: Papaya punch | D164: 252 | E164: 162 | F164: 137 | G164: 42.21374184
B165: #b8ad9e | C165: Feather gray | D165: 184 | E165: 173 | F165: 158 | G165: 42.3083916
B166: #b38b71 | C166: Macaroon | D166: 179 | E166: 139 | F166: 113 | G166: 42.3792402
B167: #ddbca0 | C167: Appleblossom | D167: 221 | E167: 188 | F167: 160 | G167: 42.59107888
B168: #ce879f | C168: Cashmere rose | D168: 206 | E168: 135 | F168: 159 | G168: 42.81354926
B169: #edc373 | C169: Cornsilk | D169: 237 | E169: 195 | F169: 115 | G169: 42.94182111
B170: #ad9f93 | C170: Simply taupe | D170: 173 | E170: 159 | F170: 147 | G170: 43.12771731
B171: #bdaca3 | C171: Mushroom | D171: 189 | E171: 172 | F171: 163 | G171: 43.13930922
B172: #d1a054 | C172: Honey gold | D172: 209 | E172: 160 | F172: 84 | G172: 43.15089802
B173: #d2c29d | C173: Soybean | D173: 210 | E173: 194 | F173: 157 | G173: 43.15089802
B174: #f99471 | C174: Cadmium orange | D174: 249 | E174: 148 | F174: 113 | G174: 43.18564576
B175: #ae9490 | C175: Fawn | D175: 174 | E175: 148 | F175: 144 | G175: 43.39354791
B176: #b88995 | C176: Lilas | D176: 184 | E176: 137 | F176: 149 | G176: 43.46262762
B177: #c5cc7b | C177: Celery green | D177: 197 | E177: 204 | F177: 123 | G177: 43.50861984
B178: #f1bf70 | C178: Buff yellow | D178: 241 | E178: 191 | F178: 112 | G178: 43.69210455
B179: #c68463 | C179: Pheasant | D179: 198 | E179: 132 | F179: 99 | G179: 43.74928571
B180: #feaa7b | C180: Salmon buff | D180: 254 | E180: 170 | F180: 123 | G180: 43.74928571
B181: #afab97 | C181: Moss gray | D181: 175 | E181: 171 | F181: 151 | G181: 44
B182: #e3cc81 | C182: Dusky citron | D182: 227 | E182: 204 | F182: 129 | G182: 44.05678154
B183: #b59e5f | C183: Antique gold | D183: 181 | E183: 158 | F183: 95 | G183: 44.14748011
B184: #f7b26a | C184: Chamois | D184: 247 | E184: 178 | F184: 106 | G184: 44.29446918
B185: #d6c69a | C185: Parsnip | D185: 214 | E185: 198 | F185: 154 | G185: 44.30575583
B186: #ec935e | C186: Muskmelon | D186: 236 | E186: 147 | F186: 94 | G186: 44.38468204
B187: #ada396 | C187: Pure cashmere | D187: 173 | E187: 163 | F187: 150 | G187: 44.41846463
B188: #e0c992 | C188: Straw | D188: 224 | E188: 201 | F188: 146 | G188: 44.42971978
B189: #dec05f | C189: Cream gold | D189: 222 | E189: 192 | F189: 95 | G189: 44.56455991
B190: #ca9456 | C190: Honey yellow | D190: 202 | E190: 148 | F190: 86 | G190: 44.57577818
B191: #b18f6a | C191: Iced coffee | D191: 177 | E191: 143 | F191: 106 | G191: 44.68780594
B192: #ffa177 | C192: Cantaloupe | D192: 255 | E192: 161 | F192: 119 | G192: 44.76605857
B193: #a79b82 | C193: Twill | D193: 167 | E193: 155 | F193: 130 | G193: 44.82186966
B194: #dfc09f | C194: Winter wheat | D194: 223 | E194: 192 | F194: 159 | G194: 44.82186966
B195: #faaa94 | C195: Salmon | D195: 250 | E195: 170 | F195: 148 | G195: 44.84417465
B196: #a9947a | C196: Cornstalk | D196: 169 | E196: 148 | F196: 122 | G196: 44.87761134
B197: #fb9f93 | C197: Peach amber | D197: 251 | E197: 159 | F197: 147 | G197: 44.89988864
B198: #b98391 | C198: Foxglove | D198: =HEX2DEC(MID(B198,2,2)) -> 185 | E198: =HEX2DEC(MID(B198,4,2)) -> 131 | F198: =HEX2DEC(RIGHT(B198,2)) -> 145 | G198: =SQRT((D198-$D$2)^2+(E198-$E$2)^2+(F198-$F$2)^2) -> 44.98888752
B199: #af9294 | C199: Deauville mauve | D199: 175 | E199: 146 | F199: 148 | G199: 45.01110974
B200: #aa907d | C200: Natural | D200: 170 | E200: 144 | F200: 125 | G200: 45.23273151
... 2115 more rows

Sheet TestCode
A1: j | G1: stuff on this sheet just me (JAC) testing bits and setting up color palettes
A2: Col | B2: Hex | C2: Soil name | D2: Munsell | E2: RGB.R | F2: RGB.G | G2: RGB.B
B3: #363C42 | C3: Bluish Black | D3: 10B 2.5/1 | E3: 54.019558 | F3: 60.787441 | G3: 66.336696 | J3: Hex | K3: R | L3: B | M3: G
B4: #41484E | C4: Very Dark Bluish Gray | D4: 10B 3/1 | E4: 65.054196 | F4: 72.550122 | G4: 78.485625 | I4: Hex to RBG | J4: #f1bf70 | K4: =HEX2DEC(MID(J4,2,2)) -> 241 | L4: =HEX2DEC(MID(J4,4,2)) -> 191 | M4: =HEX2DEC(MID(J4,6,2)) -> 112
B5: #596166 | C5: Dark Bluish Gray | D5: 10B 4/1 | E5: 89.903781 | F5: 97.077803 | G5: 102.320673
B6: #737A7F | C6: Bluish Gray | D6: 10B 5/1 | E6: 115.411266 | F6: 122.531349 | G6: 127.534651 | J6: R | K6: B | L6: G | M6: Hex
B7: #8D9498 | C7: Bluish Gray | D7: 10B 6/1 | E7: 141.217247 | F7: 148.442198 | G7: 152.94334 | I7: RBG to Hex | J7: 69 | K7: 57 | L7: 55 | M7: ="#" & DEC2HEX(J7) & DEC2HEX(K7) & DEC2HEX(L7) -> #453937
B8: #A7AEB2 | C8: Light Bluish Gray | D8: 10B 7/1 | E8: 167.554026 | F8: 174.492606 | G8: 178.733649
B9: #C2C8CC | C9: Light Bluish Gray | D9: 10B 8/1 | E9: 194.024095 | F9: 200.949561 | G9: 204.74223
B10: #343D3F | C10: Greenish Black | D10: 10BG 2.5/1 | E10: 52.127923 | F10: 61.642294 | G10: 63.13797
B11: #3E494B | C11: Very Dark Greenish Gray | D11: 10BG 3/1 | E11: 62.758168 | F11: 73.537405 | G11: 75.048983
B12: #566263 | C12: Dark Greenish Gray | D12: 10BG 4/1 | E12: 86.640327 | F12: 98.272825 | G12: 99.446646
B13: #6F7B7C | C13: Greenish Gray | D13: 10BG 5/1 | E13: 111.586987 | F13: 123.868876 | G13: 124.892037
B14: #889596 | C14: Greenish Gray | D14: 10BG 6/1 | E14: 136.943285 | F14: 149.895372 | G14: 150.484208
B15: #A2B0B0 | C15: Light Greenish Gray | D15: 10BG 7/1 | E15: 162.701634 | F15: 176.100045 | G15: 176.464028
B16: #BCCACA | C16: Light Greenish Gray | D16: 10BG 8/1 | E16: 188.820232 | F16: 202.63842 | G16: 202.730333
B17: #353D3B | C17: Greenish Black | D17: 10G 2.5/1 | E17: 53.30655 | F17: 61.760378 | G17: 59.230814
B18: #3F4946 | C18: Very Dark Greenish Gray | D18: 10G 3/1 | E18: 63.996797 | F18: 73.68338 | G18: 70.720188
B19: #57625E | C19: Dark Greenish Gray | D19: 10G 4/1 | E19: 87.423887 | F19: 98.549749 | G19: 94.911124
B20: #707C78 | C20: Greenish Gray | D20: 10G 5/1 | E20: 112.144361 | F20: 124.221725 | G20: 120.16838
B21: #899691 | C21: Greenish Gray | D21: 10G 6/1 | E21: 137.179128 | F21: 150.333637 | G21: 145.745032
B22: #A2B0AB | C22: Light Greenish Gray | D22: 10G 7/1 | E22: 162.380208 | F22: 176.709186 | G22: 171.534065
B23: #BCCBC5 | C23: Light Greenish Gray | D23: 10G 8/1 | E23: 188.015239 | F23: 203.396816 | G23: 197.647946
B24: #373D37 | C24: Greenish Black | D24: 10GY 2.5/1 | E24: 55.688846 | F24: 61.463054 | G24: 55.919662
B25: #424942 | C25: Very Dark Greenish Gray | D25: 10GY 3/1 | E25: 66.683791 | F25: 73.366869 | G25: 66.783774
B26: #5A625A | C26: Dark Greenish Gray | D26: 10GY 4/1 | E26: 90.68834 | F26: 98.152307 | G26: 90.132935
B27: #737B72 | C27: Greenish Gray | D27: 10GY 5/1 | E27: 115.518865 | F27: 123.838667 | G27: 114.865715
B28: #8C968B | C28: Greenish Gray | D28: 10GY 6/1 | E28: 140.426404 | F28: 150.064066 | G28: 139.611557
B29: #A6B0A5 | C29: Light Greenish Gray | D29: 10GY 7/1 | E29: 166.296704 | F29: 176.282544 | G29: 165.080209
B30: #C0CABE | C30: Light Greenish Gray | D30: 10GY 8/1 | E30: 192.161041 | F30: 202.971263 | G30: 190.510519
B31: #453937 | C31: Reddish Black | D31: 10R 2.5/1 | E31: 69.274234 | F31: 57.165836 | G31: 55.259152
B32: #4D3632 | C32: Very Dusky Red | D32: 10R 2.5/2 | E32: 77.067431 | F32: 54.419483 | G32: 50.609947
B33: #514442 | C33: Dark Reddish Gray | D33: 10R 3/1 | E33: 81.760853 | F33: 68.616322 | G33: 66.202444
B34: #5A413C | C34: Dusky Red | D34: 10R 3/2 | E34: 90.240652 | F34: 65.718033 | G34: 60.882206
B35: #613E37 | C35: Dusky Red | D35: 10R 3/3 | E35: 97.49464 | F35: 62.762154 | G35: 55.870255
B36: #673B32 | C36: Dusky Red | D36: 10R 3/4 | E36: 103.945795 | F36: 59.694629 | G36: 50.940588
B37: #733428 | C37: Dark Red | D37: 10R 3/6 | E37: 115.310851 | F37: 52.98866 | G37: 40.905741
B38: #6A5D5A | C38: Dark Reddish Gray | D38: 10R 4/1 | E38: 106.051063 | F38: 93.291437 | G38: 90.667264
B39: #725A55 | C39: Weak Red | D39: 10R 4/2 | E39: 114.811863 | F39: 90.531134 | G39: 85.171682
B40: #7A574F | C40: Weak Red | D40: 10R 4/3 | E40: 122.899565 | F40: 87.603507 | G40: 79.420481
B41: #825449 | C41: Weak Red | D41: 10R 4/4 | E41: 130.154066 | F41: 84.621053 | G41: 73.588671
B42: #8E4E3E | C42: Red | D42: 10R 4/6 | E42: 142.314848 | F42: 78.683793 | G42: 62.24239
B43: #994731 | C43: Red | D43: 10R 4/8 | E43: 153.690196 | F43: 71.704246 | G43: 49.818127
B44: #827774 | C44: Reddish Gray | D44: 10R 5/1 | E44: 130.578386 | F44: 119.066037 | G44: 116.251788
B45: #8B746E | C45: Weak Red | D45: 10R 5/2 | E45: 139.001968 | F45: 116.60646 | G45: 110.813928
B46: #937168 | C46: Weak Red | D46: 10R 5/3 | E46: 147.361847 | F46: 113.879363 | G46: 104.769622
B47: #9B6F62 | C47: Weak Red | D47: 10R 5/4 | E47: 155.261937 | F47: 111.003214 | G47: 98.432977
B48: #A96855 | C48: Red | D48: 10R 5/6 | E48: 169.526092 | F48: 104.912894 | G48: 85.509169
B49: #B66247 | C49: Red | D49: 10R 5/8 | E49: 182.31227 | F49: 98.233073 | G49: 71.958546
B50: #9C908D | C50: Reddish Gray | D50: 10R 6/1 | E50: 156.738455 | F50: 144.857698 | G50: 141.804578
B51: #A58E88 | C51: Pale Red | D51: 10R 6/2 | E51: 165.487007 | F51: 142.380836 | G51: 136.091309
B52: #AE8B81 | C52: Pale Red | D52: 10R 6/3 | E52: 174.102929 | F52: 139.706952 | G52: 129.749309
B53: #B6887B | C53: Pale Red | D53: 10R 6/4 | E53: 182.132221 | F53: 136.971257 | G53: 123.246632
B54: #C4836E | C54: Light Red | D54: 10R 6/6 | E54: 196.126478 | F54: 131.511655 | G54: 110.88854
B55: #D17D61 | C55: Light Red | D55: 10R 6/8 | E55: 209.37 | F55: 125.392038 | G55: 97.76422
B56: #B6ABA8 | C56: Light Gray | D56: 10R 7/1 | E56: 182.266365 | F56: 171.119516 | G56: 168.119686
B57: #BEA8A2 | C57: Pale Red | D57: 10R 7/2 | E57: 190.822605 | F57: 168.778827 | G57: 162.534457
B58: #C7A69B | C58: Pale Red | D58: 10R 7/3 | E58: 199.75343 | F58: 166.140569 | G58: 155.988612
B59: #D0A395 | C59: Pale Red | D59: 10R 7/4 | E59: 208.377142 | F59: 163.365904 | G59: 149.107622
B60: #E09D87 | C60: Light Red | D60: 10R 7/6 | E60: 224.061752 | F60: 157.612133 | G60: 135.680732
B61: #EE9779 | C61: Light Red | D61: 10R 7/8 | E61: 238.799355 | F61: 151.274891 | G61: 121.443447
B62: #CFC5C3 | C62: White | D62: 10R 8/1 | E62: 207.175605 | F62: 197.965941 | G62: 195.258802
B63: #D7C3BD | C63: Pinkish White | D63: 10R 8/2 | E63: 215.215654 | F63: 195.850334 | G63: 189.999343
B64: #E1C0B6 | C64: Pink | D64: 10R 8/3 | E64: 225.908414 | F64: 192.801717 | G64: 182.436224
B65: #ECBDAE | C65: Pink | D65: 10R 8/4 | E65: 236.407096 | F65: 189.532611 | G65: 174.243027
B66: #3C3C33 | C66: Greenish Black | D66: 10Y 2.5/1 | E66: 60.83541 | F66: 60.389409 | G66: 51.5743
B67: #48483D | C67: Very Dark Greenish Gray | D67: 10Y 3/1 | E67: 72.592618 | F67: 72.122166 | G67: 61.923305
B68: #616054 | C68: Dark Greenish Gray | D68: 10Y 4/1 | E68: 97.325375 | F68: 96.737822 | G68: 84.760608
B69: #7A7A6D | C69: Greenish Gray | D69: 10Y 5/1 | E69: 122.890564 | F69: 122.197748 | G69: 109.629756
B70: #949486 | C70: Greenish Gray | D70: 10Y 6/1 | E70: 148.927318 | F70: 148.121718 | G70: 134.096763
B71: #AFAE9F | C71: Light Greenish Gray | D71: 10Y 7/1 | E71: 175.049026 | F71: 174.269786 | G71: 159.486453
B72: #C9C8B8 | C72: Light Greenish Gray | D72: 10Y 8/1 | E72: 201.7121 | F72: 200.76916 | G72: 184.421792
B73: #372F29 | C73: Black | D73: 10YR 2/1 | E73: 55.014727 | F73: 47.534891 | G73: 41.05676
B74: #3B2E20 | C74: Very Dark Brown | D74: 10YR 2/2 | E74: 59.941577 | F74: 46.348858 | G74: 32.999763
B75: #4E463E | C75: Very Dark Gray | D75: 10YR 3/1 | E75: 78.575714 | F75: 70.148024 | G75: 62.251264
B76: #544435 | C76: Very Dark Grayish Brown | D76: 10YR 3/2 | E76: 84.160822 | F76: 68.91697 | G76: 53.010274
B77: #58432B | C77: Dark Brown | D77: 10YR 3/3 | E77: 88.792072 | F77: 67.732254 | G77: 43.898996
B78: #5C4222 | C78: Dark Yellowish Brown | D78: 10YR 3/4 | E78: 92.733256 | F78: 66.597251 | G78: 34.341505
B79: #63408 | C79: Dark Yellowish Brown | D79: 10YR 3/6 | E79: 99.187468 | F79: 64.43374 | G79: 8.500238
B80: #675E55 | C80: Dark Gray | D80: 10YR 4/1 | E80: 103.649531 | F80: 94.647894 | G80: 85.387298
B81: #6D5D4A | C81: Dark Grayish Brown | D81: 10YR 4/2 | E81: 109.904727 | F81: 93.37223 | G81: 74.840765
B82: #735C40 | C82: Brown | D82: 10YR 4/3 | E82: 115.439176 | F82: 92.041546 | G82: 64.425348
B83: #785A35 | C83: Dark Yellowish Brown | D83: 10YR 4/4 | E83: 120.125383 | F83: 90.778564 | G83: 53.994042
B84: #7F5820 | C84: Dark Yellowish Brown | D84: 10YR 4/6 | E84: 127.123196 | F84: 88.635728 | G84: 32.731907
B85: #80786E | C85: Gray | D85: 10YR 5/1 | E85: 128.864391 | F85: 120.177219 | G85: 110.933927
B86: #877664 | C86: Grayish Brown | D86: 10YR 5/2 | E86: 135.233301 | F86: 118.966987 | G86: 100.39846
B87: #8D7559 | C87: Brown | D87: 10YR 5/3 | E87: 141.028099 | F87: 117.71274 | G87: 89.733421
B88: #92744E | C88: Yellowish Brown | D88: 10YR 5/4 | E88: 146.239386 | F88: 116.460223 | G88: 78.779302
B89: #9B7136 | C89: Yellowish Brown | D89: 10YR 5/6 | E89: 155.228127 | F89: 113.97886 | G89: 54.852179
B90: #A16F1B | C90: Yellowish Brown | D90: 10YR 5/8 | E90: 161.579696 | F90: 111.952965 | G90: 27.510308
B91: #9A9287 | C91: Gray | D91: 10YR 6/1 | E91: 154.918551 | F91: 146.051495 | G91: 135.971027
B92: #A1907C | C92: Light Brownish Gray | D92: 10YR 6/2 | E92: 161.466201 | F92: 144.891678 | G92: 124.816235
B93: #A78F72 | C93: Pale Brown | D93: 10YR 6/3 | E93: 167.152674 | F93: 143.766166 | G93: 114.133287
B94: #AC8E67 | C94: Light Yellowish Brown | D94: 10YR 6/4 | E94: 172.373351 | F94: 142.61988 | G94: 103.387147
B95: #B68C4F | C95: Brownish Yellow | D95: 10YR 6/6 | E95: 182.224639 | F95: 140.106009 | G95: 79.936264
B96: #BD8936 | C96: Brownish Yellow | D96: 10YR 6/8 | E96: 189.688305 | F96: 137.958564 | G96: 54.372431
B97: #B4ACA1 | C97: Light Gray | D97: 10YR 7/1 | E97: 180.926927 | F97: 172.221351 | G97: 161.605107
B98: #BBAB95 | C98: Light Gray | D98: 10YR 7/2 | E98: 187.586325 | F98: 171.118531 | G98: 149.973732
B99: #C1A98A | C99: Very Pale Brown | D99: 10YR 7/3 | E99: 193.685269 | F99: 169.972737 | G99: 138.622886
B100: #C7A87F | C100: Very Pale Brown | D100: 10YR 7/4 | E100: 199.246847 | F100: 168.826069 | G100: 127.315923
B101: #D1A668 | C101: Yellow | D101: 10YR 7/6 | E101: 209.013997 | F101: 166.566799 | G101: 104.171262
B102: #D9A450 | C102: Yellow | D102: 10YR 7/8 | E102: 217.205223 | F102: 164.36374 | G102: 80.145246
B103: #CFC6BB | C103: White | D103: 10YR 8/1 | E103: 207.270325 | F103: 198.740897 | G103: 187.422945
B104: #D5C5AF | C104: Very Pale Brown | D104: 10YR 8/2 | E104: 213.931578 | F104: 197.7226 | G104: 175.297051
B105: #DCC4A3 | C105: Very Pale Brown | D105: 10YR 8/3 | E105: 220.037271 | F105: 196.648918 | G105: 163.769194
B106: #E1C398 | C106: Very Pale Brown | D106: 10YR 8/4 | E106: 225.720232 | F106: 195.542114 | G106: 152.391578
B107: #ECC180 | C107: Yellow | D107: 10YR 8/6 | E107: 236.206247 | F107: 193.225022 | G107: 128.999993
B108: #F5BE67 | C108: Yellow | D108: 10YR 8/8 | E108: 245.347712 | F108: 190.937583 | G108: 103.746149
B109: #403B33 | C109: Black | D109: 2.5Y 2.5/1 | E109: 64.862603 | F109: 59.142339 | G109: 51.09924
B110: #4D463D | C110: Very Dark Gray | D110: 2.5Y 3/1 | E110: 77.006994 | F110: 70.732667 | G110: 61.699608
B111: #514633 | C111: Very Dark Grayish Brown | D111: 2.5Y 3/2 | E111: 81.424054 | F111: 70.022163 | G111: 51.904667
B112: #554529 | C112: Dark Olive Brown | D112: 2.5Y 3/3 | E112: 85.236674 | F112: 69.283945 | G112: 41.965595
B113: #665F54 | C113: Dark Gray | D113: 2.5Y 4/1 | E113: 102.123811 | F113: 95.230659 | G113: 84.608312
B114: #6B5E49 | C114: Dark Grayish Brown | D114: 2.5Y 4/2 | E114: 107.144254 | F114: 94.492468 | G114: 73.323979
B115: #6F5D3E | C115: Olive Brown | D115: 2.5Y 4/3 | E115: 111.640605 | F115: 93.673762 | G115: 62.084776
B116: #735C32 | C116: Olive Brown | D116: 2.5Y 4/4 | E116: 115.441868 | F116: 92.888159 | G116: 50.717286
B117: #7F786D | C117: Gray | D117: 2.5Y 5/1 | E117: 127.551302 | F117: 120.698722 | G117: 109.984943
B118: #847762 | C118: Grayish Brown | D118: 2.5Y 5/2 | E118: 132.765051 | F118: 119.989684 | G118: 98.535445
B119: #897756 | C119: Light Olive Brown | D119: 2.5Y 5/3 | E119: 137.470967 | F119: 119.244853 | G119: 86.899327
B120: #8D764A | C120: Light Olive Brown | D120: 2.5Y 5/4 | E120: 141.679589 | F120: 118.491897 | G120: 74.913837
B121: #947430 | C121: Light Olive Brown | D121: 2.5Y 5/6 | E121: 148.917706 | F121: 116.956405 | G121: 48.301606
B122: #999286 | C122: Gray | D122: 2.5Y 6/1 | E122: 153.297607 | F122: 146.692755 | G122: 134.766482
B123: #9E927A | C123: Light Brownish Gray | D123: 2.5Y 6/2 | E123: 158.508601 | F123: 146.102657 | G123: 122.530049
B124: #A3916E | C124: Light Yellowish Brown | D124: 2.5Y 6/3 | E124: 163.244258 | F124: 145.416976 | G124: 110.976909
B125: #A79063 | C125: Light Yellowish Brown | D125: 2.5Y 6/4 | E125: 167.613968 | F125: 144.686825 | G125: 99.370847
B126: #AF8F49 | C126: Olive Yellow | D126: 2.5Y 6/6 | E126: 175.56591 | F126: 143.14934 | G126: 73.562922
B127: #B58D2C | C127: Olive Yellow | D127: 2.5Y 6/8 | E127: 181.950297 | F127: 141.641635 | G127: 44.569635
B128: #B3ACA0 | C128: Light Gray | D128: 2.5Y 7/1 | E128: 179.280586 | F128: 172.884405 | G128: 160.217718
B129: #B8AC93 | C129: Light Gray | D129: 2.5Y 7/2 | E129: 184.594293 | F129: 172.351753 | G129: 147.418731
B130: #BDAB87 | C130: Pale Yellow | D130: 2.5Y 7/3 | E130: 189.830969 | F130: 171.588631 | G130: 135.415733
B131: #C2AA7B | C131: Pale Yellow | D131: 2.5Y 7/4 | E131: 194.677053 | F131: 170.776696 | G131: 123.572048
B132: #CAA962 | C132: Yellow | D132: 2.5Y 7/6 | E132: 202.833548 | F132: 169.313044 | G132: 98.76535
B133: #D1A848 | C133: Yellow | D133: 2.5Y 7/8 | E133: 209.206555 | F133: 168.039833 | G133: 72.094483
B134: #CDC7B9 | C134: White | D134: 2.5Y 8/1 | E134: 205.832872 | F134: 199.354744 | G134: 185.833548
B135: #D3C6AC | C135: Pale Yellow | D135: 2.5Y 8/2 | E135: 211.176574 | F135: 198.899639 | G135: 172.384742
B136: #D8C6A0 | C136: Pale Yellow | D136: 2.5Y 8/3 | E136: 216.035401 | F136: 198.320489 | G136: 160.250917
B137: #DCC594 | C137: Pale Yellow | D137: 2.5Y 8/4 | E137: 220.605031 | F137: 197.67469 | G137: 148.38278
B138: #E5C47A | C138: Yellow | D138: 2.5Y 8/6 | E138: 229.265039 | F138: 196.256354 | G138: 122.864742
B139: #ECC260 | C139: Yellow | D139: 2.5Y 8/8 | E139: 236.646705 | F139: 194.790961 | G139: 96.811734
B140: #443936 | C140: Black | D140: 2.5YR 2.5/1 | E140: 68.926363 | F140: 57.393641 | G140: 54.309078
B141: #4C3630 | C141: Very Dusky Red | D141: 2.5YR 2.5/2 | E141: 76.329142 | F141: 54.9385 | G141: 48.653438
B142: #52342B | C142: Dark Reddish Brown | D142: 2.5YR 2.5/3 | E142: 82.693249 | F142: 52.418967 | G142: 43.057131
B143: #583125 | C143: Dark Reddish Brown | D143: 2.5YR 2.5/4 | E143: 88.365337 | F143: 49.790821 | G143: 37.294728
B144: #514441 | C144: Dark Reddish Gray | D144: 2.5YR 3/1 | E144: 81.409255 | F144: 68.859439 | G144: 65.096601
B145: #59423A | C145: Dusky Red | D145: 2.5YR 3/2 | E145: 89.43702 | F145: 66.283052 | G145: 58.648305
B146: #603F34 | C146: Dark Reddish Brown | D146: 2.5YR 3/3 | E146: 96.108273 | F146: 63.76197 | G146: 52.496046
B147: #663D2E | C147: Dark Reddish Brown | D147: 2.5YR 3/4 | E147: 102.018966 | F147: 61.187971 | G147: 46.256252
B148: #703720 | C148: Dark Red | D148: 2.5YR 3/6 | E148: 112.667773 | F148: 55.533327 | G148: 32.18455
B149: #695D59 | C149: Dark Reddish Gray | D149: 2.5YR 4/1 | E149: 105.992033 | F149: 93.465706 | G149: 89.176386
B150: #725A52 | C150: Weak Red | D150: 2.5YR 4/2 | E150: 114.480251 | F150: 90.949316 | G150: 82.261905
B151: #7A584B | C151: Reddish Brown | D151: 2.5YR 4/3 | E151: 122.102887 | F151: 88.343368 | G151: 75.335905
B152: #805544 | C152: Reddish Brown | D152: 2.5YR 4/4 | E152: 128.834872 | F152: 85.74231 | G152: 68.379753
B153: #8B5036 | C153: Red | D153: 2.5YR 4/6 | E153: 139.935593 | F153: 80.724889 | G153: 54.464494
B154: #954B26 | C154: Red | D154: 2.5YR 4/8 | E154: 149.838208 | F154: 75.252808 | G154: 38.336957
B155: #827772 | C155: Reddish Gray | D155: 2.5YR 5/1 | E155: 130.811208 | F155: 119.150096 | G155: 114.676434
B156: #8B746B | C156: Weak Red | D156: 2.5YR 5/2 | E156: 139.128222 | F156: 116.856114 | G156: 107.818988
B157: #927264 | C157: Reddish Brown | D157: 2.5YR 5/3 | E157: 146.863677 | F157: 114.452507 | G157: 100.906682
B158: #9A6F5D | C158: Reddish Brown | D158: 2.5YR 5/4 | E158: 154.098096 | F158: 111.95453 | G158: 93.76668
B159: #A76A4E | C159: Red | D159: 2.5YR 5/6 | E159: 167.470172 | F159: 106.616073 | G159: 78.131915
B160: #B3643D | C160: Red | D160: 2.5YR 5/8 | E160: 179.228659 | F160: 100.944353 | G160: 61.035244
B161: #9C908C | C161: Reddish Gray | D161: 2.5YR 6/1 | E161: 156.980501 | F161: 144.951112 | G161: 140.12696
B162: #A58E84 | C162: Pale Red | D162: 2.5YR 6/2 | E162: 165.61533 | F162: 142.651527 | G162: 132.916357
B163: #AD8C7D | C163: Light Reddish Brown | D163: 2.5YR 6/3 | E163: 173.43685 | F163: 140.358077 | G163: 125.731247
B164: #B48976 | C164: Light Reddish Brown | D164: 2.5YR 6/4 | E164: 180.793282 | F164: 137.992396 | G164: 118.412409
B165: #C28466 | C165: Light Red | D165: 2.5YR 6/6 | E165: 194.932059 | F165: 132.775473 | G165: 102.828993
B166: #CE7F57 | C166: Light Red | D166: 2.5YR 6/8 | E166: 206.987612 | F166: 127.538032 | G166: 87.137527
B167: #B6ABA6 | C167: Light Reddish Gray | D167: 2.5YR 7/1 | E167: 182.557314 | F167: 171.195113 | G167: 166.482822
B168: #BFA89F | C168: Pale Red | D168: 2.5YR 7/2 | E168: 191.115565 | F168: 168.994374 | G168: 159.378322
B169: #C7A697 | C169: Light Reddish Brown | D169: 2.5YR 7/3 | E169: 199.543075 | F169: 166.636576 | G169: 151.723578
B170: #CFA48F | C170: Light Reddish Brown | D170: 2.5YR 7/4 | E170: 207.624554 | F170: 164.175761 | G170: 143.758164
B171: #DE9E7F | C171: Light Red | D171: 2.5YR 7/6 | E171: 222.770986 | F171: 158.94054 | G171: 127.250571
B172: #EB996E | C172: Light Red | D172: 2.5YR 7/8 | E172: 235.629096 | F172: 153.778177 | G172: 110.992379
B173: #CFC5C1 | C173: White | D173: 2.5YR 8/1 | E173: 207.802741 | F173: 197.937468 | G173: 193.611721
B174: #D8C3BA | C174: Pinkish White | D174: 2.5YR 8/2 | E174: 216.051142 | F174: 195.89685 | G174: 186.744301
B175: #E2C1B1 | C175: Pink | D175: 2.5YR 8/3 | E175: 226.087904 | F175: 193.207961 | G175: 177.628298
B176: #EBBEA8 | C176: Pink | D176: 2.5YR 8/4 | E176: 235.709626 | F176: 190.395886 | G176: 168.049186
B177: #343D40 | C177: Bluish Black | D177: 5B 2.5/1 | E177: 52.456842 | F177: 61.37844 | G177: 64.744759
B178: #3F494C | C178: Very Dark Bluish Gray | D178: 5B 3/1 | E178: 63.18421 | F178: 73.22237 | G178: 76.894678
B179: #576165 | C179: Dark Bluish Gray | D179: 5B 4/1 | E179: 87.630371 | F179: 97.826905 | G179: 101.130182
B180: #717B7E | C180: Bluish Gray | D180: 5B 5/1 | E180: 113.106122 | F180: 123.29225 | G180: 126.425754
B181: #8A9598 | C181: Bluish Gray | D181: 5B 6/1 | E181: 138.784121 | F181: 149.225853 | G181: 152.017591
B182: #A4AFB2 | C182: Light Bluish Gray | D182: 5B 7/1 | E182: 164.830143 | F182: 175.334879 | G182: 178.091295
B183: #BFC9CC | C183: Light Bluish Gray | D183: 5B 8/1 | E183: 191.519517 | F183: 201.733482 | G183: 204.1225
B184: #343D3D | C184: Greenish Black | D184: 5BG 2.5/1 | E184: 52.480472 | F184: 61.762193 | G184: 61.219286
B185: #3F4948 | C185: Very Dark Greenish Gray | D185: 5BG 3/1 | E185: 63.189521 | F185: 73.658783 | G185: 72.924407
B186: #566261 | C186: Dark Greenish Gray | D186: 5BG 4/1 | E186: 86.724832 | F186: 98.488437 | G186: 97.240433
B187: #6F7C7A | C187: Greenish Gray | D187: 5BG 5/1 | E187: 111.423405 | F187: 124.155169 | G187: 122.630627
B188: #889694 | C188: Greenish Gray | D188: 5BG 6/1 | E188: 136.516129 | F188: 150.256492 | G188: 148.182419
B189: #A1B0AD | C189: Light Greenish Gray | D189: 5BG 7/1 | E189: 161.90617 | F189: 176.58367 | G189: 173.96029
B190: #BBCBC8 | C190: Light Greenish Gray | D190: 5BG 8/1 | E190: 187.831289 | F190: 203.189017 | G190: 200.113126
B191: #363D39 | C191: Greenish Black | D191: 5G 2.5/1 | E191: 54.131334 | F191: 61.689589 | G191: 57.824493
B192: #2F3F37 | C192: Very Dark Grayish Green | D192: 5G 2.5/2 | E192: 47.611054 | F192: 63.454592 | G192: 55.744993
B193: #404945 | C193: Very Dark Greenish Gray | D193: 5G 3/1 | E193: 64.925905 | F193: 73.606789 | G193: 69.10052
B194: #394B42 | C194: Very Dark Grayish Green | D194: 5G 3/2 | E194: 57.547753 | F194: 75.615651 | G194: 66.68232
B195: #58625D | C195: Dark Greenish Gray | D195: 5G 4/1 | E195: 88.43139 | F195: 98.473129 | G195: 93.054483
B196: #50645A | C196: Grayish Green | D196: 5G 4/2 | E196: 80.222427 | F196: 100.784789 | G196: 90.142417
B197: #717C76 | C197: Greenish Gray | D197: 5G 5/1 | E197: 113.081493 | F197: 124.18462 | G197: 118.077781
B198: #687E72 | C198: Grayish Green | D198: 5G 5/2 | E198: 104.354883 | F198: 126.711934 | G198: 114.821209
B199: #89968F | C199: Greenish Gray | D199: 5G 6/1 | E199: 137.889466 | F199: 150.384679 | G199: 143.374332
B200: #80998B | C200: Pale Green | D200: 5G 6/2 | E200: 128.256284 | F200: 153.216727 | G200: 139.640421
... 124 more rows
